Organisation Name,Organisation Code,Unique Ref No,Effective Date,Directorate  where expenditure incurred,Supplier Name,Payment Date,Net Amount,Purpose of Spend,Procurement Classification (Higher Level),Procurement Classification (Lower Level),Capital/Revenue
Walsall Council,http://opendatacommunities.org/id/metropolitan-district-council/walsall,WC99-01,31/12/2018,Childrens,11KBW,06/12/2018,545.00,63116-EXTERNAL BARRISTERS-SERVICES-FEES,PERFORMANCE & OUTCOMES TEAM (C&YP),Supplies & Services,Revenue
Walsall Council,http://opendatacommunities.org/id/metropolitan-district-council/walsall,WC99-02,31/12/2018,Childrens,11KBW,12/12/2018,"3,771.50",63116-EXTERNAL BARRISTERS-SERVICES-FEES,PERFORMANCE & OUTCOMES TEAM (C&YP),Supplies & Services,Revenue
Walsall Council,http://opendatacommunities.org/id/metropolitan-district-council/walsall,WC99-03,31/12/2018,Childrens,247 CARS (WILLENHALL) LIMITED,17/12/2018,"2,301.00",52000-WITH DRIVER-HIRE OF VEHICLES,HOME TO SCHOOL TRANSPORT,Transport,Revenue
Walsall Council,http://opendatacommunities.org/id/metropolitan-district-council/walsall,WC99-04,31/12/2018,Childrens,247 CARS (WILLENHALL) LIMITED,17/12/2018,"2,381.00",52000-WITH DRIVER-HIRE OF VEHICLES,HOME TO SCHOOL TRANSPORT,Transport,Revenue
Walsall Council,http://opendatacommunities.org/id/metropolitan-district-council/walsall,WC99-05,31/12/2018,Childrens,247 CARS (WILLENHALL) LIMITED,17/12/2018,"2,558.00",52000-WITH DRIVER-HIRE OF VEHICLES,HOME TO SCHOOL TRANSPORT,Transport,Revenue
Walsall Council,http://opendatacommunities.org/id/metropolitan-district-council/walsall,WC99-06,31/12/2018,Adult Social Care,5 CARE SERVICES LTD,10/12/2018,252.93,73507-DOMICILIARY CARE,PHYSICAL SUPPORT,Third Party Payments,Revenue
Walsall Council,http://opendatacommunities.org/id/metropolitan-district-council/walsall,WC99-07,31/12/2018,Adult Social Care,5 CARE SERVICES LTD,10/12/2018,262.08,73507-DOMICILIARY CARE,PHYSICAL SUPPORT,Third Party Payments,Revenue
Walsall Council,http://opendatacommunities.org/id/metropolitan-district-council/walsall,WC99-08,31/12/2018,Adult Social Care,5 CARE SERVICES LTD,10/12/2018,262.08,73507-DOMICILIARY CARE,PHYSICAL SUPPORT,Third Party Payments,Revenue
Walsall Council,http://opendatacommunities.org/id/metropolitan-district-council/walsall,WC99-09,31/12/2018,Adult Social Care,5 CARE SERVICES LTD,17/12/2018,295.26,73025-PROFESSIONAL SERVICES-PRIV CONTRACTOR & OTHER AGENCIES,COMMUNITY INTERMEDIATE CARE,Third Party Payments,Revenue
Walsall Council,http://opendatacommunities.org/id/metropolitan-district-council/walsall,WC99-10,31/12/2018,Adult Social Care,5 CARE SERVICES LTD,10/12/2018,298.91,73507-DOMICILIARY CARE,PHYSICAL SUPPORT,Third Party Payments,Revenue
Walsall Council,http://opendatacommunities.org/id/metropolitan-district-council/walsall,WC99-11,31/12/2018,Adult Social Care,5 CARE SERVICES LTD,10/12/2018,299.68,73507-DOMICILIARY CARE,SENSORY SUPPORT,Third Party Payments,Revenue
Walsall Council,http://opendatacommunities.org/id/metropolitan-district-council/walsall,WC99-12,31/12/2018,Adult Social Care,5 CARE SERVICES LTD,10/12/2018,327.88,73507-DOMICILIARY CARE,SOCIAL SUPPORT,Third Party Payments,Revenue
Walsall Council,http://opendatacommunities.org/id/metropolitan-district-council/walsall,WC99-13,31/12/2018,Adult Social Care,5 CARE SERVICES LTD,10/12/2018,327.88,73507-DOMICILIARY CARE,PHYSICAL SUPPORT,Third Party Payments,Revenue
Walsall Council,http://opendatacommunities.org/id/metropolitan-district-council/walsall,WC99-14,31/12/2018,Adult Social Care,5 CARE SERVICES LTD,10/12/2018,334.07,73507-DOMICILIARY CARE,PHYSICAL SUPPORT,Third Party Payments,Revenue
Walsall Council,http://opendatacommunities.org/id/metropolitan-district-council/walsall,WC99-15,31/12/2018,Adult Social Care,5 CARE SERVICES LTD,10/12/2018,340.73,73507-DOMICILIARY CARE,PHYSICAL SUPPORT,Third Party Payments,Revenue
Walsall Council,http://opendatacommunities.org/id/metropolitan-district-council/walsall,WC99-16,31/12/2018,Adult Social Care,5 CARE SERVICES LTD,10/12/2018,370.01,73507-DOMICILIARY CARE,PHYSICAL SUPPORT,Third Party Payments,Revenue
Walsall Council,http://opendatacommunities.org/id/metropolitan-district-council/walsall,WC99-17,31/12/2018,Adult Social Care,5 CARE SERVICES LTD,10/12/2018,383.14,73507-DOMICILIARY CARE,PHYSICAL SUPPORT,Third Party Payments,Revenue
Walsall Council,http://opendatacommunities.org/id/metropolitan-district-council/walsall,WC99-18,31/12/2018,Adult Social Care,5 CARE SERVICES LTD,10/12/2018,386.66,73507-DOMICILIARY CARE,PHYSICAL SUPPORT,Third Party Payments,Revenue
Walsall Council,http://opendatacommunities.org/id/metropolitan-district-council/walsall,WC99-19,31/12/2018,Adult Social Care,5 CARE SERVICES LTD,10/12/2018,440.20,73507-DOMICILIARY CARE,PHYSICAL SUPPORT,Third Party Payments,Revenue
Walsall Council,http://opendatacommunities.org/id/metropolitan-district-council/walsall,WC99-20,31/12/2018,Adult Social Care,5 CARE SERVICES LTD,10/12/2018,455.41,73507-DOMICILIARY CARE,PHYSICAL SUPPORT,Third Party Payments,Revenue
Walsall Council,http://opendatacommunities.org/id/metropolitan-district-council/walsall,WC99-21,31/12/2018,Adult Social Care,5 CARE SERVICES LTD,10/12/2018,460.03,73507-DOMICILIARY CARE,PHYSICAL SUPPORT,Third Party Payments,Revenue
Walsall Council,http://opendatacommunities.org/id/metropolitan-district-council/walsall,WC99-22,31/12/2018,Adult Social Care,5 CARE SERVICES LTD,10/12/2018,491.96,73507-DOMICILIARY CARE,PHYSICAL SUPPORT,Third Party Payments,Revenue
Walsall Council,http://opendatacommunities.org/id/metropolitan-district-council/walsall,WC99-23,31/12/2018,Adult Social Care,5 CARE SERVICES LTD,10/12/2018,519.87,73507-DOMICILIARY CARE,PHYSICAL SUPPORT,Third Party Payments,Revenue
Walsall Council,http://opendatacommunities.org/id/metropolitan-district-council/walsall,WC99-24,31/12/2018,Adult Social Care,5 CARE SERVICES LTD,10/12/2018,524.75,73507-DOMICILIARY CARE,PHYSICAL SUPPORT,Third Party Payments,Revenue
Walsall Council,http://opendatacommunities.org/id/metropolitan-district-council/walsall,WC99-25,31/12/2018,Adult Social Care,5 CARE SERVICES LTD,10/12/2018,572.68,73507-DOMICILIARY CARE,PHYSICAL SUPPORT,Third Party Payments,Revenue
Walsall Council,http://opendatacommunities.org/id/metropolitan-district-council/walsall,WC99-26,31/12/2018,Adult Social Care,5 CARE SERVICES LTD,10/12/2018,776.84,73507-DOMICILIARY CARE,PHYSICAL SUPPORT,Third Party Payments,Revenue
Walsall Council,http://opendatacommunities.org/id/metropolitan-district-council/walsall,WC99-27,31/12/2018,Adult Social Care,5 CARE SERVICES LTD,10/12/2018,776.85,73507-DOMICILIARY CARE,PHYSICAL SUPPORT,Third Party Payments,Revenue
Walsall Council,http://opendatacommunities.org/id/metropolitan-district-council/walsall,WC99-28,31/12/2018,Adult Social Care,5 CARE SERVICES LTD,10/12/2018,818.94,73507-DOMICILIARY CARE,PHYSICAL SUPPORT,Third Party Payments,Revenue
Walsall Council,http://opendatacommunities.org/id/metropolitan-district-council/walsall,WC99-29,31/12/2018,Adult Social Care,5 CARE SERVICES LTD,10/12/2018,825.75,73507-DOMICILIARY CARE,PHYSICAL SUPPORT,Third Party Payments,Revenue
Walsall Council,http://opendatacommunities.org/id/metropolitan-district-council/walsall,WC99-30,31/12/2018,Adult Social Care,5 CARE SERVICES LTD,10/12/2018,875.11,73507-DOMICILIARY CARE,PHYSICAL SUPPORT,Third Party Payments,Revenue
Walsall Council,http://opendatacommunities.org/id/metropolitan-district-council/walsall,WC99-31,31/12/2018,Childrens,5 CARE SERVICES LTD,01/12/2018,882.00,63000-PROFESSIONAL FEES AND SERVICES,DIRECTLY COMMISSIONED NURSING SERVICES,Supplies & Services,Revenue
Walsall Council,http://opendatacommunities.org/id/metropolitan-district-council/walsall,WC99-32,31/12/2018,Adult Social Care,5 CARE SERVICES LTD,10/12/2018,910.21,73507-DOMICILIARY CARE,PHYSICAL SUPPORT,Third Party Payments,Revenue
Walsall Council,http://opendatacommunities.org/id/metropolitan-district-council/walsall,WC99-33,31/12/2018,Adult Social Care,5 CARE SERVICES LTD,10/12/2018,917.15,73507-DOMICILIARY CARE,PHYSICAL SUPPORT,Third Party Payments,Revenue
Walsall Council,http://opendatacommunities.org/id/metropolitan-district-council/walsall,WC99-34,31/12/2018,Adult Social Care,5 CARE SERVICES LTD,10/12/2018,962.86,73507-DOMICILIARY CARE,PHYSICAL SUPPORT,Third Party Payments,Revenue
Walsall Council,http://opendatacommunities.org/id/metropolitan-district-council/walsall,WC99-35,31/12/2018,Adult Social Care,5 CARE SERVICES LTD,10/12/2018,969.88,73507-DOMICILIARY CARE,PHYSICAL SUPPORT,Third Party Payments,Revenue
Walsall Council,http://opendatacommunities.org/id/metropolitan-district-council/walsall,WC99-36,31/12/2018,Adult Social Care,5 CARE SERVICES LTD,10/12/2018,"1,180.86",73507-DOMICILIARY CARE,PHYSICAL SUPPORT,Third Party Payments,Revenue
Walsall Council,http://opendatacommunities.org/id/metropolitan-district-council/walsall,WC99-37,31/12/2018,Adult Social Care,5 CARE SERVICES LTD,10/12/2018,"1,398.23",73507-DOMICILIARY CARE,PHYSICAL SUPPORT,Third Party Payments,Revenue
Walsall Council,http://opendatacommunities.org/id/metropolitan-district-council/walsall,WC99-38,31/12/2018,Adult Social Care,5 CARE SERVICES LTD,10/12/2018,"1,553.66",73507-DOMICILIARY CARE,PHYSICAL SUPPORT,Third Party Payments,Revenue
Walsall Council,http://opendatacommunities.org/id/metropolitan-district-council/walsall,WC99-39,31/12/2018,Adult Social Care,5 CARE SERVICES LTD,10/12/2018,"1,571.21",73507-DOMICILIARY CARE,PHYSICAL SUPPORT,Third Party Payments,Revenue
Walsall Council,http://opendatacommunities.org/id/metropolitan-district-council/walsall,WC99-40,31/12/2018,Adult Social Care,5 CARE SERVICES LTD,10/12/2018,"1,700.63",73507-DOMICILIARY CARE,PHYSICAL SUPPORT,Third Party Payments,Revenue
Walsall Council,http://opendatacommunities.org/id/metropolitan-district-council/walsall,WC99-41,31/12/2018,Adult Social Care,5 CARE SERVICES LTD,10/12/2018,"1,757.24",73507-DOMICILIARY CARE,PHYSICAL SUPPORT,Third Party Payments,Revenue
Walsall Council,http://opendatacommunities.org/id/metropolitan-district-council/walsall,WC99-42,31/12/2018,Adult Social Care,5 CARE SERVICES LTD,10/12/2018,"1,764.28",73507-DOMICILIARY CARE,PHYSICAL SUPPORT,Third Party Payments,Revenue
Walsall Council,http://opendatacommunities.org/id/metropolitan-district-council/walsall,WC99-43,31/12/2018,Adult Social Care,5 CARE SERVICES LTD,10/12/2018,"1,767.77",73507-DOMICILIARY CARE,PHYSICAL SUPPORT,Third Party Payments,Revenue
Walsall Council,http://opendatacommunities.org/id/metropolitan-district-council/walsall,WC99-44,31/12/2018,Adult Social Care,5 CARE SERVICES LTD,10/12/2018,"1,771.24",73507-DOMICILIARY CARE,PHYSICAL SUPPORT,Third Party Payments,Revenue
Walsall Council,http://opendatacommunities.org/id/metropolitan-district-council/walsall,WC99-45,31/12/2018,Adult Social Care,5 CARE SERVICES LTD,10/12/2018,"1,855.36",73507-DOMICILIARY CARE,PHYSICAL SUPPORT,Third Party Payments,Revenue
Walsall Council,http://opendatacommunities.org/id/metropolitan-district-council/walsall,WC99-46,31/12/2018,Economy & Environment,A D T FIRE AND SECURITY PLC,19/12/2018,883.20,63239-EXTERNAL WORKS-PAYMENT TO CONTRACTOR,ARBORETUM,Third Party Payments,Revenue
Walsall Council,http://opendatacommunities.org/id/metropolitan-district-council/walsall,WC99-47,31/12/2018,Adult Social Care,A F BLAKEMORE & SON LTD,19/12/2018,"-13,108.95",61016-FOOD AND BEVERAGES-PROVISIONS,GOSCOTE,Supplies & Services,Revenue
Walsall Council,http://opendatacommunities.org/id/metropolitan-district-council/walsall,WC99-48,31/12/2018,Economy & Environment,A F BLAKEMORE & SON LTD,05/12/2018,305.36,61008-CONFECTIONERY/SNACKS-PROVISIONS,OAK PARK,Supplies & Services,Revenue
Walsall Council,http://opendatacommunities.org/id/metropolitan-district-council/walsall,WC99-49,31/12/2018,Economy & Environment,A F BLAKEMORE & SON LTD,14/12/2018,341.17,61018-DRINKS-PROVISIONS,OAK PARK,Supplies & Services,Revenue
Walsall Council,http://opendatacommunities.org/id/metropolitan-district-council/walsall,WC99-50,31/12/2018,Economy & Environment,A F BLAKEMORE & SON LTD,21/12/2018,366.54,61018-DRINKS-PROVISIONS,OAK PARK,Supplies & Services,Revenue
Walsall Council,http://opendatacommunities.org/id/metropolitan-district-council/walsall,WC99-51,31/12/2018,Economy & Environment,A F BLAKEMORE & SON LTD,13/12/2018,429.06,61008-CONFECTIONERY/SNACKS-PROVISIONS,WALSALL GALA CENTRE,Supplies & Services,Revenue
Walsall Council,http://opendatacommunities.org/id/metropolitan-district-council/walsall,WC99-52,31/12/2018,Adult Social Care,A F BLAKEMORE & SON LTD,17/12/2018,431.85,61016-FOOD AND BEVERAGES-PROVISIONS,GOSCOTE,Supplies & Services,Revenue
Walsall Council,http://opendatacommunities.org/id/metropolitan-district-council/walsall,WC99-53,31/12/2018,Economy & Environment,A F BLAKEMORE & SON LTD,21/12/2018,509.99,61018-DRINKS-PROVISIONS,OAK PARK,Supplies & Services,Revenue
Walsall Council,http://opendatacommunities.org/id/metropolitan-district-council/walsall,WC99-54,31/12/2018,Economy & Environment,A F BLAKEMORE & SON LTD,05/12/2018,659.13,61018-DRINKS-PROVISIONS,OAK PARK,Supplies & Services,Revenue
Walsall Council,http://opendatacommunities.org/id/metropolitan-district-council/walsall,WC99-55,31/12/2018,Adult Social Care,A F BLAKEMORE & SON LTD,19/12/2018,"13,108.95",61016-FOOD AND BEVERAGES-PROVISIONS,GOSCOTE,Supplies & Services,Revenue
Walsall Council,http://opendatacommunities.org/id/metropolitan-district-council/walsall,WC99-56,31/12/2018,Resources and Transformation,A G BARR PLC,19/12/2018,368.78,61009-BEVERAGES-PROVISIONS,TOWN HALL RESTAURANT BISTRO,Supplies & Services,Revenue
Walsall Council,http://opendatacommunities.org/id/metropolitan-district-council/walsall,WC99-57,31/12/2018,Resources and Transformation,AAINA COMMUNITY HUB,05/12/2018,-350.00,63128-HIRE OF ROOM-SERVICES-FEES,ELECTORAL ADMINISTRATION,Supplies & Services,Revenue
Walsall Council,http://opendatacommunities.org/id/metropolitan-district-council/walsall,WC99-58,31/12/2018,Childrens,REDACTED,11/12/2018,472.50,73506-DIRECT PAYMENT,FAMILY SUPPORT - DIRECT PAYMENTS,Third Party Payments,Revenue
Walsall Council,http://opendatacommunities.org/id/metropolitan-district-council/walsall,WC99-59,31/12/2018,Adult Social Care,ABBEY COURT NURSING & RESIDEN,07/12/2018,"1,876.52",73501-RESIDENTIAL EMI,PHYSICAL SUPPORT,Third Party Payments,Revenue
Walsall Council,http://opendatacommunities.org/id/metropolitan-district-council/walsall,WC99-60,31/12/2018,Adult Social Care,ABBEY COURT NURSING & RESIDEN,07/12/2018,"1,876.52",73501-RESIDENTIAL EMI,PHYSICAL SUPPORT,Third Party Payments,Revenue
Walsall Council,http://opendatacommunities.org/id/metropolitan-district-council/walsall,WC99-61,31/12/2018,Adult Social Care,ABBEY COURT NURSING & RESIDEN,07/12/2018,"1,876.52",73501-RESIDENTIAL EMI,SUPPORT WITH MEMORY & COGNITION,Third Party Payments,Revenue
Walsall Council,http://opendatacommunities.org/id/metropolitan-district-council/walsall,WC99-62,31/12/2018,Adult Social Care,ABBEY COURT NURSING & RESIDEN,07/12/2018,"1,937.08",73501-RESIDENTIAL EMI,SUPPORT WITH MEMORY & COGNITION,Third Party Payments,Revenue
Walsall Council,http://opendatacommunities.org/id/metropolitan-district-council/walsall,WC99-63,31/12/2018,Adult Social Care,ABBEY HEALTHCARE HOMES LTD,07/12/2018,"1,699.28",73502-NURSING,PHYSICAL SUPPORT,Third Party Payments,Revenue
Walsall Council,http://opendatacommunities.org/id/metropolitan-district-council/walsall,WC99-64,31/12/2018,Adult Social Care,ABBEY HEALTHCARE HOMES LTD,07/12/2018,"2,294.08",73502-NURSING,PHYSICAL SUPPORT,Third Party Payments,Revenue
Walsall Council,http://opendatacommunities.org/id/metropolitan-district-council/walsall,WC99-65,31/12/2018,Adult Social Care,ABBEY HEALTHCARE HOMES LTD,07/12/2018,"3,000.00",73500-RESIDENTIAL,LEARNING DISABILITY SUPPORT,Third Party Payments,Revenue
Walsall Council,http://opendatacommunities.org/id/metropolitan-district-council/walsall,WC99-66,31/12/2018,Adult Social Care,ABBEY HEALTHCARE HOMES LTD,07/12/2018,"3,000.00",73502-NURSING,LEARNING DISABILITY SUPPORT,Third Party Payments,Revenue
Walsall Council,http://opendatacommunities.org/id/metropolitan-district-council/walsall,WC99-67,31/12/2018,Adult Social Care,ABBEY HEALTHCARE HOMES LTD,07/12/2018,"3,000.00",73502-NURSING,LEARNING DISABILITY SUPPORT,Third Party Payments,Revenue
Walsall Council,http://opendatacommunities.org/id/metropolitan-district-council/walsall,WC99-68,31/12/2018,Adult Social Care,ABBEY HEALTHCARE HOMES LTD,07/12/2018,"5,100.00",73503-NURSING EMI,PHYSICAL SUPPORT,Third Party Payments,Revenue
Walsall Council,http://opendatacommunities.org/id/metropolitan-district-council/walsall,WC99-69,31/12/2018,Childrens,ABC DAY NURSERY (WILLENHALL) LIMITED,07/12/2018,556.50,77300-ISB-FORMULA ALLOCATION,EARLY YEARS - PUPIL PREMIUM,Transfer Payments,Revenue
Walsall Council,http://opendatacommunities.org/id/metropolitan-district-council/walsall,WC99-70,31/12/2018,Childrens,ABC FOSTERING,28/12/2018,"2,527.20",74037-INDEPENDENT FOSTER CARE-OTH AGENCY PROVISION,EXTERNAL FOSTER CARE PROVISION,Third Party Payments,Revenue
Walsall Council,http://opendatacommunities.org/id/metropolitan-district-council/walsall,WC99-71,31/12/2018,Childrens,ABC FOSTERING,28/12/2018,"2,527.20",74037-INDEPENDENT FOSTER CARE-OTH AGENCY PROVISION,EXTERNAL FOSTER CARE PROVISION,Third Party Payments,Revenue
Walsall Council,http://opendatacommunities.org/id/metropolitan-district-council/walsall,WC99-72,31/12/2018,Childrens,ABC FOSTERING,28/12/2018,"2,635.20",74037-INDEPENDENT FOSTER CARE-OTH AGENCY PROVISION,EXTERNAL FOSTER CARE PROVISION,Third Party Payments,Revenue
Walsall Council,http://opendatacommunities.org/id/metropolitan-district-council/walsall,WC99-73,31/12/2018,Childrens,ABC FOSTERING,28/12/2018,"2,707.20",74037-INDEPENDENT FOSTER CARE-OTH AGENCY PROVISION,EXTERNAL FOSTER CARE PROVISION,Third Party Payments,Revenue
Walsall Council,http://opendatacommunities.org/id/metropolitan-district-council/walsall,WC99-74,31/12/2018,Childrens,ABC FOSTERING,28/12/2018,"2,859.48",74037-INDEPENDENT FOSTER CARE-OTH AGENCY PROVISION,EXTERNAL FOSTER CARE PROVISION,Third Party Payments,Revenue
Walsall Council,http://opendatacommunities.org/id/metropolitan-district-council/walsall,WC99-75,31/12/2018,Childrens,ABC FOSTERING,28/12/2018,"3,042.00",74037-INDEPENDENT FOSTER CARE-OTH AGENCY PROVISION,EXTERNAL FOSTER CARE PROVISION,Third Party Payments,Revenue
Walsall Council,http://opendatacommunities.org/id/metropolitan-district-council/walsall,WC99-76,31/12/2018,Childrens,ABC FOSTERING,28/12/2018,"3,264.00",74037-INDEPENDENT FOSTER CARE-OTH AGENCY PROVISION,EXTERNAL FOSTER CARE PROVISION,Third Party Payments,Revenue
Walsall Council,http://opendatacommunities.org/id/metropolitan-district-council/walsall,WC99-77,31/12/2018,Childrens,ABC TEACHERS LIMITED,01/12/2018,"2,050.00",63000-PROFESSIONAL FEES AND SERVICES,SCHOOL IMPROVEMENT-VIRTUAL SCHOOL,Supplies & Services,Revenue
Walsall Council,http://opendatacommunities.org/id/metropolitan-district-council/walsall,WC99-78,31/12/2018,Childrens,ABC TEACHERS LIMITED,01/12/2018,"2,050.00",63000-PROFESSIONAL FEES AND SERVICES,SCHOOL IMPROVEMENT-VIRTUAL SCHOOL,Supplies & Services,Revenue
Walsall Council,http://opendatacommunities.org/id/metropolitan-district-council/walsall,WC99-79,31/12/2018,Childrens,ABC TEACHERS LIMITED,01/12/2018,"2,050.00",63000-PROFESSIONAL FEES AND SERVICES,SCHOOL IMPROVEMENT-VIRTUAL SCHOOL,Supplies & Services,Revenue
Walsall Council,http://opendatacommunities.org/id/metropolitan-district-council/walsall,WC99-80,31/12/2018,Childrens,ABC TEACHERS LIMITED,13/12/2018,"2,050.00",63000-PROFESSIONAL FEES AND SERVICES,SCHOOL IMPROVEMENT-VIRTUAL SCHOOL,Supplies & Services,Revenue
Walsall Council,http://opendatacommunities.org/id/metropolitan-district-council/walsall,WC99-81,31/12/2018,Childrens,ABC TEACHERS LIMITED,17/12/2018,"2,330.45",63000-PROFESSIONAL FEES AND SERVICES,SCHOOL IMPROVEMENT-VIRTUAL SCHOOL,Supplies & Services,Revenue
Walsall Council,http://opendatacommunities.org/id/metropolitan-district-council/walsall,WC99-82,31/12/2018,Childrens,ABC TEACHERS LIMITED,19/12/2018,"2,330.45",63000-PROFESSIONAL FEES AND SERVICES,SCHOOL IMPROVEMENT-VIRTUAL SCHOOL,Supplies & Services,Revenue
Walsall Council,http://opendatacommunities.org/id/metropolitan-district-council/walsall,WC99-83,31/12/2018,Childrens,ABC TEACHERS LIMITED,20/12/2018,"2,610.90",63000-PROFESSIONAL FEES AND SERVICES,SCHOOL IMPROVEMENT-VIRTUAL SCHOOL,Supplies & Services,Revenue
Walsall Council,http://opendatacommunities.org/id/metropolitan-district-council/walsall,WC99-84,31/12/2018,Childrens,ABC TEACHERS LIMITED,19/12/2018,"2,879.16",63000-PROFESSIONAL FEES AND SERVICES,SCHOOL IMPROVEMENT-VIRTUAL SCHOOL,Supplies & Services,Revenue
Walsall Council,http://opendatacommunities.org/id/metropolitan-district-council/walsall,WC99-85,31/12/2018,Resources and Transformation,ABEL ALARM CO LTD,18/12/2018,812.25,73002-SECURITY-PRIV CONTRACTOR FEES,REDUNDANT BUILDINGS,Third Party Payments,Revenue
Walsall Council,http://opendatacommunities.org/id/metropolitan-district-council/walsall,WC99-86,31/12/2018,Adult Social Care,REDACTED,07/12/2018,"2,499.00",73506-DIRECT PAYMENT,LEARNING DISABILITY SUPPORT,Third Party Payments,Revenue
Walsall Council,http://opendatacommunities.org/id/metropolitan-district-council/walsall,WC99-87,31/12/2018,Childrens,ABLEWELL CARS,10/12/2018,"7,315.20",52000-WITH DRIVER-HIRE OF VEHICLES,HOME TO SCHOOL TRANSPORT,Transport,Revenue
Walsall Council,http://opendatacommunities.org/id/metropolitan-district-council/walsall,WC99-88,31/12/2018,Childrens,ABS TAXIS (ALDRIDGE),21/12/2018,"1,050.70",52000-WITH DRIVER-HIRE OF VEHICLES,HOME TO SCHOOL TRANSPORT,Transport,Revenue
Walsall Council,http://opendatacommunities.org/id/metropolitan-district-council/walsall,WC99-89,31/12/2018,Economy & Environment,AC JADE TRADING LIMITED,06/12/2018,325.45,60529-SHOP STOCK-MATERIALS,NAG - NEW ART GALLERY SHOP STOCK,Supplies & Services,Revenue
Walsall Council,http://opendatacommunities.org/id/metropolitan-district-council/walsall,WC99-90,31/12/2018,Adult Social Care,ACCOMPLISH GROUP LTD,07/12/2018,"7,028.84",73500-RESIDENTIAL,MENTAL HEALTH SUPPORT,Third Party Payments,Revenue
Walsall Council,http://opendatacommunities.org/id/metropolitan-district-council/walsall,WC99-91,31/12/2018,Adult Social Care,ACCORD - AGE MATTERS,07/12/2018,438.64,76423-DIRECT PAYMENTS SUPPORT,DIRECT PAYMENT SUPPORT ORGANISATIONS,Transfer Payments,Revenue
Walsall Council,http://opendatacommunities.org/id/metropolitan-district-council/walsall,WC99-92,31/12/2018,Adult Social Care,ACCORD - AGE MATTERS,07/12/2018,529.00,76423-DIRECT PAYMENTS SUPPORT,DIRECT PAYMENT SUPPORT ORGANISATIONS,Transfer Payments,Revenue
Walsall Council,http://opendatacommunities.org/id/metropolitan-district-council/walsall,WC99-93,31/12/2018,Adult Social Care,ACCORD HOUSING ASSOCIATION LTD#135,28/12/2018,793.36,73508-COMMUNITY SUPPORTED LIVING/SUPPORTED ACCOMMODATION,MENTAL HEALTH SUPPORT,Third Party Payments,Revenue
Walsall Council,http://opendatacommunities.org/id/metropolitan-district-council/walsall,WC99-94,31/12/2018,Adult Social Care,ACCORD HOUSING ASSOCIATION LTD#135,28/12/2018,982.28,73508-COMMUNITY SUPPORTED LIVING/SUPPORTED ACCOMMODATION,MENTAL HEALTH SUPPORT,Third Party Payments,Revenue
Walsall Council,http://opendatacommunities.org/id/metropolitan-district-council/walsall,WC99-95,31/12/2018,Adult Social Care,ACCORD HOUSING ASSOCIATION LTD#135,07/12/2018,"4,505.40",73500-RESIDENTIAL,LEARNING DISABILITY SUPPORT,Third Party Payments,Revenue
Walsall Council,http://opendatacommunities.org/id/metropolitan-district-council/walsall,WC99-96,31/12/2018,Adult Social Care,ACCORD HOUSING ASSOCIATION LTD#135,07/12/2018,"4,505.40",73500-RESIDENTIAL,LEARNING DISABILITY SUPPORT,Third Party Payments,Revenue
Walsall Council,http://opendatacommunities.org/id/metropolitan-district-council/walsall,WC99-97,31/12/2018,Adult Social Care,ACCORD HOUSING ASSOCIATION LTD#135,07/12/2018,"4,505.40",73500-RESIDENTIAL,LEARNING DISABILITY SUPPORT,Third Party Payments,Revenue
Walsall Council,http://opendatacommunities.org/id/metropolitan-district-council/walsall,WC99-98,31/12/2018,Adult Social Care,ACCORD HOUSING ASSOCIATION LTD#135,07/12/2018,"4,505.40",73500-RESIDENTIAL,LEARNING DISABILITY SUPPORT,Third Party Payments,Revenue
Walsall Council,http://opendatacommunities.org/id/metropolitan-district-council/walsall,WC99-99,31/12/2018,Adult Social Care,ACCORD HOUSING ASSOCIATION LTD#135,07/12/2018,"6,288.08",73500-RESIDENTIAL,LEARNING DISABILITY SUPPORT,Third Party Payments,Revenue
Walsall Council,http://opendatacommunities.org/id/metropolitan-district-council/walsall,WC99-100,31/12/2018,Adult Social Care,ACCORD HOUSING ASSOCIATION LTD#135,07/12/2018,"6,288.08",73500-RESIDENTIAL,LEARNING DISABILITY SUPPORT,Third Party Payments,Revenue
Walsall Council,http://opendatacommunities.org/id/metropolitan-district-council/walsall,WC99-101,31/12/2018,Adult Social Care,ACCORD HOUSING ASSOCIATION LTD#135,07/12/2018,"6,288.08",73500-RESIDENTIAL,LEARNING DISABILITY SUPPORT,Third Party Payments,Revenue
Walsall Council,http://opendatacommunities.org/id/metropolitan-district-council/walsall,WC99-102,31/12/2018,Childrens,ACCORD HOUSING ASSOCIATION LTD#135,12/12/2018,"6,655.50",63102-CONSULTANTS FEES - CORPORATE,TOXIC TRIO,Supplies & Services,Revenue
Walsall Council,http://opendatacommunities.org/id/metropolitan-district-council/walsall,WC99-103,31/12/2018,Adult Social Care,ACCORD HOUSING ASSOCIATION LTD#135,12/12/2018,"6,997.25",70000-SOCIAL SERVICES-FEES TO VOLUNTARY BODIES,COMPLEX NEEDS SLA,Third Party Payments,Revenue
Walsall Council,http://opendatacommunities.org/id/metropolitan-district-council/walsall,WC99-104,31/12/2018,Adult Social Care,ACE CARE AGENCY,12/12/2018,724.06,73507-DOMICILIARY CARE,PHYSICAL SUPPORT,Third Party Payments,Revenue
Walsall Council,http://opendatacommunities.org/id/metropolitan-district-council/walsall,WC99-105,31/12/2018,Resources and Transformation,ACE PA HIRE,06/12/2018,715.00,62523-EVENTS,MAYORS SECRETARIAT,Supplies & Services,Revenue
Walsall Council,http://opendatacommunities.org/id/metropolitan-district-council/walsall,WC99-106,31/12/2018,Adult Social Care,ACEPAY LTD (COTTAGE NUR HOME),07/12/2018,437.07,73502-NURSING,MENTAL HEALTH SUPPORT,Third Party Payments,Revenue
Walsall Council,http://opendatacommunities.org/id/metropolitan-district-council/walsall,WC99-107,31/12/2018,Adult Social Care,ACEPAY LTD (COTTAGE NUR HOME),07/12/2018,"1,529.76",73502-NURSING,SUPPORT WITH MEMORY & COGNITION,Third Party Payments,Revenue
Walsall Council,http://opendatacommunities.org/id/metropolitan-district-council/walsall,WC99-108,31/12/2018,Adult Social Care,ACEPAY LTD (COTTAGE NUR HOME),07/12/2018,"1,688.84",73500-RESIDENTIAL,PHYSICAL SUPPORT,Third Party Payments,Revenue
Walsall Council,http://opendatacommunities.org/id/metropolitan-district-council/walsall,WC99-109,31/12/2018,Adult Social Care,ACEPAY LTD (COTTAGE NUR HOME),07/12/2018,"2,039.68",73502-NURSING,PHYSICAL SUPPORT,Third Party Payments,Revenue
Walsall Council,http://opendatacommunities.org/id/metropolitan-district-council/walsall,WC99-110,31/12/2018,Adult Social Care,ACEPAY LTD (COTTAGE NUR HOME),07/12/2018,"2,039.68",73502-NURSING,SUPPORT WITH MEMORY & COGNITION,Third Party Payments,Revenue
Walsall Council,http://opendatacommunities.org/id/metropolitan-district-council/walsall,WC99-111,31/12/2018,Adult Social Care,ACEPAY LTD (COTTAGE NUR HOME),07/12/2018,"2,039.68",73502-NURSING,SUPPORT WITH MEMORY & COGNITION,Third Party Payments,Revenue
Walsall Council,http://opendatacommunities.org/id/metropolitan-district-council/walsall,WC99-112,31/12/2018,Adult Social Care,ACEPAY LTD (COTTAGE NUR HOME),07/12/2018,"2,039.68",73502-NURSING,PHYSICAL SUPPORT,Third Party Payments,Revenue
Walsall Council,http://opendatacommunities.org/id/metropolitan-district-council/walsall,WC99-113,31/12/2018,Adult Social Care,ACEPAY LTD (COTTAGE NUR HOME),07/12/2018,"2,039.68",73502-NURSING,PHYSICAL SUPPORT,Third Party Payments,Revenue
Walsall Council,http://opendatacommunities.org/id/metropolitan-district-council/walsall,WC99-114,31/12/2018,Adult Social Care,ACEPAY LTD (COTTAGE NUR HOME),07/12/2018,"2,039.68",73502-NURSING,PHYSICAL SUPPORT,Third Party Payments,Revenue
Walsall Council,http://opendatacommunities.org/id/metropolitan-district-council/walsall,WC99-115,31/12/2018,Adult Social Care,ACEPAY LTD (COTTAGE NUR HOME),07/12/2018,"2,039.68",73502-NURSING,PHYSICAL SUPPORT,Third Party Payments,Revenue
Walsall Council,http://opendatacommunities.org/id/metropolitan-district-council/walsall,WC99-116,31/12/2018,Adult Social Care,ACEPAY LTD (COTTAGE NUR HOME),07/12/2018,"2,039.68",73502-NURSING,PHYSICAL SUPPORT,Third Party Payments,Revenue
Walsall Council,http://opendatacommunities.org/id/metropolitan-district-council/walsall,WC99-117,31/12/2018,Adult Social Care,ACEPAY LTD (COTTAGE NUR HOME),07/12/2018,"2,039.68",73502-NURSING,PHYSICAL SUPPORT,Third Party Payments,Revenue
Walsall Council,http://opendatacommunities.org/id/metropolitan-district-council/walsall,WC99-118,31/12/2018,Adult Social Care,ACEPAY LTD (COTTAGE NUR HOME),07/12/2018,"2,039.68",73502-NURSING,SOCIAL SUPPORT,Third Party Payments,Revenue
Walsall Council,http://opendatacommunities.org/id/metropolitan-district-council/walsall,WC99-119,31/12/2018,Adult Social Care,ACEPAY LTD (COTTAGE NUR HOME),17/12/2018,"2,385.57",73025-PROFESSIONAL SERVICES-PRIV CONTRACTOR & OTHER AGENCIES,TRANSITIONAL CARE SUPPORT TEAM,Third Party Payments,Revenue
Walsall Council,http://opendatacommunities.org/id/metropolitan-district-council/walsall,WC99-120,31/12/2018,Adult Social Care,ACEPAY LTD (COTTAGE NUR HOME),07/12/2018,"2,659.88",73502-NURSING,PHYSICAL SUPPORT,Third Party Payments,Revenue
Walsall Council,http://opendatacommunities.org/id/metropolitan-district-council/walsall,WC99-121,31/12/2018,Childrens,ACORN CARE & EDUCATION LTD (SALES),06/12/2018,"6,333.33",66502-TOP UP FUNDING -GRANTS TO SCHOOLS,INDEPENDENT PROVIDERS - SPECIAL & AP,Third Party Payments,Revenue
Walsall Council,http://opendatacommunities.org/id/metropolitan-district-council/walsall,WC99-122,31/12/2018,Childrens,ACORN CARE & EDUCATION LTD (SALES),06/12/2018,"12,853.33",66502-TOP UP FUNDING -GRANTS TO SCHOOLS,INDEPENDENT PROVIDERS - SPECIAL & AP,Third Party Payments,Revenue
Walsall Council,http://opendatacommunities.org/id/metropolitan-district-council/walsall,WC99-123,31/12/2018,Childrens,ACORN CARE & EDUCATION LTD (SALES),06/12/2018,"16,166.67",66502-TOP UP FUNDING -GRANTS TO SCHOOLS,INDEPENDENT PROVIDERS - SPECIAL & AP,Third Party Payments,Revenue
Walsall Council,http://opendatacommunities.org/id/metropolitan-district-council/walsall,WC99-124,31/12/2018,Adult Social Care,ACORN REST HOME,07/12/2018,"1,688.84",73500-RESIDENTIAL,PHYSICAL SUPPORT,Third Party Payments,Revenue
Walsall Council,http://opendatacommunities.org/id/metropolitan-district-council/walsall,WC99-125,31/12/2018,Adult Social Care,ACORN REST HOME,07/12/2018,"2,140.00",73500-RESIDENTIAL,SOCIAL SUPPORT,Third Party Payments,Revenue
Walsall Council,http://opendatacommunities.org/id/metropolitan-district-council/walsall,WC99-126,31/12/2018,Economy & Environment,ACTION DIGITAL MEDIA LTD,12/12/2018,230.00,"62521-INTERPRETATION,TRANSLATION & HUMAN AIDS TO TRANSCRIPTION",NAG - TEMPORARY EXHIBITIONS,Supplies & Services,Revenue
Walsall Council,http://opendatacommunities.org/id/metropolitan-district-council/walsall,WC99-127,31/12/2018,Economy & Environment,ACTION MIDLANDS LTD,01/01/2019,150.00,63000-PROFESSIONAL FEES AND SERVICES,YEI (IMPACT) PROGRAMME,Supplies & Services,Revenue
Walsall Council,http://opendatacommunities.org/id/metropolitan-district-council/walsall,WC99-128,31/12/2018,Economy & Environment,ACTION MIDLANDS LTD,01/01/2019,150.00,63000-PROFESSIONAL FEES AND SERVICES,YEI ESF FUNDING,Supplies & Services,Revenue
Walsall Council,http://opendatacommunities.org/id/metropolitan-district-council/walsall,WC99-129,31/12/2018,Adult Social Care,REDACTED,07/12/2018,553.15,73506-DIRECT PAYMENT,LEARNING DISABILITY SUPPORT,Third Party Payments,Revenue
Walsall Council,http://opendatacommunities.org/id/metropolitan-district-council/walsall,WC99-130,31/12/2018,Resources and Transformation,ADELIE FOODS LTD,03/12/2018,867.36,61305-CATERING,TOWN HALL RESTAURANT BISTRO,Supplies & Services,Revenue
Walsall Council,http://opendatacommunities.org/id/metropolitan-district-council/walsall,WC99-131,31/12/2018,Resources and Transformation,ADELIE FOODS LTD,19/12/2018,882.50,61305-CATERING,TOWN HALL RESTAURANT BISTRO,Supplies & Services,Revenue
Walsall Council,http://opendatacommunities.org/id/metropolitan-district-council/walsall,WC99-132,31/12/2018,Adult Social Care,REDACTED,07/12/2018,"1,273.25",73506-DIRECT PAYMENT,PHYSICAL SUPPORT,Third Party Payments,Revenue
Walsall Council,http://opendatacommunities.org/id/metropolitan-district-council/walsall,WC99-133,31/12/2018,Childrens,ADMIRAL SELF STORAGE LTD,12/12/2018,228.78,63000-PROFESSIONAL FEES AND SERVICES,CHILDREN'S COMMISSIONING,Supplies & Services,Revenue
Walsall Council,http://opendatacommunities.org/id/metropolitan-district-council/walsall,WC99-134,31/12/2018,Childrens,REDACTED,13/12/2018,333.12,74510-RESIDENTS ORDERS,ADOPTION ALLOWANCES,Third Party Payments,Revenue
Walsall Council,http://opendatacommunities.org/id/metropolitan-district-council/walsall,WC99-135,31/12/2018,Childrens,REDACTED,13/12/2018,361.12,74510-RESIDENTS ORDERS,ADOPTION ALLOWANCES,Third Party Payments,Revenue
Walsall Council,http://opendatacommunities.org/id/metropolitan-district-council/walsall,WC99-136,31/12/2018,Adult Social Care,REDACTED,07/12/2018,"2,604.00",73506-DIRECT PAYMENT,LEARNING DISABILITY SUPPORT,Third Party Payments,Revenue
Walsall Council,http://opendatacommunities.org/id/metropolitan-district-council/walsall,WC99-137,31/12/2018,Economy & Environment,ADS ELECTRICAL & HIGHWAY SERVICES LTD,06/12/2018,"1,455.00",60500-GENERAL MATERIALS,FESTIVE DECORATIONS,Supplies & Services,Revenue
Walsall Council,http://opendatacommunities.org/id/metropolitan-district-council/walsall,WC99-138,31/12/2018,Economy & Environment,ADS ELECTRICAL & HIGHWAY SERVICES LTD,06/12/2018,"4,045.00",60008-MAINTENANCE-FURNITURE & EQUIPMENT,FOREST ARTS CENTRE,Supplies & Services,Revenue
Walsall Council,http://opendatacommunities.org/id/metropolitan-district-council/walsall,WC99-139,31/12/2018,Economy & Environment,ADS ELECTRICAL & HIGHWAY SERVICES LTD,06/12/2018,"6,300.00",63000-PROFESSIONAL FEES AND SERVICES,FESTIVE DECORATIONS,Supplies & Services,Revenue
Walsall Council,http://opendatacommunities.org/id/metropolitan-district-council/walsall,WC99-140,31/12/2018,Economy & Environment,ADS ELECTRICAL & HIGHWAY SERVICES LTD,06/12/2018,"6,895.00",63000-PROFESSIONAL FEES AND SERVICES,FESTIVE DECORATIONS,Supplies & Services,Revenue
Walsall Council,http://opendatacommunities.org/id/metropolitan-district-council/walsall,WC99-141,31/12/2018,Adult Social Care,ADVANCE HEALTH CARE (UK) LTD,10/12/2018,252.97,73507-DOMICILIARY CARE,PHYSICAL SUPPORT,Third Party Payments,Revenue
Walsall Council,http://opendatacommunities.org/id/metropolitan-district-council/walsall,WC99-142,31/12/2018,Adult Social Care,ADVANCE HEALTH CARE (UK) LTD,12/12/2018,273.98,73025-PROFESSIONAL SERVICES-PRIV CONTRACTOR & OTHER AGENCIES,COMMUNITY INTERMEDIATE CARE,Third Party Payments,Revenue
Walsall Council,http://opendatacommunities.org/id/metropolitan-district-council/walsall,WC99-143,31/12/2018,Adult Social Care,ADVANCE HEALTH CARE (UK) LTD,01/12/2018,281.00,73025-PROFESSIONAL SERVICES-PRIV CONTRACTOR & OTHER AGENCIES,COMMUNITY INTERMEDIATE CARE,Third Party Payments,Revenue
Walsall Council,http://opendatacommunities.org/id/metropolitan-district-council/walsall,WC99-144,31/12/2018,Adult Social Care,ADVANCE HEALTH CARE (UK) LTD,10/12/2018,302.27,73507-DOMICILIARY CARE,PHYSICAL SUPPORT,Third Party Payments,Revenue
Walsall Council,http://opendatacommunities.org/id/metropolitan-district-council/walsall,WC99-145,31/12/2018,Adult Social Care,ADVANCE HEALTH CARE (UK) LTD,10/12/2018,336.08,73507-DOMICILIARY CARE,PHYSICAL SUPPORT,Third Party Payments,Revenue
Walsall Council,http://opendatacommunities.org/id/metropolitan-district-council/walsall,WC99-146,31/12/2018,Adult Social Care,ADVANCE HEALTH CARE (UK) LTD,01/12/2018,344.23,73025-PROFESSIONAL SERVICES-PRIV CONTRACTOR & OTHER AGENCIES,COMMUNITY INTERMEDIATE CARE,Third Party Payments,Revenue
Walsall Council,http://opendatacommunities.org/id/metropolitan-district-council/walsall,WC99-147,31/12/2018,Adult Social Care,ADVANCE HEALTH CARE (UK) LTD,01/12/2018,344.23,73025-PROFESSIONAL SERVICES-PRIV CONTRACTOR & OTHER AGENCIES,COMMUNITY INTERMEDIATE CARE,Third Party Payments,Revenue
Walsall Council,http://opendatacommunities.org/id/metropolitan-district-council/walsall,WC99-148,31/12/2018,Adult Social Care,ADVANCE HEALTH CARE (UK) LTD,12/12/2018,344.23,73025-PROFESSIONAL SERVICES-PRIV CONTRACTOR & OTHER AGENCIES,COMMUNITY INTERMEDIATE CARE,Third Party Payments,Revenue
Walsall Council,http://opendatacommunities.org/id/metropolitan-district-council/walsall,WC99-149,31/12/2018,Adult Social Care,ADVANCE HEALTH CARE (UK) LTD,13/12/2018,344.23,73025-PROFESSIONAL SERVICES-PRIV CONTRACTOR & OTHER AGENCIES,COMMUNITY INTERMEDIATE CARE,Third Party Payments,Revenue
Walsall Council,http://opendatacommunities.org/id/metropolitan-district-council/walsall,WC99-150,31/12/2018,Adult Social Care,ADVANCE HEALTH CARE (UK) LTD,13/12/2018,344.23,73025-PROFESSIONAL SERVICES-PRIV CONTRACTOR & OTHER AGENCIES,COMMUNITY INTERMEDIATE CARE,Third Party Payments,Revenue
Walsall Council,http://opendatacommunities.org/id/metropolitan-district-council/walsall,WC99-151,31/12/2018,Adult Social Care,ADVANCE HEALTH CARE (UK) LTD,01/01/2019,344.23,73025-PROFESSIONAL SERVICES-PRIV CONTRACTOR & OTHER AGENCIES,COMMUNITY INTERMEDIATE CARE,Third Party Payments,Revenue
Walsall Council,http://opendatacommunities.org/id/metropolitan-district-council/walsall,WC99-152,31/12/2018,Adult Social Care,ADVANCE HEALTH CARE (UK) LTD,12/12/2018,351.25,73025-PROFESSIONAL SERVICES-PRIV CONTRACTOR & OTHER AGENCIES,COMMUNITY INTERMEDIATE CARE,Third Party Payments,Revenue
Walsall Council,http://opendatacommunities.org/id/metropolitan-district-council/walsall,WC99-153,31/12/2018,Adult Social Care,ADVANCE HEALTH CARE (UK) LTD,10/12/2018,352.52,73507-DOMICILIARY CARE,SOCIAL SUPPORT,Third Party Payments,Revenue
Walsall Council,http://opendatacommunities.org/id/metropolitan-district-council/walsall,WC99-154,31/12/2018,Adult Social Care,ADVANCE HEALTH CARE (UK) LTD,10/12/2018,379.64,73507-DOMICILIARY CARE,PHYSICAL SUPPORT,Third Party Payments,Revenue
Walsall Council,http://opendatacommunities.org/id/metropolitan-district-council/walsall,WC99-155,31/12/2018,Adult Social Care,ADVANCE HEALTH CARE (UK) LTD,10/12/2018,386.67,73507-DOMICILIARY CARE,PHYSICAL SUPPORT,Third Party Payments,Revenue
Walsall Council,http://opendatacommunities.org/id/metropolitan-district-council/walsall,WC99-156,31/12/2018,Adult Social Care,ADVANCE HEALTH CARE (UK) LTD,10/12/2018,390.22,73507-DOMICILIARY CARE,PHYSICAL SUPPORT,Third Party Payments,Revenue
Walsall Council,http://opendatacommunities.org/id/metropolitan-district-council/walsall,WC99-157,31/12/2018,Adult Social Care,ADVANCE HEALTH CARE (UK) LTD,10/12/2018,393.68,73507-DOMICILIARY CARE,PHYSICAL SUPPORT,Third Party Payments,Revenue
Walsall Council,http://opendatacommunities.org/id/metropolitan-district-council/walsall,WC99-158,31/12/2018,Adult Social Care,ADVANCE HEALTH CARE (UK) LTD,10/12/2018,393.68,73507-DOMICILIARY CARE,SENSORY SUPPORT,Third Party Payments,Revenue
Walsall Council,http://opendatacommunities.org/id/metropolitan-district-council/walsall,WC99-159,31/12/2018,Adult Social Care,ADVANCE HEALTH CARE (UK) LTD,10/12/2018,393.69,73507-DOMICILIARY CARE,PHYSICAL SUPPORT,Third Party Payments,Revenue
Walsall Council,http://opendatacommunities.org/id/metropolitan-district-council/walsall,WC99-160,31/12/2018,Adult Social Care,ADVANCE HEALTH CARE (UK) LTD,10/12/2018,393.72,73507-DOMICILIARY CARE,PHYSICAL SUPPORT,Third Party Payments,Revenue
Walsall Council,http://opendatacommunities.org/id/metropolitan-district-council/walsall,WC99-161,31/12/2018,Adult Social Care,ADVANCE HEALTH CARE (UK) LTD,07/12/2018,421.50,73025-PROFESSIONAL SERVICES-PRIV CONTRACTOR & OTHER AGENCIES,RAPID RESPONSE,Third Party Payments,Revenue
Walsall Council,http://opendatacommunities.org/id/metropolitan-district-council/walsall,WC99-162,31/12/2018,Adult Social Care,ADVANCE HEALTH CARE (UK) LTD,12/12/2018,421.50,73025-PROFESSIONAL SERVICES-PRIV CONTRACTOR & OTHER AGENCIES,COMMUNITY INTERMEDIATE CARE,Third Party Payments,Revenue
Walsall Council,http://opendatacommunities.org/id/metropolitan-district-council/walsall,WC99-163,31/12/2018,Adult Social Care,ADVANCE HEALTH CARE (UK) LTD,01/12/2018,442.58,73025-PROFESSIONAL SERVICES-PRIV CONTRACTOR & OTHER AGENCIES,COMMUNITY INTERMEDIATE CARE,Third Party Payments,Revenue
Walsall Council,http://opendatacommunities.org/id/metropolitan-district-council/walsall,WC99-164,31/12/2018,Adult Social Care,ADVANCE HEALTH CARE (UK) LTD,01/12/2018,442.58,73025-PROFESSIONAL SERVICES-PRIV CONTRACTOR & OTHER AGENCIES,COMMUNITY INTERMEDIATE CARE,Third Party Payments,Revenue
Walsall Council,http://opendatacommunities.org/id/metropolitan-district-council/walsall,WC99-165,31/12/2018,Adult Social Care,ADVANCE HEALTH CARE (UK) LTD,01/12/2018,442.58,73025-PROFESSIONAL SERVICES-PRIV CONTRACTOR & OTHER AGENCIES,COMMUNITY INTERMEDIATE CARE,Third Party Payments,Revenue
Walsall Council,http://opendatacommunities.org/id/metropolitan-district-council/walsall,WC99-166,31/12/2018,Adult Social Care,ADVANCE HEALTH CARE (UK) LTD,01/12/2018,442.58,73025-PROFESSIONAL SERVICES-PRIV CONTRACTOR & OTHER AGENCIES,COMMUNITY INTERMEDIATE CARE,Third Party Payments,Revenue
Walsall Council,http://opendatacommunities.org/id/metropolitan-district-council/walsall,WC99-167,31/12/2018,Adult Social Care,ADVANCE HEALTH CARE (UK) LTD,01/12/2018,442.58,73025-PROFESSIONAL SERVICES-PRIV CONTRACTOR & OTHER AGENCIES,COMMUNITY INTERMEDIATE CARE,Third Party Payments,Revenue
Walsall Council,http://opendatacommunities.org/id/metropolitan-district-council/walsall,WC99-168,31/12/2018,Adult Social Care,ADVANCE HEALTH CARE (UK) LTD,01/12/2018,442.58,73025-PROFESSIONAL SERVICES-PRIV CONTRACTOR & OTHER AGENCIES,COMMUNITY INTERMEDIATE CARE,Third Party Payments,Revenue
Walsall Council,http://opendatacommunities.org/id/metropolitan-district-council/walsall,WC99-169,31/12/2018,Adult Social Care,ADVANCE HEALTH CARE (UK) LTD,01/12/2018,442.58,73025-PROFESSIONAL SERVICES-PRIV CONTRACTOR & OTHER AGENCIES,COMMUNITY INTERMEDIATE CARE,Third Party Payments,Revenue
Walsall Council,http://opendatacommunities.org/id/metropolitan-district-council/walsall,WC99-170,31/12/2018,Adult Social Care,ADVANCE HEALTH CARE (UK) LTD,01/12/2018,442.58,73025-PROFESSIONAL SERVICES-PRIV CONTRACTOR & OTHER AGENCIES,COMMUNITY INTERMEDIATE CARE,Third Party Payments,Revenue
Walsall Council,http://opendatacommunities.org/id/metropolitan-district-council/walsall,WC99-171,31/12/2018,Adult Social Care,ADVANCE HEALTH CARE (UK) LTD,01/12/2018,442.58,73025-PROFESSIONAL SERVICES-PRIV CONTRACTOR & OTHER AGENCIES,COMMUNITY INTERMEDIATE CARE,Third Party Payments,Revenue
Walsall Council,http://opendatacommunities.org/id/metropolitan-district-council/walsall,WC99-172,31/12/2018,Adult Social Care,ADVANCE HEALTH CARE (UK) LTD,01/12/2018,442.58,73025-PROFESSIONAL SERVICES-PRIV CONTRACTOR & OTHER AGENCIES,COMMUNITY INTERMEDIATE CARE,Third Party Payments,Revenue
Walsall Council,http://opendatacommunities.org/id/metropolitan-district-council/walsall,WC99-173,31/12/2018,Adult Social Care,ADVANCE HEALTH CARE (UK) LTD,01/12/2018,442.58,73025-PROFESSIONAL SERVICES-PRIV CONTRACTOR & OTHER AGENCIES,COMMUNITY INTERMEDIATE CARE,Third Party Payments,Revenue
Walsall Council,http://opendatacommunities.org/id/metropolitan-district-council/walsall,WC99-174,31/12/2018,Adult Social Care,ADVANCE HEALTH CARE (UK) LTD,12/12/2018,442.58,73025-PROFESSIONAL SERVICES-PRIV CONTRACTOR & OTHER AGENCIES,COMMUNITY INTERMEDIATE CARE,Third Party Payments,Revenue
Walsall Council,http://opendatacommunities.org/id/metropolitan-district-council/walsall,WC99-175,31/12/2018,Adult Social Care,ADVANCE HEALTH CARE (UK) LTD,12/12/2018,442.58,73025-PROFESSIONAL SERVICES-PRIV CONTRACTOR & OTHER AGENCIES,COMMUNITY INTERMEDIATE CARE,Third Party Payments,Revenue
Walsall Council,http://opendatacommunities.org/id/metropolitan-district-council/walsall,WC99-176,31/12/2018,Adult Social Care,ADVANCE HEALTH CARE (UK) LTD,12/12/2018,442.58,73025-PROFESSIONAL SERVICES-PRIV CONTRACTOR & OTHER AGENCIES,COMMUNITY INTERMEDIATE CARE,Third Party Payments,Revenue
Walsall Council,http://opendatacommunities.org/id/metropolitan-district-council/walsall,WC99-177,31/12/2018,Adult Social Care,ADVANCE HEALTH CARE (UK) LTD,12/12/2018,442.58,73025-PROFESSIONAL SERVICES-PRIV CONTRACTOR & OTHER AGENCIES,COMMUNITY INTERMEDIATE CARE,Third Party Payments,Revenue
Walsall Council,http://opendatacommunities.org/id/metropolitan-district-council/walsall,WC99-178,31/12/2018,Adult Social Care,ADVANCE HEALTH CARE (UK) LTD,12/12/2018,442.58,73025-PROFESSIONAL SERVICES-PRIV CONTRACTOR & OTHER AGENCIES,COMMUNITY INTERMEDIATE CARE,Third Party Payments,Revenue
Walsall Council,http://opendatacommunities.org/id/metropolitan-district-council/walsall,WC99-179,31/12/2018,Adult Social Care,ADVANCE HEALTH CARE (UK) LTD,12/12/2018,442.58,73025-PROFESSIONAL SERVICES-PRIV CONTRACTOR & OTHER AGENCIES,COMMUNITY INTERMEDIATE CARE,Third Party Payments,Revenue
Walsall Council,http://opendatacommunities.org/id/metropolitan-district-council/walsall,WC99-180,31/12/2018,Adult Social Care,ADVANCE HEALTH CARE (UK) LTD,13/12/2018,442.58,73025-PROFESSIONAL SERVICES-PRIV CONTRACTOR & OTHER AGENCIES,COMMUNITY INTERMEDIATE CARE,Third Party Payments,Revenue
Walsall Council,http://opendatacommunities.org/id/metropolitan-district-council/walsall,WC99-181,31/12/2018,Adult Social Care,ADVANCE HEALTH CARE (UK) LTD,13/12/2018,442.58,73025-PROFESSIONAL SERVICES-PRIV CONTRACTOR & OTHER AGENCIES,COMMUNITY INTERMEDIATE CARE,Third Party Payments,Revenue
Walsall Council,http://opendatacommunities.org/id/metropolitan-district-council/walsall,WC99-182,31/12/2018,Adult Social Care,ADVANCE HEALTH CARE (UK) LTD,13/12/2018,442.58,73025-PROFESSIONAL SERVICES-PRIV CONTRACTOR & OTHER AGENCIES,COMMUNITY INTERMEDIATE CARE,Third Party Payments,Revenue
Walsall Council,http://opendatacommunities.org/id/metropolitan-district-council/walsall,WC99-183,31/12/2018,Adult Social Care,ADVANCE HEALTH CARE (UK) LTD,13/12/2018,442.58,73025-PROFESSIONAL SERVICES-PRIV CONTRACTOR & OTHER AGENCIES,COMMUNITY INTERMEDIATE CARE,Third Party Payments,Revenue
Walsall Council,http://opendatacommunities.org/id/metropolitan-district-council/walsall,WC99-184,31/12/2018,Adult Social Care,ADVANCE HEALTH CARE (UK) LTD,13/12/2018,442.58,73025-PROFESSIONAL SERVICES-PRIV CONTRACTOR & OTHER AGENCIES,COMMUNITY INTERMEDIATE CARE,Third Party Payments,Revenue
Walsall Council,http://opendatacommunities.org/id/metropolitan-district-council/walsall,WC99-185,31/12/2018,Adult Social Care,ADVANCE HEALTH CARE (UK) LTD,13/12/2018,442.58,73025-PROFESSIONAL SERVICES-PRIV CONTRACTOR & OTHER AGENCIES,COMMUNITY INTERMEDIATE CARE,Third Party Payments,Revenue
Walsall Council,http://opendatacommunities.org/id/metropolitan-district-council/walsall,WC99-186,31/12/2018,Adult Social Care,ADVANCE HEALTH CARE (UK) LTD,13/12/2018,442.58,73025-PROFESSIONAL SERVICES-PRIV CONTRACTOR & OTHER AGENCIES,COMMUNITY INTERMEDIATE CARE,Third Party Payments,Revenue
Walsall Council,http://opendatacommunities.org/id/metropolitan-district-council/walsall,WC99-187,31/12/2018,Adult Social Care,ADVANCE HEALTH CARE (UK) LTD,13/12/2018,442.58,73025-PROFESSIONAL SERVICES-PRIV CONTRACTOR & OTHER AGENCIES,COMMUNITY INTERMEDIATE CARE,Third Party Payments,Revenue
Walsall Council,http://opendatacommunities.org/id/metropolitan-district-council/walsall,WC99-188,31/12/2018,Adult Social Care,ADVANCE HEALTH CARE (UK) LTD,13/12/2018,442.58,73025-PROFESSIONAL SERVICES-PRIV CONTRACTOR & OTHER AGENCIES,COMMUNITY INTERMEDIATE CARE,Third Party Payments,Revenue
Walsall Council,http://opendatacommunities.org/id/metropolitan-district-council/walsall,WC99-189,31/12/2018,Adult Social Care,ADVANCE HEALTH CARE (UK) LTD,13/12/2018,442.58,73025-PROFESSIONAL SERVICES-PRIV CONTRACTOR & OTHER AGENCIES,COMMUNITY INTERMEDIATE CARE,Third Party Payments,Revenue
Walsall Council,http://opendatacommunities.org/id/metropolitan-district-council/walsall,WC99-190,31/12/2018,Adult Social Care,ADVANCE HEALTH CARE (UK) LTD,13/12/2018,442.58,73025-PROFESSIONAL SERVICES-PRIV CONTRACTOR & OTHER AGENCIES,COMMUNITY INTERMEDIATE CARE,Third Party Payments,Revenue
Walsall Council,http://opendatacommunities.org/id/metropolitan-district-council/walsall,WC99-191,31/12/2018,Adult Social Care,ADVANCE HEALTH CARE (UK) LTD,13/12/2018,442.58,73025-PROFESSIONAL SERVICES-PRIV CONTRACTOR & OTHER AGENCIES,COMMUNITY INTERMEDIATE CARE,Third Party Payments,Revenue
Walsall Council,http://opendatacommunities.org/id/metropolitan-district-council/walsall,WC99-192,31/12/2018,Adult Social Care,ADVANCE HEALTH CARE (UK) LTD,13/12/2018,442.58,73025-PROFESSIONAL SERVICES-PRIV CONTRACTOR & OTHER AGENCIES,COMMUNITY INTERMEDIATE CARE,Third Party Payments,Revenue
Walsall Council,http://opendatacommunities.org/id/metropolitan-district-council/walsall,WC99-193,31/12/2018,Adult Social Care,ADVANCE HEALTH CARE (UK) LTD,13/12/2018,442.58,73025-PROFESSIONAL SERVICES-PRIV CONTRACTOR & OTHER AGENCIES,COMMUNITY INTERMEDIATE CARE,Third Party Payments,Revenue
Walsall Council,http://opendatacommunities.org/id/metropolitan-district-council/walsall,WC99-194,31/12/2018,Adult Social Care,ADVANCE HEALTH CARE (UK) LTD,13/12/2018,442.58,73025-PROFESSIONAL SERVICES-PRIV CONTRACTOR & OTHER AGENCIES,COMMUNITY INTERMEDIATE CARE,Third Party Payments,Revenue
Walsall Council,http://opendatacommunities.org/id/metropolitan-district-council/walsall,WC99-195,31/12/2018,Adult Social Care,ADVANCE HEALTH CARE (UK) LTD,13/12/2018,442.58,73025-PROFESSIONAL SERVICES-PRIV CONTRACTOR & OTHER AGENCIES,COMMUNITY INTERMEDIATE CARE,Third Party Payments,Revenue
Walsall Council,http://opendatacommunities.org/id/metropolitan-district-council/walsall,WC99-196,31/12/2018,Adult Social Care,ADVANCE HEALTH CARE (UK) LTD,01/01/2019,442.58,73025-PROFESSIONAL SERVICES-PRIV CONTRACTOR & OTHER AGENCIES,COMMUNITY INTERMEDIATE CARE,Third Party Payments,Revenue
Walsall Council,http://opendatacommunities.org/id/metropolitan-district-council/walsall,WC99-197,31/12/2018,Adult Social Care,ADVANCE HEALTH CARE (UK) LTD,01/01/2019,442.58,73025-PROFESSIONAL SERVICES-PRIV CONTRACTOR & OTHER AGENCIES,COMMUNITY INTERMEDIATE CARE,Third Party Payments,Revenue
Walsall Council,http://opendatacommunities.org/id/metropolitan-district-council/walsall,WC99-198,31/12/2018,Adult Social Care,ADVANCE HEALTH CARE (UK) LTD,01/01/2019,442.58,73025-PROFESSIONAL SERVICES-PRIV CONTRACTOR & OTHER AGENCIES,COMMUNITY INTERMEDIATE CARE,Third Party Payments,Revenue
Walsall Council,http://opendatacommunities.org/id/metropolitan-district-council/walsall,WC99-199,31/12/2018,Adult Social Care,ADVANCE HEALTH CARE (UK) LTD,01/01/2019,442.58,73025-PROFESSIONAL SERVICES-PRIV CONTRACTOR & OTHER AGENCIES,COMMUNITY INTERMEDIATE CARE,Third Party Payments,Revenue
Walsall Council,http://opendatacommunities.org/id/metropolitan-district-council/walsall,WC99-200,31/12/2018,Adult Social Care,ADVANCE HEALTH CARE (UK) LTD,01/01/2019,442.58,73025-PROFESSIONAL SERVICES-PRIV CONTRACTOR & OTHER AGENCIES,COMMUNITY INTERMEDIATE CARE,Third Party Payments,Revenue
Walsall Council,http://opendatacommunities.org/id/metropolitan-district-council/walsall,WC99-201,31/12/2018,Adult Social Care,ADVANCE HEALTH CARE (UK) LTD,01/01/2019,442.58,73025-PROFESSIONAL SERVICES-PRIV CONTRACTOR & OTHER AGENCIES,COMMUNITY INTERMEDIATE CARE,Third Party Payments,Revenue
Walsall Council,http://opendatacommunities.org/id/metropolitan-district-council/walsall,WC99-202,31/12/2018,Adult Social Care,ADVANCE HEALTH CARE (UK) LTD,01/01/2019,442.58,73025-PROFESSIONAL SERVICES-PRIV CONTRACTOR & OTHER AGENCIES,COMMUNITY INTERMEDIATE CARE,Third Party Payments,Revenue
Walsall Council,http://opendatacommunities.org/id/metropolitan-district-council/walsall,WC99-203,31/12/2018,Adult Social Care,ADVANCE HEALTH CARE (UK) LTD,01/01/2019,442.58,73025-PROFESSIONAL SERVICES-PRIV CONTRACTOR & OTHER AGENCIES,COMMUNITY INTERMEDIATE CARE,Third Party Payments,Revenue
Walsall Council,http://opendatacommunities.org/id/metropolitan-district-council/walsall,WC99-204,31/12/2018,Adult Social Care,ADVANCE HEALTH CARE (UK) LTD,01/01/2019,442.58,73025-PROFESSIONAL SERVICES-PRIV CONTRACTOR & OTHER AGENCIES,COMMUNITY INTERMEDIATE CARE,Third Party Payments,Revenue
Walsall Council,http://opendatacommunities.org/id/metropolitan-district-council/walsall,WC99-205,31/12/2018,Adult Social Care,ADVANCE HEALTH CARE (UK) LTD,01/01/2019,442.58,73025-PROFESSIONAL SERVICES-PRIV CONTRACTOR & OTHER AGENCIES,COMMUNITY INTERMEDIATE CARE,Third Party Payments,Revenue
Walsall Council,http://opendatacommunities.org/id/metropolitan-district-council/walsall,WC99-206,31/12/2018,Adult Social Care,ADVANCE HEALTH CARE (UK) LTD,01/01/2019,442.58,73025-PROFESSIONAL SERVICES-PRIV CONTRACTOR & OTHER AGENCIES,COMMUNITY INTERMEDIATE CARE,Third Party Payments,Revenue
Walsall Council,http://opendatacommunities.org/id/metropolitan-district-council/walsall,WC99-207,31/12/2018,Adult Social Care,ADVANCE HEALTH CARE (UK) LTD,01/01/2019,442.58,73025-PROFESSIONAL SERVICES-PRIV CONTRACTOR & OTHER AGENCIES,COMMUNITY INTERMEDIATE CARE,Third Party Payments,Revenue
Walsall Council,http://opendatacommunities.org/id/metropolitan-district-council/walsall,WC99-208,31/12/2018,Adult Social Care,ADVANCE HEALTH CARE (UK) LTD,01/01/2019,442.58,73025-PROFESSIONAL SERVICES-PRIV CONTRACTOR & OTHER AGENCIES,COMMUNITY INTERMEDIATE CARE,Third Party Payments,Revenue
Walsall Council,http://opendatacommunities.org/id/metropolitan-district-council/walsall,WC99-209,31/12/2018,Adult Social Care,ADVANCE HEALTH CARE (UK) LTD,01/12/2018,449.60,73025-PROFESSIONAL SERVICES-PRIV CONTRACTOR & OTHER AGENCIES,COMMUNITY INTERMEDIATE CARE,Third Party Payments,Revenue
Walsall Council,http://opendatacommunities.org/id/metropolitan-district-council/walsall,WC99-210,31/12/2018,Adult Social Care,ADVANCE HEALTH CARE (UK) LTD,13/12/2018,449.60,73025-PROFESSIONAL SERVICES-PRIV CONTRACTOR & OTHER AGENCIES,COMMUNITY INTERMEDIATE CARE,Third Party Payments,Revenue
Walsall Council,http://opendatacommunities.org/id/metropolitan-district-council/walsall,WC99-211,31/12/2018,Adult Social Care,ADVANCE HEALTH CARE (UK) LTD,13/12/2018,449.60,73025-PROFESSIONAL SERVICES-PRIV CONTRACTOR & OTHER AGENCIES,COMMUNITY INTERMEDIATE CARE,Third Party Payments,Revenue
Walsall Council,http://opendatacommunities.org/id/metropolitan-district-council/walsall,WC99-212,31/12/2018,Adult Social Care,ADVANCE HEALTH CARE (UK) LTD,01/01/2019,449.60,73025-PROFESSIONAL SERVICES-PRIV CONTRACTOR & OTHER AGENCIES,COMMUNITY INTERMEDIATE CARE,Third Party Payments,Revenue
Walsall Council,http://opendatacommunities.org/id/metropolitan-district-council/walsall,WC99-213,31/12/2018,Adult Social Care,ADVANCE HEALTH CARE (UK) LTD,01/12/2018,456.63,73025-PROFESSIONAL SERVICES-PRIV CONTRACTOR & OTHER AGENCIES,COMMUNITY INTERMEDIATE CARE,Third Party Payments,Revenue
Walsall Council,http://opendatacommunities.org/id/metropolitan-district-council/walsall,WC99-214,31/12/2018,Adult Social Care,ADVANCE HEALTH CARE (UK) LTD,01/12/2018,456.63,73025-PROFESSIONAL SERVICES-PRIV CONTRACTOR & OTHER AGENCIES,COMMUNITY INTERMEDIATE CARE,Third Party Payments,Revenue
Walsall Council,http://opendatacommunities.org/id/metropolitan-district-council/walsall,WC99-215,31/12/2018,Adult Social Care,ADVANCE HEALTH CARE (UK) LTD,12/12/2018,456.63,73025-PROFESSIONAL SERVICES-PRIV CONTRACTOR & OTHER AGENCIES,COMMUNITY INTERMEDIATE CARE,Third Party Payments,Revenue
Walsall Council,http://opendatacommunities.org/id/metropolitan-district-council/walsall,WC99-216,31/12/2018,Adult Social Care,ADVANCE HEALTH CARE (UK) LTD,12/12/2018,456.63,73025-PROFESSIONAL SERVICES-PRIV CONTRACTOR & OTHER AGENCIES,COMMUNITY INTERMEDIATE CARE,Third Party Payments,Revenue
Walsall Council,http://opendatacommunities.org/id/metropolitan-district-council/walsall,WC99-217,31/12/2018,Adult Social Care,ADVANCE HEALTH CARE (UK) LTD,12/12/2018,456.63,73025-PROFESSIONAL SERVICES-PRIV CONTRACTOR & OTHER AGENCIES,COMMUNITY INTERMEDIATE CARE,Third Party Payments,Revenue
Walsall Council,http://opendatacommunities.org/id/metropolitan-district-council/walsall,WC99-218,31/12/2018,Adult Social Care,ADVANCE HEALTH CARE (UK) LTD,13/12/2018,456.63,73025-PROFESSIONAL SERVICES-PRIV CONTRACTOR & OTHER AGENCIES,COMMUNITY INTERMEDIATE CARE,Third Party Payments,Revenue
Walsall Council,http://opendatacommunities.org/id/metropolitan-district-council/walsall,WC99-219,31/12/2018,Adult Social Care,ADVANCE HEALTH CARE (UK) LTD,01/01/2019,456.63,73025-PROFESSIONAL SERVICES-PRIV CONTRACTOR & OTHER AGENCIES,COMMUNITY INTERMEDIATE CARE,Third Party Payments,Revenue
Walsall Council,http://opendatacommunities.org/id/metropolitan-district-council/walsall,WC99-220,31/12/2018,Adult Social Care,ADVANCE HEALTH CARE (UK) LTD,12/12/2018,470.68,73025-PROFESSIONAL SERVICES-PRIV CONTRACTOR & OTHER AGENCIES,COMMUNITY INTERMEDIATE CARE,Third Party Payments,Revenue
Walsall Council,http://opendatacommunities.org/id/metropolitan-district-council/walsall,WC99-221,31/12/2018,Adult Social Care,ADVANCE HEALTH CARE (UK) LTD,13/12/2018,470.68,73025-PROFESSIONAL SERVICES-PRIV CONTRACTOR & OTHER AGENCIES,COMMUNITY INTERMEDIATE CARE,Third Party Payments,Revenue
Walsall Council,http://opendatacommunities.org/id/metropolitan-district-council/walsall,WC99-222,31/12/2018,Adult Social Care,ADVANCE HEALTH CARE (UK) LTD,10/12/2018,481.37,73507-DOMICILIARY CARE,PHYSICAL SUPPORT,Third Party Payments,Revenue
Walsall Council,http://opendatacommunities.org/id/metropolitan-district-council/walsall,WC99-223,31/12/2018,Adult Social Care,ADVANCE HEALTH CARE (UK) LTD,10/12/2018,491.96,73507-DOMICILIARY CARE,PHYSICAL SUPPORT,Third Party Payments,Revenue
Walsall Council,http://opendatacommunities.org/id/metropolitan-district-council/walsall,WC99-224,31/12/2018,Adult Social Care,ADVANCE HEALTH CARE (UK) LTD,10/12/2018,505.98,73507-DOMICILIARY CARE,PHYSICAL SUPPORT,Third Party Payments,Revenue
Walsall Council,http://opendatacommunities.org/id/metropolitan-district-council/walsall,WC99-225,31/12/2018,Adult Social Care,ADVANCE HEALTH CARE (UK) LTD,10/12/2018,534.10,73507-DOMICILIARY CARE,PHYSICAL SUPPORT,Third Party Payments,Revenue
Walsall Council,http://opendatacommunities.org/id/metropolitan-district-council/walsall,WC99-226,31/12/2018,Adult Social Care,ADVANCE HEALTH CARE (UK) LTD,10/12/2018,565.73,73507-DOMICILIARY CARE,PHYSICAL SUPPORT,Third Party Payments,Revenue
Walsall Council,http://opendatacommunities.org/id/metropolitan-district-council/walsall,WC99-227,31/12/2018,Adult Social Care,ADVANCE HEALTH CARE (UK) LTD,10/12/2018,569.30,73507-DOMICILIARY CARE,SOCIAL SUPPORT,Third Party Payments,Revenue
Walsall Council,http://opendatacommunities.org/id/metropolitan-district-council/walsall,WC99-228,31/12/2018,Adult Social Care,ADVANCE HEALTH CARE (UK) LTD,10/12/2018,572.77,73507-DOMICILIARY CARE,PHYSICAL SUPPORT,Third Party Payments,Revenue
Walsall Council,http://opendatacommunities.org/id/metropolitan-district-council/walsall,WC99-229,31/12/2018,Adult Social Care,ADVANCE HEALTH CARE (UK) LTD,10/12/2018,587.01,73507-DOMICILIARY CARE,SOCIAL SUPPORT,Third Party Payments,Revenue
Walsall Council,http://opendatacommunities.org/id/metropolitan-district-council/walsall,WC99-230,31/12/2018,Adult Social Care,ADVANCE HEALTH CARE (UK) LTD,10/12/2018,664.19,73507-DOMICILIARY CARE,SOCIAL SUPPORT,Third Party Payments,Revenue
Walsall Council,http://opendatacommunities.org/id/metropolitan-district-council/walsall,WC99-231,31/12/2018,Adult Social Care,ADVANCE HEALTH CARE (UK) LTD,10/12/2018,701.39,73507-DOMICILIARY CARE,PHYSICAL SUPPORT,Third Party Payments,Revenue
Walsall Council,http://opendatacommunities.org/id/metropolitan-district-council/walsall,WC99-232,31/12/2018,Adult Social Care,ADVANCE HEALTH CARE (UK) LTD,10/12/2018,713.44,73507-DOMICILIARY CARE,CARERS,Third Party Payments,Revenue
Walsall Council,http://opendatacommunities.org/id/metropolitan-district-council/walsall,WC99-233,31/12/2018,Adult Social Care,ADVANCE HEALTH CARE (UK) LTD,10/12/2018,734.41,73507-DOMICILIARY CARE,PHYSICAL SUPPORT,Third Party Payments,Revenue
Walsall Council,http://opendatacommunities.org/id/metropolitan-district-council/walsall,WC99-234,31/12/2018,Adult Social Care,ADVANCE HEALTH CARE (UK) LTD,10/12/2018,759.24,73507-DOMICILIARY CARE,PHYSICAL SUPPORT,Third Party Payments,Revenue
Walsall Council,http://opendatacommunities.org/id/metropolitan-district-council/walsall,WC99-235,31/12/2018,Adult Social Care,ADVANCE HEALTH CARE (UK) LTD,10/12/2018,766.32,73507-DOMICILIARY CARE,PHYSICAL SUPPORT,Third Party Payments,Revenue
Walsall Council,http://opendatacommunities.org/id/metropolitan-district-council/walsall,WC99-236,31/12/2018,Adult Social Care,ADVANCE HEALTH CARE (UK) LTD,10/12/2018,780.06,73507-DOMICILIARY CARE,PHYSICAL SUPPORT,Third Party Payments,Revenue
Walsall Council,http://opendatacommunities.org/id/metropolitan-district-council/walsall,WC99-237,31/12/2018,Adult Social Care,ADVANCE HEALTH CARE (UK) LTD,10/12/2018,787.36,73507-DOMICILIARY CARE,PHYSICAL SUPPORT,Third Party Payments,Revenue
Walsall Council,http://opendatacommunities.org/id/metropolitan-district-council/walsall,WC99-238,31/12/2018,Adult Social Care,ADVANCE HEALTH CARE (UK) LTD,10/12/2018,801.22,73507-DOMICILIARY CARE,PHYSICAL SUPPORT,Third Party Payments,Revenue
Walsall Council,http://opendatacommunities.org/id/metropolitan-district-council/walsall,WC99-239,31/12/2018,Adult Social Care,ADVANCE HEALTH CARE (UK) LTD,10/12/2018,801.52,73507-DOMICILIARY CARE,PHYSICAL SUPPORT,Third Party Payments,Revenue
Walsall Council,http://opendatacommunities.org/id/metropolitan-district-council/walsall,WC99-240,31/12/2018,Adult Social Care,ADVANCE HEALTH CARE (UK) LTD,10/12/2018,804.56,73507-DOMICILIARY CARE,PHYSICAL SUPPORT,Third Party Payments,Revenue
Walsall Council,http://opendatacommunities.org/id/metropolitan-district-council/walsall,WC99-241,31/12/2018,Adult Social Care,ADVANCE HEALTH CARE (UK) LTD,10/12/2018,808.48,73507-DOMICILIARY CARE,PHYSICAL SUPPORT,Third Party Payments,Revenue
Walsall Council,http://opendatacommunities.org/id/metropolitan-district-council/walsall,WC99-242,31/12/2018,Adult Social Care,ADVANCE HEALTH CARE (UK) LTD,10/12/2018,857.82,73507-DOMICILIARY CARE,PHYSICAL SUPPORT,Third Party Payments,Revenue
Walsall Council,http://opendatacommunities.org/id/metropolitan-district-council/walsall,WC99-243,31/12/2018,Adult Social Care,ADVANCE HEALTH CARE (UK) LTD,10/12/2018,983.90,73507-DOMICILIARY CARE,PHYSICAL SUPPORT,Third Party Payments,Revenue
Walsall Council,http://opendatacommunities.org/id/metropolitan-district-council/walsall,WC99-244,31/12/2018,Adult Social Care,ADVANCE HEALTH CARE (UK) LTD,10/12/2018,"1,163.59",73507-DOMICILIARY CARE,PHYSICAL SUPPORT,Third Party Payments,Revenue
Walsall Council,http://opendatacommunities.org/id/metropolitan-district-council/walsall,WC99-245,31/12/2018,Adult Social Care,ADVANCE HEALTH CARE (UK) LTD,10/12/2018,"1,173.98",73507-DOMICILIARY CARE,PHYSICAL SUPPORT,Third Party Payments,Revenue
Walsall Council,http://opendatacommunities.org/id/metropolitan-district-council/walsall,WC99-246,31/12/2018,Adult Social Care,ADVANCE HEALTH CARE (UK) LTD,10/12/2018,"1,174.02",73507-DOMICILIARY CARE,SOCIAL SUPPORT,Third Party Payments,Revenue
Walsall Council,http://opendatacommunities.org/id/metropolitan-district-council/walsall,WC99-247,31/12/2018,Adult Social Care,ADVANCE HEALTH CARE (UK) LTD,10/12/2018,"1,203.38",73507-DOMICILIARY CARE,SOCIAL SUPPORT,Third Party Payments,Revenue
Walsall Council,http://opendatacommunities.org/id/metropolitan-district-council/walsall,WC99-248,31/12/2018,Adult Social Care,ADVANCE HEALTH CARE (UK) LTD,10/12/2018,"1,219.68",73507-DOMICILIARY CARE,PHYSICAL SUPPORT,Third Party Payments,Revenue
Walsall Council,http://opendatacommunities.org/id/metropolitan-district-council/walsall,WC99-249,31/12/2018,Adult Social Care,ADVANCE HEALTH CARE (UK) LTD,10/12/2018,"1,309.16",73507-DOMICILIARY CARE,PHYSICAL SUPPORT,Third Party Payments,Revenue
Walsall Council,http://opendatacommunities.org/id/metropolitan-district-council/walsall,WC99-250,31/12/2018,Adult Social Care,ADVANCE HEALTH CARE (UK) LTD,10/12/2018,"1,328.88",73507-DOMICILIARY CARE,PHYSICAL SUPPORT,Third Party Payments,Revenue
Walsall Council,http://opendatacommunities.org/id/metropolitan-district-council/walsall,WC99-251,31/12/2018,Adult Social Care,ADVANCE HEALTH CARE (UK) LTD,10/12/2018,"1,350.17",73507-DOMICILIARY CARE,PHYSICAL SUPPORT,Third Party Payments,Revenue
Walsall Council,http://opendatacommunities.org/id/metropolitan-district-council/walsall,WC99-252,31/12/2018,Adult Social Care,ADVANCE HEALTH CARE (UK) LTD,10/12/2018,"1,377.60",73507-DOMICILIARY CARE,PHYSICAL SUPPORT,Third Party Payments,Revenue
Walsall Council,http://opendatacommunities.org/id/metropolitan-district-council/walsall,WC99-253,31/12/2018,Adult Social Care,ADVANCE HEALTH CARE (UK) LTD,10/12/2018,"1,483.36",73507-DOMICILIARY CARE,PHYSICAL SUPPORT,Third Party Payments,Revenue
Walsall Council,http://opendatacommunities.org/id/metropolitan-district-council/walsall,WC99-254,31/12/2018,Adult Social Care,ADVANCE HEALTH CARE (UK) LTD,10/12/2018,"1,531.96",73507-DOMICILIARY CARE,PHYSICAL SUPPORT,Third Party Payments,Revenue
Walsall Council,http://opendatacommunities.org/id/metropolitan-district-council/walsall,WC99-255,31/12/2018,Adult Social Care,ADVANCE HEALTH CARE (UK) LTD,10/12/2018,"1,539.30",73507-DOMICILIARY CARE,PHYSICAL SUPPORT,Third Party Payments,Revenue
Walsall Council,http://opendatacommunities.org/id/metropolitan-district-council/walsall,WC99-256,31/12/2018,Adult Social Care,ADVANCE HEALTH CARE (UK) LTD,10/12/2018,"1,567.75",73507-DOMICILIARY CARE,PHYSICAL SUPPORT,Third Party Payments,Revenue
Walsall Council,http://opendatacommunities.org/id/metropolitan-district-council/walsall,WC99-257,31/12/2018,Adult Social Care,ADVANCE HEALTH CARE (UK) LTD,10/12/2018,"1,571.22",73507-DOMICILIARY CARE,PHYSICAL SUPPORT,Third Party Payments,Revenue
Walsall Council,http://opendatacommunities.org/id/metropolitan-district-council/walsall,WC99-258,31/12/2018,Adult Social Care,ADVANCE HEALTH CARE (UK) LTD,10/12/2018,"1,588.76",73507-DOMICILIARY CARE,PHYSICAL SUPPORT,Third Party Payments,Revenue
Walsall Council,http://opendatacommunities.org/id/metropolitan-district-council/walsall,WC99-259,31/12/2018,Adult Social Care,ADVANCE HEALTH CARE (UK) LTD,10/12/2018,"1,588.84",73507-DOMICILIARY CARE,PHYSICAL SUPPORT,Third Party Payments,Revenue
Walsall Council,http://opendatacommunities.org/id/metropolitan-district-council/walsall,WC99-260,31/12/2018,Adult Social Care,ADVANCE HEALTH CARE (UK) LTD,10/12/2018,"1,603.21",73507-DOMICILIARY CARE,PHYSICAL SUPPORT,Third Party Payments,Revenue
Walsall Council,http://opendatacommunities.org/id/metropolitan-district-council/walsall,WC99-261,31/12/2018,Adult Social Care,ADVANCE HEALTH CARE (UK) LTD,10/12/2018,"1,613.40",73507-DOMICILIARY CARE,PHYSICAL SUPPORT,Third Party Payments,Revenue
Walsall Council,http://opendatacommunities.org/id/metropolitan-district-council/walsall,WC99-262,31/12/2018,Adult Social Care,ADVANCE HEALTH CARE (UK) LTD,10/12/2018,"1,679.88",73507-DOMICILIARY CARE,SOCIAL SUPPORT,Third Party Payments,Revenue
Walsall Council,http://opendatacommunities.org/id/metropolitan-district-council/walsall,WC99-263,31/12/2018,Adult Social Care,ADVANCE HEALTH CARE (UK) LTD,10/12/2018,"1,771.50",73507-DOMICILIARY CARE,PHYSICAL SUPPORT,Third Party Payments,Revenue
Walsall Council,http://opendatacommunities.org/id/metropolitan-district-council/walsall,WC99-264,31/12/2018,Adult Social Care,ADVANCE HEALTH CARE (UK) LTD,10/12/2018,"1,774.90",73507-DOMICILIARY CARE,PHYSICAL SUPPORT,Third Party Payments,Revenue
Walsall Council,http://opendatacommunities.org/id/metropolitan-district-council/walsall,WC99-265,31/12/2018,Adult Social Care,ADVANCE HEALTH CARE (UK) LTD,10/12/2018,"1,778.32",73507-DOMICILIARY CARE,PHYSICAL SUPPORT,Third Party Payments,Revenue
Walsall Council,http://opendatacommunities.org/id/metropolitan-district-council/walsall,WC99-266,31/12/2018,Adult Social Care,ADVANCE HEALTH CARE (UK) LTD,10/12/2018,"1,778.43",73507-DOMICILIARY CARE,PHYSICAL SUPPORT,Third Party Payments,Revenue
Walsall Council,http://opendatacommunities.org/id/metropolitan-district-council/walsall,WC99-267,31/12/2018,Adult Social Care,ADVANCE HEALTH CARE (UK) LTD,10/12/2018,"1,834.39",73507-DOMICILIARY CARE,PHYSICAL SUPPORT,Third Party Payments,Revenue
Walsall Council,http://opendatacommunities.org/id/metropolitan-district-council/walsall,WC99-268,31/12/2018,Adult Social Care,ADVANCE HEALTH CARE (UK) LTD,10/12/2018,"1,848.52",73507-DOMICILIARY CARE,PHYSICAL SUPPORT,Third Party Payments,Revenue
Walsall Council,http://opendatacommunities.org/id/metropolitan-district-council/walsall,WC99-269,31/12/2018,Adult Social Care,ADVANCE HEALTH CARE (UK) LTD,10/12/2018,"1,866.06",73507-DOMICILIARY CARE,PHYSICAL SUPPORT,Third Party Payments,Revenue
Walsall Council,http://opendatacommunities.org/id/metropolitan-district-council/walsall,WC99-270,31/12/2018,Adult Social Care,ADVANCE HEALTH CARE (UK) LTD,10/12/2018,"1,950.23",73507-DOMICILIARY CARE,PHYSICAL SUPPORT,Third Party Payments,Revenue
Walsall Council,http://opendatacommunities.org/id/metropolitan-district-council/walsall,WC99-271,31/12/2018,Adult Social Care,ADVANCE HEALTH CARE (UK) LTD,10/12/2018,"1,996.19",73507-DOMICILIARY CARE,PHYSICAL SUPPORT,Third Party Payments,Revenue
Walsall Council,http://opendatacommunities.org/id/metropolitan-district-council/walsall,WC99-272,31/12/2018,Adult Social Care,ADVANCE HEALTH CARE (UK) LTD,10/12/2018,"1,996.75",73507-DOMICILIARY CARE,PHYSICAL SUPPORT,Third Party Payments,Revenue
Walsall Council,http://opendatacommunities.org/id/metropolitan-district-council/walsall,WC99-273,31/12/2018,Adult Social Care,ADVANCE HEALTH CARE (UK) LTD,10/12/2018,"2,055.72",73507-DOMICILIARY CARE,PHYSICAL SUPPORT,Third Party Payments,Revenue
Walsall Council,http://opendatacommunities.org/id/metropolitan-district-council/walsall,WC99-274,31/12/2018,Adult Social Care,ADVANCE HEALTH CARE (UK) LTD,10/12/2018,"2,101.79",73507-DOMICILIARY CARE,PHYSICAL SUPPORT,Third Party Payments,Revenue
Walsall Council,http://opendatacommunities.org/id/metropolitan-district-council/walsall,WC99-275,31/12/2018,Adult Social Care,ADVANCE HEALTH CARE (UK) LTD,10/12/2018,"2,350.10",73507-DOMICILIARY CARE,PHYSICAL SUPPORT,Third Party Payments,Revenue
Walsall Council,http://opendatacommunities.org/id/metropolitan-district-council/walsall,WC99-276,31/12/2018,Adult Social Care,ADVANCE HEALTH CARE (UK) LTD,10/12/2018,"2,565.14",73507-DOMICILIARY CARE,SOCIAL SUPPORT,Third Party Payments,Revenue
Walsall Council,http://opendatacommunities.org/id/metropolitan-district-council/walsall,WC99-277,31/12/2018,Adult Social Care,ADVANCE HEALTH CARE (UK) LTD,10/12/2018,"3,117.05",73507-DOMICILIARY CARE,SOCIAL SUPPORT,Third Party Payments,Revenue
Walsall Council,http://opendatacommunities.org/id/metropolitan-district-council/walsall,WC99-278,31/12/2018,Adult Social Care,ADVANCE HEALTH CARE (UK) LTD,10/12/2018,"3,133.66",73507-DOMICILIARY CARE,PHYSICAL SUPPORT,Third Party Payments,Revenue
Walsall Council,http://opendatacommunities.org/id/metropolitan-district-council/walsall,WC99-279,31/12/2018,Adult Social Care,ADVANCE HEALTH CARE (UK) LTD,10/12/2018,"4,720.80",73507-DOMICILIARY CARE,PHYSICAL SUPPORT,Third Party Payments,Revenue
Walsall Council,http://opendatacommunities.org/id/metropolitan-district-council/walsall,WC99-280,31/12/2018,Adult Social Care,ADVANCE HEALTH CARE (UK) LTD,01/12/2018,"9,295.41",73372-DOMICILIARY CARE,OP PACKAGE/PLACEMENT COSTS,Third Party Payments,Revenue
Walsall Council,http://opendatacommunities.org/id/metropolitan-district-council/walsall,WC99-281,31/12/2018,Resources and Transformation,ADVANCED CONTRACTS (MIDLANDS) LTD,14/12/2018,"1,664.00","40000-REPAIRS,ALTERATIONS & MAINTENANCE-PREM",CENTRAL OFFICE ACCOMMODATION,Premises,Revenue
Walsall Council,http://opendatacommunities.org/id/metropolitan-district-council/walsall,WC99-282,31/12/2018,Resources and Transformation,ADVANCED DIGITAL IMAGING,07/12/2018,"1,720.00",62008-OUTWORK-PRINT ROOM,PRINTING SERVICES,Supplies & Services,Revenue
Walsall Council,http://opendatacommunities.org/id/metropolitan-district-council/walsall,WC99-283,31/12/2018,Economy & Environment,AEBI SCHMIDT UK LIMITED,13/12/2018,295.26,60514-MATERIALS TO STORES,FLEET PARTS STOCK ACCOUNT,Supplies & Services,Revenue
Walsall Council,http://opendatacommunities.org/id/metropolitan-district-council/walsall,WC99-284,31/12/2018,Economy & Environment,AEBI SCHMIDT UK LIMITED,21/12/2018,345.65,52001-HIRE OF VEHICLES,FLEET PARTS STOCK ACCOUNT,Transport,Revenue
Walsall Council,http://opendatacommunities.org/id/metropolitan-district-council/walsall,WC99-285,31/12/2018,Economy & Environment,AFGHAN COMMUNITY & WELFARE CENTRE,12/12/2018,"2,550.00",66500-GRANTS TO OTHER ORGS,ESF COMMUNITY GRANTS,Third Party Payments,Revenue
Walsall Council,http://opendatacommunities.org/id/metropolitan-district-council/walsall,WC99-286,31/12/2018,Adult Social Care,REDACTED,07/12/2018,"2,616.00",73506-DIRECT PAYMENT,LEARNING DISABILITY SUPPORT,Third Party Payments,Revenue
Walsall Council,http://opendatacommunities.org/id/metropolitan-district-council/walsall,WC99-287,31/12/2018,Economy & Environment,AIRQUEE,18/12/2018,374.18,60008-MAINTENANCE-FURNITURE & EQUIPMENT,OAK PARK,Supplies & Services,Revenue
Walsall Council,http://opendatacommunities.org/id/metropolitan-district-council/walsall,WC99-288,31/12/2018,Economy & Environment,AIRQUEE,18/12/2018,462.60,60008-MAINTENANCE-FURNITURE & EQUIPMENT,DARLASTON LEISURE CENTRE,Supplies & Services,Revenue
Walsall Council,http://opendatacommunities.org/id/metropolitan-district-council/walsall,WC99-289,31/12/2018,Adult Social Care,REDACTED,07/12/2018,"1,596.25",73506-DIRECT PAYMENT,PHYSICAL SUPPORT,Third Party Payments,Revenue
Walsall Council,http://opendatacommunities.org/id/metropolitan-district-council/walsall,WC99-290,31/12/2018,Adult Social Care,REDACTED,07/12/2018,983.50,73506-DIRECT PAYMENT,PHYSICAL SUPPORT,Third Party Payments,Revenue
Walsall Council,http://opendatacommunities.org/id/metropolitan-district-council/walsall,WC99-291,31/12/2018,Childrens,ALBRIGHTON CARE LTD,28/12/2018,535.71,74036-EXTERNAL RESIDENTIAL CARE-OTH AGENCY PROVISION,INDEPENDENT RESIDENTIAL HOMES,Third Party Payments,Revenue
Walsall Council,http://opendatacommunities.org/id/metropolitan-district-council/walsall,WC99-292,31/12/2018,Childrens,ALBRIGHTON CARE LTD,28/12/2018,"9,980.00",74036-EXTERNAL RESIDENTIAL CARE-OTH AGENCY PROVISION,INDEPENDENT RESIDENTIAL HOMES,Third Party Payments,Revenue
Walsall Council,http://opendatacommunities.org/id/metropolitan-district-council/walsall,WC99-293,31/12/2018,Adult Social Care,ALDERGROVE MANOR LTD,07/12/2018,"1,876.52",73501-RESIDENTIAL EMI,MENTAL HEALTH SUPPORT,Third Party Payments,Revenue
Walsall Council,http://opendatacommunities.org/id/metropolitan-district-council/walsall,WC99-294,31/12/2018,Adult Social Care,ALDERGROVE MANOR LTD,07/12/2018,"2,039.68",73502-NURSING,PHYSICAL SUPPORT,Third Party Payments,Revenue
Walsall Council,http://opendatacommunities.org/id/metropolitan-district-council/walsall,WC99-295,31/12/2018,Childrens,ALDRIDGE & BARONS LIMITED,17/12/2018,"3,210.00",52000-WITH DRIVER-HIRE OF VEHICLES,HOME TO SCHOOL TRANSPORT,Transport,Revenue
Walsall Council,http://opendatacommunities.org/id/metropolitan-district-council/walsall,WC99-296,31/12/2018,Childrens,ALDRIDGE & BARONS LIMITED,10/12/2018,"11,901.20",52000-WITH DRIVER-HIRE OF VEHICLES,HOME TO SCHOOL TRANSPORT,Transport,Revenue
Walsall Council,http://opendatacommunities.org/id/metropolitan-district-council/walsall,WC99-297,31/12/2018,Childrens,ALDRIDGE & BARONS LIMITED,10/12/2018,"16,920.00",52000-WITH DRIVER-HIRE OF VEHICLES,HOME TO SCHOOL TRANSPORT,Transport,Revenue
Walsall Council,http://opendatacommunities.org/id/metropolitan-district-council/walsall,WC99-298,31/12/2018,Adult Social Care,REDACTED,07/12/2018,"1,686.00",73506-DIRECT PAYMENT,PHYSICAL SUPPORT,Third Party Payments,Revenue
Walsall Council,http://opendatacommunities.org/id/metropolitan-district-council/walsall,WC99-299,31/12/2018,Adult Social Care,ALEXANDRA HOUSE CARE SERVICES LTD T/A STONEBRIDGE NURSING HOME,07/12/2018,"7,117.44",73502-NURSING,LEARNING DISABILITY SUPPORT,Third Party Payments,Revenue
Walsall Council,http://opendatacommunities.org/id/metropolitan-district-council/walsall,WC99-300,31/12/2018,Adult Social Care,REDACTED,07/12/2018,"2,214.10",73506-DIRECT PAYMENT,PHYSICAL SUPPORT,Third Party Payments,Revenue
Walsall Council,http://opendatacommunities.org/id/metropolitan-district-council/walsall,WC99-301,31/12/2018,Childrens,REDACTED,11/12/2018,360.00,73506-DIRECT PAYMENT,FAMILY SUPPORT - DIRECT PAYMENTS,Third Party Payments,Revenue
Walsall Council,http://opendatacommunities.org/id/metropolitan-district-council/walsall,WC99-302,31/12/2018,Adult Social Care,REDACTED,07/12/2018,"2,258.10",73506-DIRECT PAYMENT,PHYSICAL SUPPORT,Third Party Payments,Revenue
Walsall Council,http://opendatacommunities.org/id/metropolitan-district-council/walsall,WC99-303,31/12/2018,Adult Social Care,REDACTED,01/01/2019,"1,301.64",73372-DOMICILIARY CARE,LD PACKAGE/PLACEMENT COSTS,Third Party Payments,Revenue
Walsall Council,http://opendatacommunities.org/id/metropolitan-district-council/walsall,WC99-304,31/12/2018,Adult Social Care,REDACTED,07/12/2018,"5,061.60",73506-DIRECT PAYMENT,SOCIAL SUPPORT,Third Party Payments,Revenue
Walsall Council,http://opendatacommunities.org/id/metropolitan-district-council/walsall,WC99-305,31/12/2018,Adult Social Care,ALMA COURT,07/12/2018,"5,705.56",73502-NURSING,PHYSICAL SUPPORT,Third Party Payments,Revenue
Walsall Council,http://opendatacommunities.org/id/metropolitan-district-council/walsall,WC99-306,31/12/2018,Adult Social Care,ALPHA HEALTH CARE LTD,07/12/2018,"1,680.18",73503-NURSING EMI,PHYSICAL SUPPORT,Third Party Payments,Revenue
Walsall Council,http://opendatacommunities.org/id/metropolitan-district-council/walsall,WC99-307,31/12/2018,Adult Social Care,ALPHA HEALTH CARE LTD,07/12/2018,"1,688.84",73500-RESIDENTIAL,MENTAL HEALTH SUPPORT,Third Party Payments,Revenue
Walsall Council,http://opendatacommunities.org/id/metropolitan-district-council/walsall,WC99-308,31/12/2018,Adult Social Care,ALPHA HEALTH CARE LTD,07/12/2018,"1,876.52",73501-RESIDENTIAL EMI,PHYSICAL SUPPORT,Third Party Payments,Revenue
Walsall Council,http://opendatacommunities.org/id/metropolitan-district-council/walsall,WC99-309,31/12/2018,Adult Social Care,ALPHA HEALTH CARE LTD,07/12/2018,"2,039.68",73502-NURSING,PHYSICAL SUPPORT,Third Party Payments,Revenue
Walsall Council,http://opendatacommunities.org/id/metropolitan-district-council/walsall,WC99-310,31/12/2018,Adult Social Care,ALPHA HEALTH CARE LTD,07/12/2018,"2,160.00",73501-RESIDENTIAL EMI,SUPPORT WITH MEMORY & COGNITION,Third Party Payments,Revenue
Walsall Council,http://opendatacommunities.org/id/metropolitan-district-council/walsall,WC99-311,31/12/2018,Adult Social Care,ALPHA HEALTH CARE LTD,07/12/2018,"2,243.64",73503-NURSING EMI,MENTAL HEALTH SUPPORT,Third Party Payments,Revenue
Walsall Council,http://opendatacommunities.org/id/metropolitan-district-council/walsall,WC99-312,31/12/2018,Adult Social Care,ALPHA HEALTH CARE LTD,07/12/2018,"2,243.64",73503-NURSING EMI,MENTAL HEALTH SUPPORT,Third Party Payments,Revenue
Walsall Council,http://opendatacommunities.org/id/metropolitan-district-council/walsall,WC99-313,31/12/2018,Adult Social Care,ALPHA HEALTH CARE LTD,07/12/2018,"2,243.64",73503-NURSING EMI,PHYSICAL SUPPORT,Third Party Payments,Revenue
Walsall Council,http://opendatacommunities.org/id/metropolitan-district-council/walsall,WC99-314,31/12/2018,Adult Social Care,ALPHA HEALTH CARE LTD,21/12/2018,"2,316.43",73373-RESIDENTIAL & NURSING CARE PLACEMENTS,OP PACKAGE/PLACEMENT COSTS,Third Party Payments,Revenue
Walsall Council,http://opendatacommunities.org/id/metropolitan-district-council/walsall,WC99-315,31/12/2018,Adult Social Care,ALPHA HEALTH CARE LTD,07/12/2018,"2,326.00",73502-NURSING,MENTAL HEALTH SUPPORT,Third Party Payments,Revenue
Walsall Council,http://opendatacommunities.org/id/metropolitan-district-council/walsall,WC99-316,31/12/2018,Adult Social Care,ALPHA HEALTH CARE LTD,07/12/2018,"2,379.80",73503-NURSING EMI,PHYSICAL SUPPORT,Third Party Payments,Revenue
Walsall Council,http://opendatacommunities.org/id/metropolitan-district-council/walsall,WC99-317,31/12/2018,Adult Social Care,ALPHA HEALTH CARE LTD,07/12/2018,"2,400.00",73501-RESIDENTIAL EMI,MENTAL HEALTH SUPPORT,Third Party Payments,Revenue
Walsall Council,http://opendatacommunities.org/id/metropolitan-district-council/walsall,WC99-318,31/12/2018,Adult Social Care,ALPHA HEALTH CARE LTD,07/12/2018,"2,484.88",73502-NURSING,PHYSICAL SUPPORT,Third Party Payments,Revenue
Walsall Council,http://opendatacommunities.org/id/metropolitan-district-council/walsall,WC99-319,31/12/2018,Adult Social Care,ALPHA HEALTH CARE LTD,07/12/2018,"2,688.84",73503-NURSING EMI,PHYSICAL SUPPORT,Third Party Payments,Revenue
Walsall Council,http://opendatacommunities.org/id/metropolitan-district-council/walsall,WC99-320,31/12/2018,Adult Social Care,ALPHA HEALTH CARE LTD,07/12/2018,"2,767.36",73503-NURSING EMI,MENTAL HEALTH SUPPORT,Third Party Payments,Revenue
Walsall Council,http://opendatacommunities.org/id/metropolitan-district-council/walsall,WC99-321,31/12/2018,Adult Social Care,ALPHA HEALTH CARE LTD,07/12/2018,"2,767.40",73503-NURSING EMI,PHYSICAL SUPPORT,Third Party Payments,Revenue
Walsall Council,http://opendatacommunities.org/id/metropolitan-district-council/walsall,WC99-322,31/12/2018,Adult Social Care,ALPHA HEALTH CARE LTD,07/12/2018,"2,779.80",73503-NURSING EMI,PHYSICAL SUPPORT,Third Party Payments,Revenue
Walsall Council,http://opendatacommunities.org/id/metropolitan-district-council/walsall,WC99-323,31/12/2018,Adult Social Care,ALPHA HEALTH CARE LTD,07/12/2018,"2,823.44",73503-NURSING EMI,PHYSICAL SUPPORT,Third Party Payments,Revenue
Walsall Council,http://opendatacommunities.org/id/metropolitan-district-council/walsall,WC99-324,31/12/2018,Adult Social Care,ALPHA HEALTH CARE LTD,07/12/2018,"2,940.00",73501-RESIDENTIAL EMI,PHYSICAL SUPPORT,Third Party Payments,Revenue
Walsall Council,http://opendatacommunities.org/id/metropolitan-district-council/walsall,WC99-325,31/12/2018,Adult Social Care,ALPHA HEALTH CARE LTD,07/12/2018,"2,940.00",73501-RESIDENTIAL EMI,SUPPORT WITH MEMORY & COGNITION,Third Party Payments,Revenue
Walsall Council,http://opendatacommunities.org/id/metropolitan-district-council/walsall,WC99-326,31/12/2018,Adult Social Care,ALPHA HEALTH CARE LTD,19/12/2018,"3,857.14",73025-PROFESSIONAL SERVICES-PRIV CONTRACTOR & OTHER AGENCIES,TRANSITIONAL CARE SUPPORT TEAM,Third Party Payments,Revenue
Walsall Council,http://opendatacommunities.org/id/metropolitan-district-council/walsall,WC99-327,31/12/2018,Adult Social Care,ALPHA HEALTH CARE LTD,07/12/2018,"4,052.21",73503-NURSING EMI,MENTAL HEALTH SUPPORT,Third Party Payments,Revenue
Walsall Council,http://opendatacommunities.org/id/metropolitan-district-council/walsall,WC99-328,31/12/2018,Adult Social Care,ALPHA HEALTH CARE LTD,05/12/2018,"4,614.29",73025-PROFESSIONAL SERVICES-PRIV CONTRACTOR & OTHER AGENCIES,TRANSITIONAL CARE SUPPORT TEAM,Third Party Payments,Revenue
Walsall Council,http://opendatacommunities.org/id/metropolitan-district-council/walsall,WC99-329,31/12/2018,Adult Social Care,ALPHA HEALTH CARE LTD,07/12/2018,"5,440.28",73503-NURSING EMI,MENTAL HEALTH SUPPORT,Third Party Payments,Revenue
Walsall Council,http://opendatacommunities.org/id/metropolitan-district-council/walsall,WC99-330,31/12/2018,Childrens,ALPHA TRAINING ACADEMY UK LTD,07/12/2018,"6,618.00",66502-TOP UP FUNDING -GRANTS TO SCHOOLS,INDEPENDENT PROVIDERS - POST SCHOOL,Third Party Payments,Revenue
Walsall Council,http://opendatacommunities.org/id/metropolitan-district-council/walsall,WC99-331,31/12/2018,Childrens,ALPHABIOLABS,13/12/2018,"2,469.00",63000-PROFESSIONAL FEES AND SERVICES,SAFEGUARDING & FAMILY SUPPORT,Supplies & Services,Revenue
Walsall Council,http://opendatacommunities.org/id/metropolitan-district-council/walsall,WC99-332,31/12/2018,Childrens,REDACTED,13/12/2018,318.08,74510-RESIDENTS ORDERS,ADOPTION ALLOWANCES,Third Party Payments,Revenue
Walsall Council,http://opendatacommunities.org/id/metropolitan-district-council/walsall,WC99-333,31/12/2018,Childrens,REDACTED,13/12/2018,318.08,74510-RESIDENTS ORDERS,ADOPTION ALLOWANCES,Third Party Payments,Revenue
Walsall Council,http://opendatacommunities.org/id/metropolitan-district-council/walsall,WC99-334,31/12/2018,Adult Social Care,REDACTED,07/12/2018,"1,410.95",73506-DIRECT PAYMENT,LEARNING DISABILITY SUPPORT,Third Party Payments,Revenue
Walsall Council,http://opendatacommunities.org/id/metropolitan-district-council/walsall,WC99-335,31/12/2018,Childrens,REDACTED,13/12/2018,808.04,74009-ADOPTION ALLOWANCE,ADOPTION ALLOWANCES,Transfer Payments,Revenue
Walsall Council,http://opendatacommunities.org/id/metropolitan-district-council/walsall,WC99-336,31/12/2018,Childrens,REDACTED,01/12/2018,110.00,74504-HOLIDAY/CHRISTMAS ALLOWANCE-FOSTER CARERS,INTERNAL FOSTER CARE PROVISION,Transfer Payments,Revenue
Walsall Council,http://opendatacommunities.org/id/metropolitan-district-council/walsall,WC99-337,31/12/2018,Childrens,REDACTED,01/01/2019,192.25,74506-TRAVEL-FOSTER CARERS,INTERNAL FOSTER CARE PROVISION,Transfer Payments,Revenue
Walsall Council,http://opendatacommunities.org/id/metropolitan-district-council/walsall,WC99-338,31/12/2018,Childrens,REDACTED,01/12/2018,578.57,74501-MAINTENANCE ALLOWANCE-FOSTER CARERS,INTERNAL FOSTER CARE PROVISION,Transfer Payments,Revenue
Walsall Council,http://opendatacommunities.org/id/metropolitan-district-council/walsall,WC99-339,31/12/2018,Childrens,REDACTED,01/01/2019,600.00,74501-MAINTENANCE ALLOWANCE-FOSTER CARERS,INTERNAL FOSTER CARE PROVISION,Transfer Payments,Revenue
Walsall Council,http://opendatacommunities.org/id/metropolitan-district-council/walsall,WC99-340,31/12/2018,Childrens,REDACTED,01/12/2018,"1,000.00",74508-INTERNAL FOSTER CARERS-CARER FEES,INTERNAL FOSTER CARE PROVISION,Transfer Payments,Revenue
Walsall Council,http://opendatacommunities.org/id/metropolitan-district-council/walsall,WC99-341,31/12/2018,Childrens,REDACTED,01/01/2019,"1,000.00",74508-INTERNAL FOSTER CARERS-CARER FEES,INTERNAL FOSTER CARE PROVISION,Transfer Payments,Revenue
Walsall Council,http://opendatacommunities.org/id/metropolitan-district-council/walsall,WC99-342,31/12/2018,Childrens,AMANS TRAVEL LTD,17/12/2018,"18,170.00",52000-WITH DRIVER-HIRE OF VEHICLES,HOME TO SCHOOL TRANSPORT,Transport,Revenue
Walsall Council,http://opendatacommunities.org/id/metropolitan-district-council/walsall,WC99-343,31/12/2018,Adult Social Care,REDACTED,07/12/2018,"1,122.00",73506-DIRECT PAYMENT,LEARNING DISABILITY SUPPORT,Third Party Payments,Revenue
Walsall Council,http://opendatacommunities.org/id/metropolitan-district-council/walsall,WC99-344,31/12/2018,Economy & Environment,AMBUR RADIO,19/12/2018,"2,988.00",66500-GRANTS TO OTHER ORGS,ESF COMMUNITY GRANTS,Third Party Payments,Revenue
Walsall Council,http://opendatacommunities.org/id/metropolitan-district-council/walsall,WC99-345,31/12/2018,Economy & Environment,AMEY LG LIMITED,05/12/2018,"1,228.50",01006-SITE WORKS MAIN CONTRACTORS,CFR 1128 A461 NATIONAL PRODUCTIVITY INVESTMENT FUND (NPIF),Capital,Capital
Walsall Council,http://opendatacommunities.org/id/metropolitan-district-council/walsall,WC99-346,31/12/2018,Economy & Environment,AMEY LG LIMITED,01/01/2019,"1,653.56",01006-SITE WORKS MAIN CONTRACTORS,CFR 1281 HIGHWAY EFFICIENCY PROGRAMME,Capital,Capital
Walsall Council,http://opendatacommunities.org/id/metropolitan-district-council/walsall,WC99-347,31/12/2018,Economy & Environment,AMEY LG LIMITED,03/12/2018,"18,070.68",01009-SITE WORKS - OTHER CONTRACTORS,CFR 1281 MEASURES TO ENCOURAGE CYCLING : UPGRADE TO ZEBRA CROSSINGS,Capital,Capital
Walsall Council,http://opendatacommunities.org/id/metropolitan-district-council/walsall,WC99-348,31/12/2018,Childrens,AMG NURSING CARE SERVICES,05/12/2018,"1,491.16",63000-PROFESSIONAL FEES AND SERVICES,DIRECTLY COMMISSIONED NURSING SERVICES,Supplies & Services,Revenue
Walsall Council,http://opendatacommunities.org/id/metropolitan-district-council/walsall,WC99-349,31/12/2018,Childrens,AMG NURSING CARE SERVICES,05/12/2018,"2,259.22",63000-PROFESSIONAL FEES AND SERVICES,DIRECTLY COMMISSIONED NURSING SERVICES,Supplies & Services,Revenue
Walsall Council,http://opendatacommunities.org/id/metropolitan-district-council/walsall,WC99-350,31/12/2018,Childrens,AMG NURSING CARE SERVICES,13/12/2018,"2,440.78",63000-PROFESSIONAL FEES AND SERVICES,DIRECTLY COMMISSIONED NURSING SERVICES,Supplies & Services,Revenue
Walsall Council,http://opendatacommunities.org/id/metropolitan-district-council/walsall,WC99-351,31/12/2018,Adult Social Care,AMG NURSING CARE SERVICES,28/12/2018,"10,711.68",73508-COMMUNITY SUPPORTED LIVING/SUPPORTED ACCOMMODATION,PHYSICAL SUPPORT,Third Party Payments,Revenue
Walsall Council,http://opendatacommunities.org/id/metropolitan-district-council/walsall,WC99-352,31/12/2018,Adult Social Care,AMG NURSING CARE SERVICES,28/12/2018,"10,711.68",73508-COMMUNITY SUPPORTED LIVING/SUPPORTED ACCOMMODATION,PHYSICAL SUPPORT,Third Party Payments,Revenue
Walsall Council,http://opendatacommunities.org/id/metropolitan-district-council/walsall,WC99-353,31/12/2018,Adult Social Care,REDACTED,07/12/2018,"1,416.80",73506-DIRECT PAYMENT,PHYSICAL SUPPORT,Third Party Payments,Revenue
Walsall Council,http://opendatacommunities.org/id/metropolitan-district-council/walsall,WC99-354,31/12/2018,Childrens,REDACTED,13/12/2018,340.00,74508-INTERNAL FOSTER CARERS-CARER FEES,FAMILY & FRIENDS FOSTER CARE PROVISION,Transfer Payments,Revenue
Walsall Council,http://opendatacommunities.org/id/metropolitan-district-council/walsall,WC99-355,31/12/2018,Childrens,REDACTED,13/12/2018,600.00,74501-MAINTENANCE ALLOWANCE-FOSTER CARERS,FAMILY & FRIENDS FOSTER CARE PROVISION,Transfer Payments,Revenue
Walsall Council,http://opendatacommunities.org/id/metropolitan-district-council/walsall,WC99-356,31/12/2018,Childrens,REDACTED,13/12/2018,425.08,74510-RESIDENTS ORDERS,ADOPTION ALLOWANCES,Third Party Payments,Revenue
Walsall Council,http://opendatacommunities.org/id/metropolitan-district-council/walsall,WC99-357,31/12/2018,Adult Social Care,ANCHOR,07/12/2018,712.46,73501-RESIDENTIAL EMI,PHYSICAL SUPPORT,Third Party Payments,Revenue
Walsall Council,http://opendatacommunities.org/id/metropolitan-district-council/walsall,WC99-358,31/12/2018,Adult Social Care,ANCHOR,07/12/2018,"1,688.84",73500-RESIDENTIAL,SUPPORT WITH MEMORY & COGNITION,Third Party Payments,Revenue
Walsall Council,http://opendatacommunities.org/id/metropolitan-district-council/walsall,WC99-359,31/12/2018,Adult Social Care,ANCHOR,07/12/2018,"1,688.84",73500-RESIDENTIAL,PHYSICAL SUPPORT,Third Party Payments,Revenue
Walsall Council,http://opendatacommunities.org/id/metropolitan-district-council/walsall,WC99-360,31/12/2018,Adult Social Care,ANCHOR,07/12/2018,"1,688.84",73500-RESIDENTIAL,PHYSICAL SUPPORT,Third Party Payments,Revenue
Walsall Council,http://opendatacommunities.org/id/metropolitan-district-council/walsall,WC99-361,31/12/2018,Adult Social Care,ANCHOR,07/12/2018,"1,840.00",73501-RESIDENTIAL EMI,PHYSICAL SUPPORT,Third Party Payments,Revenue
Walsall Council,http://opendatacommunities.org/id/metropolitan-district-council/walsall,WC99-362,31/12/2018,Adult Social Care,ANCHOR,07/12/2018,"1,840.00",73500-RESIDENTIAL,PHYSICAL SUPPORT,Third Party Payments,Revenue
Walsall Council,http://opendatacommunities.org/id/metropolitan-district-council/walsall,WC99-363,31/12/2018,Adult Social Care,ANCHOR,07/12/2018,"1,848.84",73500-RESIDENTIAL,PHYSICAL SUPPORT,Third Party Payments,Revenue
Walsall Council,http://opendatacommunities.org/id/metropolitan-district-council/walsall,WC99-364,31/12/2018,Adult Social Care,ANCHOR,07/12/2018,"1,876.52",73501-RESIDENTIAL EMI,PHYSICAL SUPPORT,Third Party Payments,Revenue
Walsall Council,http://opendatacommunities.org/id/metropolitan-district-council/walsall,WC99-365,31/12/2018,Adult Social Care,ANCHOR,07/12/2018,"1,876.52",73501-RESIDENTIAL EMI,SUPPORT WITH MEMORY & COGNITION,Third Party Payments,Revenue
Walsall Council,http://opendatacommunities.org/id/metropolitan-district-council/walsall,WC99-366,31/12/2018,Adult Social Care,ANCHOR,07/12/2018,"1,876.52",73501-RESIDENTIAL EMI,MENTAL HEALTH SUPPORT,Third Party Payments,Revenue
Walsall Council,http://opendatacommunities.org/id/metropolitan-district-council/walsall,WC99-367,31/12/2018,Adult Social Care,ANCHOR,07/12/2018,"1,876.52",73501-RESIDENTIAL EMI,SUPPORT WITH MEMORY & COGNITION,Third Party Payments,Revenue
Walsall Council,http://opendatacommunities.org/id/metropolitan-district-council/walsall,WC99-368,31/12/2018,Adult Social Care,ANCHOR,07/12/2018,"1,876.52",73501-RESIDENTIAL EMI,MENTAL HEALTH SUPPORT,Third Party Payments,Revenue
Walsall Council,http://opendatacommunities.org/id/metropolitan-district-council/walsall,WC99-369,31/12/2018,Adult Social Care,ANCHOR,07/12/2018,"1,876.52",73501-RESIDENTIAL EMI,MENTAL HEALTH SUPPORT,Third Party Payments,Revenue
Walsall Council,http://opendatacommunities.org/id/metropolitan-district-council/walsall,WC99-370,31/12/2018,Adult Social Care,ANCHOR,07/12/2018,"1,876.52",73501-RESIDENTIAL EMI,SUPPORT WITH MEMORY & COGNITION,Third Party Payments,Revenue
Walsall Council,http://opendatacommunities.org/id/metropolitan-district-council/walsall,WC99-371,31/12/2018,Adult Social Care,ANCHOR,07/12/2018,"1,876.52",73501-RESIDENTIAL EMI,MENTAL HEALTH SUPPORT,Third Party Payments,Revenue
Walsall Council,http://opendatacommunities.org/id/metropolitan-district-council/walsall,WC99-372,31/12/2018,Adult Social Care,ANCHOR,07/12/2018,"1,876.52",73501-RESIDENTIAL EMI,PHYSICAL SUPPORT,Third Party Payments,Revenue
Walsall Council,http://opendatacommunities.org/id/metropolitan-district-council/walsall,WC99-373,31/12/2018,Adult Social Care,ANCHOR,07/12/2018,"1,876.52",73501-RESIDENTIAL EMI,PHYSICAL SUPPORT,Third Party Payments,Revenue
Walsall Council,http://opendatacommunities.org/id/metropolitan-district-council/walsall,WC99-374,31/12/2018,Adult Social Care,ANCHOR,07/12/2018,"1,876.52",73501-RESIDENTIAL EMI,PHYSICAL SUPPORT,Third Party Payments,Revenue
Walsall Council,http://opendatacommunities.org/id/metropolitan-district-council/walsall,WC99-375,31/12/2018,Adult Social Care,ANCHOR,07/12/2018,"1,876.52",73501-RESIDENTIAL EMI,PHYSICAL SUPPORT,Third Party Payments,Revenue
Walsall Council,http://opendatacommunities.org/id/metropolitan-district-council/walsall,WC99-376,31/12/2018,Adult Social Care,ANCHOR,07/12/2018,"1,876.52",73501-RESIDENTIAL EMI,PHYSICAL SUPPORT,Third Party Payments,Revenue
Walsall Council,http://opendatacommunities.org/id/metropolitan-district-council/walsall,WC99-377,31/12/2018,Adult Social Care,ANCHOR,07/12/2018,"1,968.84",73500-RESIDENTIAL,SENSORY SUPPORT,Third Party Payments,Revenue
Walsall Council,http://opendatacommunities.org/id/metropolitan-district-council/walsall,WC99-378,31/12/2018,Adult Social Care,ANCHOR,07/12/2018,"2,028.84",73500-RESIDENTIAL,PHYSICAL SUPPORT,Third Party Payments,Revenue
Walsall Council,http://opendatacommunities.org/id/metropolitan-district-council/walsall,WC99-379,31/12/2018,Adult Social Care,ANCHOR,07/12/2018,"2,048.84",73501-RESIDENTIAL EMI,SENSORY SUPPORT,Third Party Payments,Revenue
Walsall Council,http://opendatacommunities.org/id/metropolitan-district-council/walsall,WC99-380,31/12/2018,Adult Social Care,ANCHOR,07/12/2018,"2,076.52",73501-RESIDENTIAL EMI,SUPPORT WITH MEMORY & COGNITION,Third Party Payments,Revenue
Walsall Council,http://opendatacommunities.org/id/metropolitan-district-council/walsall,WC99-381,31/12/2018,Adult Social Care,ANCHOR,07/12/2018,"2,080.00",73501-RESIDENTIAL EMI,MENTAL HEALTH SUPPORT,Third Party Payments,Revenue
Walsall Council,http://opendatacommunities.org/id/metropolitan-district-council/walsall,WC99-382,31/12/2018,Adult Social Care,ANCHOR,07/12/2018,"2,180.00",73500-RESIDENTIAL,PHYSICAL SUPPORT,Third Party Payments,Revenue
Walsall Council,http://opendatacommunities.org/id/metropolitan-district-council/walsall,WC99-383,31/12/2018,Adult Social Care,ANCHOR,07/12/2018,"2,200.00",73500-RESIDENTIAL,PHYSICAL SUPPORT,Third Party Payments,Revenue
Walsall Council,http://opendatacommunities.org/id/metropolitan-district-council/walsall,WC99-384,31/12/2018,Adult Social Care,ANCHOR,07/12/2018,"2,216.52",73501-RESIDENTIAL EMI,SUPPORT WITH MEMORY & COGNITION,Third Party Payments,Revenue
Walsall Council,http://opendatacommunities.org/id/metropolitan-district-council/walsall,WC99-385,31/12/2018,Adult Social Care,ANCHOR,07/12/2018,"2,236.52",73501-RESIDENTIAL EMI,PHYSICAL SUPPORT,Third Party Payments,Revenue
Walsall Council,http://opendatacommunities.org/id/metropolitan-district-council/walsall,WC99-386,31/12/2018,Childrens,REDACTED,13/12/2018,314.44,74509-SPECIAL GUARDIANSHIP ORDERS,ADOPTION ALLOWANCES,Transfer Payments,Revenue
Walsall Council,http://opendatacommunities.org/id/metropolitan-district-council/walsall,WC99-387,31/12/2018,Childrens,REDACTED,01/12/2018,150.00,74503-BIRTHDAY ALLOWANCE-FOSTER CARERS,INTERNAL FOSTER CARE PROVISION,Transfer Payments,Revenue
Walsall Council,http://opendatacommunities.org/id/metropolitan-district-council/walsall,WC99-388,31/12/2018,Childrens,REDACTED,01/12/2018,150.00,74504-HOLIDAY/CHRISTMAS ALLOWANCE-FOSTER CARERS,INTERNAL FOSTER CARE PROVISION,Transfer Payments,Revenue
Walsall Council,http://opendatacommunities.org/id/metropolitan-district-council/walsall,WC99-389,31/12/2018,Childrens,REDACTED,01/12/2018,491.51,74506-TRAVEL-FOSTER CARERS,INTERNAL FOSTER CARE PROVISION,Transfer Payments,Revenue
Walsall Council,http://opendatacommunities.org/id/metropolitan-district-council/walsall,WC99-390,31/12/2018,Childrens,REDACTED,01/12/2018,720.00,74501-MAINTENANCE ALLOWANCE-FOSTER CARERS,INTERNAL FOSTER CARE PROVISION,Transfer Payments,Revenue
Walsall Council,http://opendatacommunities.org/id/metropolitan-district-council/walsall,WC99-391,31/12/2018,Childrens,REDACTED,01/01/2019,720.00,74501-MAINTENANCE ALLOWANCE-FOSTER CARERS,INTERNAL FOSTER CARE PROVISION,Transfer Payments,Revenue
Walsall Council,http://opendatacommunities.org/id/metropolitan-district-council/walsall,WC99-392,31/12/2018,Childrens,REDACTED,01/12/2018,"1,000.00",74508-INTERNAL FOSTER CARERS-CARER FEES,INTERNAL FOSTER CARE PROVISION,Transfer Payments,Revenue
Walsall Council,http://opendatacommunities.org/id/metropolitan-district-council/walsall,WC99-393,31/12/2018,Childrens,REDACTED,01/01/2019,"1,000.00",74508-INTERNAL FOSTER CARERS-CARER FEES,INTERNAL FOSTER CARE PROVISION,Transfer Payments,Revenue
Walsall Council,http://opendatacommunities.org/id/metropolitan-district-council/walsall,WC99-394,31/12/2018,Adult Social Care,REDACTED,07/12/2018,"1,857.72",73506-DIRECT PAYMENT,LEARNING DISABILITY SUPPORT,Third Party Payments,Revenue
Walsall Council,http://opendatacommunities.org/id/metropolitan-district-council/walsall,WC99-395,31/12/2018,Adult Social Care,REDACTED,07/12/2018,"2,214.10",73506-DIRECT PAYMENT,PHYSICAL SUPPORT,Third Party Payments,Revenue
Walsall Council,http://opendatacommunities.org/id/metropolitan-district-council/walsall,WC99-396,31/12/2018,Adult Social Care,ANGEL COURT RESIDENTIAL CARE HOME,07/12/2018,289.68,73504-SHORT STAY RESIDENTIAL,PHYSICAL SUPPORT,Third Party Payments,Revenue
Walsall Council,http://opendatacommunities.org/id/metropolitan-district-council/walsall,WC99-397,31/12/2018,Adult Social Care,ANGEL COURT RESIDENTIAL CARE HOME,07/12/2018,"1,688.84",73500-RESIDENTIAL,PHYSICAL SUPPORT,Third Party Payments,Revenue
Walsall Council,http://opendatacommunities.org/id/metropolitan-district-council/walsall,WC99-398,31/12/2018,Adult Social Care,ANGEL COURT RESIDENTIAL CARE HOME,07/12/2018,"1,688.84",73500-RESIDENTIAL,PHYSICAL SUPPORT,Third Party Payments,Revenue
Walsall Council,http://opendatacommunities.org/id/metropolitan-district-council/walsall,WC99-399,31/12/2018,Adult Social Care,ANGEL COURT RESIDENTIAL CARE HOME,07/12/2018,"1,876.52",73501-RESIDENTIAL EMI,PHYSICAL SUPPORT,Third Party Payments,Revenue
Walsall Council,http://opendatacommunities.org/id/metropolitan-district-council/walsall,WC99-400,31/12/2018,Adult Social Care,ANGEL COURT RESIDENTIAL CARE HOME,07/12/2018,"1,949.68",73501-RESIDENTIAL EMI,PHYSICAL SUPPORT,Third Party Payments,Revenue
Walsall Council,http://opendatacommunities.org/id/metropolitan-district-council/walsall,WC99-401,31/12/2018,Childrens,REDACTED,13/12/2018,368.76,74509-SPECIAL GUARDIANSHIP ORDERS,ADOPTION ALLOWANCES,Transfer Payments,Revenue
Walsall Council,http://opendatacommunities.org/id/metropolitan-district-council/walsall,WC99-402,31/12/2018,Childrens,REDACTED,13/12/2018,368.76,74509-SPECIAL GUARDIANSHIP ORDERS,ADOPTION ALLOWANCES,Transfer Payments,Revenue
Walsall Council,http://opendatacommunities.org/id/metropolitan-district-council/walsall,WC99-403,31/12/2018,Childrens,REDACTED,13/12/2018,500.16,74509-SPECIAL GUARDIANSHIP ORDERS,ADOPTION ALLOWANCES,Transfer Payments,Revenue
Walsall Council,http://opendatacommunities.org/id/metropolitan-district-council/walsall,WC99-404,31/12/2018,Childrens,REDACTED,13/12/2018,312.04,74509-SPECIAL GUARDIANSHIP ORDERS,ADOPTION ALLOWANCES,Transfer Payments,Revenue
Walsall Council,http://opendatacommunities.org/id/metropolitan-district-council/walsall,WC99-405,31/12/2018,Adult Social Care,REDACTED,07/12/2018,"1,440.15",73506-DIRECT PAYMENT,PHYSICAL SUPPORT,Third Party Payments,Revenue
Walsall Council,http://opendatacommunities.org/id/metropolitan-district-council/walsall,WC99-406,31/12/2018,Adult Social Care,ANSON COURT RESIDENTIAL HOME,21/12/2018,"1,072.30",73373-RESIDENTIAL & NURSING CARE PLACEMENTS,OP PACKAGE/PLACEMENT COSTS,Third Party Payments,Revenue
Walsall Council,http://opendatacommunities.org/id/metropolitan-district-council/walsall,WC99-407,31/12/2018,Adult Social Care,ANSON COURT RESIDENTIAL HOME,07/12/2018,"1,876.52",73501-RESIDENTIAL EMI,PHYSICAL SUPPORT,Third Party Payments,Revenue
Walsall Council,http://opendatacommunities.org/id/metropolitan-district-council/walsall,WC99-408,31/12/2018,Adult Social Care,ANSON COURT RESIDENTIAL HOME,07/12/2018,"1,876.52",73501-RESIDENTIAL EMI,MENTAL HEALTH SUPPORT,Third Party Payments,Revenue
Walsall Council,http://opendatacommunities.org/id/metropolitan-district-council/walsall,WC99-409,31/12/2018,Adult Social Care,ANSON COURT RESIDENTIAL HOME,07/12/2018,"1,876.52",73501-RESIDENTIAL EMI,MENTAL HEALTH SUPPORT,Third Party Payments,Revenue
Walsall Council,http://opendatacommunities.org/id/metropolitan-district-council/walsall,WC99-410,31/12/2018,Adult Social Care,ANSON COURT RESIDENTIAL HOME,07/12/2018,"1,876.52",73501-RESIDENTIAL EMI,SUPPORT WITH MEMORY & COGNITION,Third Party Payments,Revenue
Walsall Council,http://opendatacommunities.org/id/metropolitan-district-council/walsall,WC99-411,31/12/2018,Adult Social Care,ANSON COURT RESIDENTIAL HOME,07/12/2018,"1,876.52",73501-RESIDENTIAL EMI,PHYSICAL SUPPORT,Third Party Payments,Revenue
Walsall Council,http://opendatacommunities.org/id/metropolitan-district-council/walsall,WC99-412,31/12/2018,Adult Social Care,ANSON COURT RESIDENTIAL HOME,07/12/2018,"1,876.52",73501-RESIDENTIAL EMI,PHYSICAL SUPPORT,Third Party Payments,Revenue
Walsall Council,http://opendatacommunities.org/id/metropolitan-district-council/walsall,WC99-413,31/12/2018,Adult Social Care,ANSON COURT RESIDENTIAL HOME,07/12/2018,"1,876.52",73501-RESIDENTIAL EMI,MENTAL HEALTH SUPPORT,Third Party Payments,Revenue
Walsall Council,http://opendatacommunities.org/id/metropolitan-district-council/walsall,WC99-414,31/12/2018,Adult Social Care,ANSON COURT RESIDENTIAL HOME,07/12/2018,"1,876.52",73501-RESIDENTIAL EMI,PHYSICAL SUPPORT,Third Party Payments,Revenue
Walsall Council,http://opendatacommunities.org/id/metropolitan-district-council/walsall,WC99-415,31/12/2018,Adult Social Care,ANSON COURT RESIDENTIAL HOME,07/12/2018,"1,876.52",73501-RESIDENTIAL EMI,PHYSICAL SUPPORT,Third Party Payments,Revenue
Walsall Council,http://opendatacommunities.org/id/metropolitan-district-council/walsall,WC99-416,31/12/2018,Adult Social Care,ANSON COURT RESIDENTIAL HOME,07/12/2018,"1,876.52",73501-RESIDENTIAL EMI,SUPPORT WITH MEMORY & COGNITION,Third Party Payments,Revenue
Walsall Council,http://opendatacommunities.org/id/metropolitan-district-council/walsall,WC99-417,31/12/2018,Adult Social Care,ANSON COURT RESIDENTIAL HOME,07/12/2018,"1,876.52",73501-RESIDENTIAL EMI,SUPPORT WITH MEMORY & COGNITION,Third Party Payments,Revenue
Walsall Council,http://opendatacommunities.org/id/metropolitan-district-council/walsall,WC99-418,31/12/2018,Adult Social Care,ANSON COURT RESIDENTIAL HOME,07/12/2018,"1,876.52",73501-RESIDENTIAL EMI,SOCIAL SUPPORT,Third Party Payments,Revenue
Walsall Council,http://opendatacommunities.org/id/metropolitan-district-council/walsall,WC99-419,31/12/2018,Adult Social Care,ANSON COURT RESIDENTIAL HOME,07/12/2018,"1,876.52",73501-RESIDENTIAL EMI,SUPPORT WITH MEMORY & COGNITION,Third Party Payments,Revenue
Walsall Council,http://opendatacommunities.org/id/metropolitan-district-council/walsall,WC99-420,31/12/2018,Adult Social Care,ANSON COURT RESIDENTIAL HOME,07/12/2018,"1,876.52",73501-RESIDENTIAL EMI,SUPPORT WITH MEMORY & COGNITION,Third Party Payments,Revenue
Walsall Council,http://opendatacommunities.org/id/metropolitan-district-council/walsall,WC99-421,31/12/2018,Adult Social Care,ANSON COURT RESIDENTIAL HOME,07/12/2018,"1,876.52",73501-RESIDENTIAL EMI,SOCIAL SUPPORT,Third Party Payments,Revenue
Walsall Council,http://opendatacommunities.org/id/metropolitan-district-council/walsall,WC99-422,31/12/2018,Adult Social Care,ANSON COURT RESIDENTIAL HOME,07/12/2018,"1,956.52",73501-RESIDENTIAL EMI,SOCIAL SUPPORT,Third Party Payments,Revenue
Walsall Council,http://opendatacommunities.org/id/metropolitan-district-council/walsall,WC99-423,31/12/2018,Adult Social Care,ANSON COURT RESIDENTIAL HOME,07/12/2018,"1,956.52",73501-RESIDENTIAL EMI,MENTAL HEALTH SUPPORT,Third Party Payments,Revenue
Walsall Council,http://opendatacommunities.org/id/metropolitan-district-council/walsall,WC99-424,31/12/2018,Adult Social Care,ANSON COURT RESIDENTIAL HOME,07/12/2018,"1,956.52",73501-RESIDENTIAL EMI,PHYSICAL SUPPORT,Third Party Payments,Revenue
Walsall Council,http://opendatacommunities.org/id/metropolitan-district-council/walsall,WC99-425,31/12/2018,Adult Social Care,ANSON COURT RESIDENTIAL HOME,07/12/2018,"1,956.52",73501-RESIDENTIAL EMI,PHYSICAL SUPPORT,Third Party Payments,Revenue
Walsall Council,http://opendatacommunities.org/id/metropolitan-district-council/walsall,WC99-426,31/12/2018,Adult Social Care,ANSON COURT RESIDENTIAL HOME,07/12/2018,"1,996.52",73501-RESIDENTIAL EMI,PHYSICAL SUPPORT,Third Party Payments,Revenue
Walsall Council,http://opendatacommunities.org/id/metropolitan-district-council/walsall,WC99-427,31/12/2018,Adult Social Care,ANSON COURT RESIDENTIAL HOME,07/12/2018,"1,996.52",73501-RESIDENTIAL EMI,PHYSICAL SUPPORT,Third Party Payments,Revenue
Walsall Council,http://opendatacommunities.org/id/metropolitan-district-council/walsall,WC99-428,31/12/2018,Adult Social Care,ANSON COURT RESIDENTIAL HOME,07/12/2018,"1,996.52",73501-RESIDENTIAL EMI,MENTAL HEALTH SUPPORT,Third Party Payments,Revenue
Walsall Council,http://opendatacommunities.org/id/metropolitan-district-council/walsall,WC99-429,31/12/2018,Adult Social Care,ANSON COURT RESIDENTIAL HOME,07/12/2018,"4,956.52",73501-RESIDENTIAL EMI,MENTAL HEALTH SUPPORT,Third Party Payments,Revenue
Walsall Council,http://opendatacommunities.org/id/metropolitan-district-council/walsall,WC99-430,31/12/2018,Childrens,REDACTED,13/12/2018,604.00,74510-RESIDENTS ORDERS,ADOPTION ALLOWANCES,Third Party Payments,Revenue
Walsall Council,http://opendatacommunities.org/id/metropolitan-district-council/walsall,WC99-431,31/12/2018,Childrens,REDACTED,13/12/2018,902.68,74509-SPECIAL GUARDIANSHIP ORDERS,ADOPTION ALLOWANCES,Transfer Payments,Revenue
Walsall Council,http://opendatacommunities.org/id/metropolitan-district-council/walsall,WC99-432,31/12/2018,Economy & Environment,APCOA PARKING SERVICES (UK) LTD,06/12/2018,"51,446.44",73025-PROFESSIONAL SERVICES-PRIV CONTRACTOR & OTHER AGENCIES,PARKING SERVICES OFF-STREET,Third Party Payments,Revenue
Walsall Council,http://opendatacommunities.org/id/metropolitan-district-council/walsall,WC99-433,31/12/2018,Resources and Transformation,APP CARZ,04/12/2018,271.00,52000-WITH DRIVER-HIRE OF VEHICLES,ADVICE & GUIDANCE SERVICE,Transport,Revenue
Walsall Council,http://opendatacommunities.org/id/metropolitan-district-council/walsall,WC99-434,31/12/2018,Resources and Transformation,APP CARZ,17/12/2018,487.50,52000-WITH DRIVER-HIRE OF VEHICLES,ADVICE & GUIDANCE SERVICE,Transport,Revenue
Walsall Council,http://opendatacommunities.org/id/metropolitan-district-council/walsall,WC99-435,31/12/2018,Childrens,APP CARZ,17/12/2018,"4,855.00",52000-WITH DRIVER-HIRE OF VEHICLES,HOME TO SCHOOL TRANSPORT,Transport,Revenue
Walsall Council,http://opendatacommunities.org/id/metropolitan-district-council/walsall,WC99-436,31/12/2018,Childrens,APPLE TRANSCRIPTION LIMITED,12/12/2018,491.40,73014-LEGAL FEES-PRIV CONTRACTOR FEES,GENERAL MANAGEMENT SUPPORT (INC LEGAL),Third Party Payments,Revenue
Walsall Council,http://opendatacommunities.org/id/metropolitan-district-council/walsall,WC99-437,31/12/2018,Childrens,APPLE TRANSCRIPTION LIMITED,19/12/2018,779.82,73014-LEGAL FEES-PRIV CONTRACTOR FEES,SAFEGUARDING & FAMILY SUPPORT,Third Party Payments,Revenue
Walsall Council,http://opendatacommunities.org/id/metropolitan-district-council/walsall,WC99-438,31/12/2018,Economy & Environment,AQUA FORCE SPECIAL WASTE LTD,12/12/2018,823.75,"40000-REPAIRS,ALTERATIONS & MAINTENANCE-PREM",RETAINED HOUSING-HIGHWAYS,Premises,Revenue
Walsall Council,http://opendatacommunities.org/id/metropolitan-district-council/walsall,WC99-439,31/12/2018,Economy & Environment,AQUA FORCE SPECIAL WASTE LTD,19/12/2018,900.00,73029-HAZARDOUS WASTE REMOVAL/DISPOSAL-PRIV CONTRACTOR FEES,WASTE DISPOSAL - RESIDUAL,Third Party Payments,Revenue
Walsall Council,http://opendatacommunities.org/id/metropolitan-district-council/walsall,WC99-440,31/12/2018,Childrens,AQUAID (BIRMINGHAM CENTRAL),12/12/2018,358.00,61009-BEVERAGES-PROVISIONS,PELSALL EDC,Supplies & Services,Revenue
Walsall Council,http://opendatacommunities.org/id/metropolitan-district-council/walsall,WC99-441,31/12/2018,Economy & Environment,AQUAMO LTD,14/12/2018,293.00,60008-MAINTENANCE-FURNITURE & EQUIPMENT,BLOXWICH LEISURE CENTRE,Supplies & Services,Revenue
Walsall Council,http://opendatacommunities.org/id/metropolitan-district-council/walsall,WC99-442,31/12/2018,Adult Social Care,ARBORETUM NURSING HOME.,07/12/2018,"2,039.68",73502-NURSING,PHYSICAL SUPPORT,Third Party Payments,Revenue
Walsall Council,http://opendatacommunities.org/id/metropolitan-district-council/walsall,WC99-443,31/12/2018,Adult Social Care,ARBORETUM NURSING HOME.,07/12/2018,"2,039.68",73502-NURSING,PHYSICAL SUPPORT,Third Party Payments,Revenue
Walsall Council,http://opendatacommunities.org/id/metropolitan-district-council/walsall,WC99-444,31/12/2018,Adult Social Care,ARBORETUM NURSING HOME.,07/12/2018,"2,039.68",73502-NURSING,SUPPORT WITH MEMORY & COGNITION,Third Party Payments,Revenue
Walsall Council,http://opendatacommunities.org/id/metropolitan-district-council/walsall,WC99-445,31/12/2018,Adult Social Care,ARBORETUM NURSING HOME.,07/12/2018,"2,039.68",73502-NURSING,PHYSICAL SUPPORT,Third Party Payments,Revenue
Walsall Council,http://opendatacommunities.org/id/metropolitan-district-council/walsall,WC99-446,31/12/2018,Adult Social Care,ARBORETUM NURSING HOME.,07/12/2018,"2,119.68",73500-RESIDENTIAL,PHYSICAL SUPPORT,Third Party Payments,Revenue
Walsall Council,http://opendatacommunities.org/id/metropolitan-district-council/walsall,WC99-447,31/12/2018,Adult Social Care,ARBORETUM NURSING HOME.,07/12/2018,"2,139.68",73502-NURSING,PHYSICAL SUPPORT,Third Party Payments,Revenue
Walsall Council,http://opendatacommunities.org/id/metropolitan-district-council/walsall,WC99-448,31/12/2018,Adult Social Care,ARBORETUM NURSING HOME.,07/12/2018,"2,159.68",73502-NURSING,PHYSICAL SUPPORT,Third Party Payments,Revenue
Walsall Council,http://opendatacommunities.org/id/metropolitan-district-council/walsall,WC99-449,31/12/2018,Adult Social Care,ARBORETUM NURSING HOME.,07/12/2018,"2,159.68",73502-NURSING,PHYSICAL SUPPORT,Third Party Payments,Revenue
Walsall Council,http://opendatacommunities.org/id/metropolitan-district-council/walsall,WC99-450,31/12/2018,Adult Social Care,ARBORETUM NURSING HOME.,07/12/2018,"2,159.68",73502-NURSING,PHYSICAL SUPPORT,Third Party Payments,Revenue
Walsall Council,http://opendatacommunities.org/id/metropolitan-district-council/walsall,WC99-451,31/12/2018,Adult Social Care,ARBORETUM NURSING HOME.,07/12/2018,"2,363.64",73503-NURSING EMI,PHYSICAL SUPPORT,Third Party Payments,Revenue
Walsall Council,http://opendatacommunities.org/id/metropolitan-district-council/walsall,WC99-452,31/12/2018,Economy & Environment,ARCADIS,05/12/2018,"8,708.34",63000-PROFESSIONAL FEES AND SERVICES,SMARTER WORKPLACES WORKPLACE SOLUTIONS,Supplies & Services,Revenue
Walsall Council,http://opendatacommunities.org/id/metropolitan-district-council/walsall,WC99-453,31/12/2018,Resources and Transformation,ARMSTRONG YORK ASBESTOS ENVIRONMENTAL LIMITED,01/01/2019,"7,380.00",01006-SITE WORKS MAIN CONTRACTORS,CFR 801 ASBESTOS REMOVAL EAST,Capital,Capital
Walsall Council,http://opendatacommunities.org/id/metropolitan-district-council/walsall,WC99-454,31/12/2018,Resources and Transformation,ARMSTRONG YORK ASBESTOS ENVIRONMENTAL LIMITED,17/12/2018,"12,777.50",01006-SITE WORKS MAIN CONTRACTORS,CFR 801 ASBESTOS REMOVAL EAST,Capital,Capital
Walsall Council,http://opendatacommunities.org/id/metropolitan-district-council/walsall,WC99-455,31/12/2018,Childrens,ART PRACTITIONER & PSYCHOTHERAPY SERVICES JACQUELINE MARLOW,12/12/2018,"4,950.00",63000-PROFESSIONAL FEES AND SERVICES,FAMILY PLACEMENTS,Supplies & Services,Revenue
Walsall Council,http://opendatacommunities.org/id/metropolitan-district-council/walsall,WC99-456,31/12/2018,Economy & Environment,ART UK,11/12/2018,250.00,64500-PUBLICATIONS/ORGANISATIONS-SUBSCRIPTIONS,NEW ART GALLERY - ADMIN,Supplies & Services,Revenue
Walsall Council,http://opendatacommunities.org/id/metropolitan-district-council/walsall,WC99-457,31/12/2018,Economy & Environment,ART UK,11/12/2018,250.00,64500-PUBLICATIONS/ORGANISATIONS-SUBSCRIPTIONS,NEW ART GALLERY - ADMIN,Supplies & Services,Revenue
Walsall Council,http://opendatacommunities.org/id/metropolitan-district-council/walsall,WC99-458,31/12/2018,Holding Accounts,ARTHUR J GALLAGHER T/A HEATH LAMBERT LIMITED,10/12/2018,"6,000.00",89012-TEACHERS SICKNESS SCHEME PREMIUM INSURANCE POLICY,PUBLIC LIABILITY,Supplies & Services,Revenue
Walsall Council,http://opendatacommunities.org/id/metropolitan-district-council/walsall,WC99-459,31/12/2018,Childrens,ARTHUR M GRIFFITHS & SON LTD,11/12/2018,"72,230.00",01006-SITE WORKS MAIN CONTRACTORS,CFR 929 KING CHARLES PRIMARY SIGNIFICANT ENLARGEMENT,Capital,Capital
Walsall Council,http://opendatacommunities.org/id/metropolitan-district-council/walsall,WC99-460,31/12/2018,Resources and Transformation,ARVATO LIMITED,13/12/2018,"2,880.00",30030-EXTERNAL TRAINING,REVENUES,Employees,Revenue
Walsall Council,http://opendatacommunities.org/id/metropolitan-district-council/walsall,WC99-461,31/12/2018,Adult Social Care,ASH GRANGE CARE HOME,07/12/2018,"1,688.84",73500-RESIDENTIAL,SUPPORT WITH MEMORY & COGNITION,Third Party Payments,Revenue
Walsall Council,http://opendatacommunities.org/id/metropolitan-district-council/walsall,WC99-462,31/12/2018,Adult Social Care,ASH GRANGE CARE HOME,07/12/2018,"1,688.84",73500-RESIDENTIAL,MENTAL HEALTH SUPPORT,Third Party Payments,Revenue
Walsall Council,http://opendatacommunities.org/id/metropolitan-district-council/walsall,WC99-463,31/12/2018,Adult Social Care,ASH GRANGE CARE HOME,07/12/2018,"2,039.68",73502-NURSING,PHYSICAL SUPPORT,Third Party Payments,Revenue
Walsall Council,http://opendatacommunities.org/id/metropolitan-district-council/walsall,WC99-464,31/12/2018,Adult Social Care,ASH GRANGE CARE HOME,07/12/2018,"2,039.68",73502-NURSING,PHYSICAL SUPPORT,Third Party Payments,Revenue
Walsall Council,http://opendatacommunities.org/id/metropolitan-district-council/walsall,WC99-465,31/12/2018,Adult Social Care,ASH GRANGE CARE HOME,07/12/2018,"2,039.68",73502-NURSING,SUPPORT WITH MEMORY & COGNITION,Third Party Payments,Revenue
Walsall Council,http://opendatacommunities.org/id/metropolitan-district-council/walsall,WC99-466,31/12/2018,Adult Social Care,ASH GRANGE CARE HOME,07/12/2018,"2,039.68",73502-NURSING,PHYSICAL SUPPORT,Third Party Payments,Revenue
Walsall Council,http://opendatacommunities.org/id/metropolitan-district-council/walsall,WC99-467,31/12/2018,Adult Social Care,ASH GRANGE CARE HOME,07/12/2018,"2,039.68",73502-NURSING,PHYSICAL SUPPORT,Third Party Payments,Revenue
Walsall Council,http://opendatacommunities.org/id/metropolitan-district-council/walsall,WC99-468,31/12/2018,Adult Social Care,ASH GRANGE CARE HOME,07/12/2018,"2,039.68",73502-NURSING,PHYSICAL SUPPORT,Third Party Payments,Revenue
Walsall Council,http://opendatacommunities.org/id/metropolitan-district-council/walsall,WC99-469,31/12/2018,Adult Social Care,ASH GRANGE CARE HOME,07/12/2018,"2,039.68",73502-NURSING,PHYSICAL SUPPORT,Third Party Payments,Revenue
Walsall Council,http://opendatacommunities.org/id/metropolitan-district-council/walsall,WC99-470,31/12/2018,Adult Social Care,ASH GRANGE CARE HOME,07/12/2018,"2,039.68",73502-NURSING,PHYSICAL SUPPORT,Third Party Payments,Revenue
Walsall Council,http://opendatacommunities.org/id/metropolitan-district-council/walsall,WC99-471,31/12/2018,Adult Social Care,ASH GRANGE CARE HOME,07/12/2018,"2,039.68",73502-NURSING,PHYSICAL SUPPORT,Third Party Payments,Revenue
Walsall Council,http://opendatacommunities.org/id/metropolitan-district-council/walsall,WC99-472,31/12/2018,Adult Social Care,ASH GRANGE CARE HOME,07/12/2018,"2,039.68",73502-NURSING,PHYSICAL SUPPORT,Third Party Payments,Revenue
Walsall Council,http://opendatacommunities.org/id/metropolitan-district-council/walsall,WC99-473,31/12/2018,Adult Social Care,ASH GRANGE CARE HOME,07/12/2018,"2,039.68",73502-NURSING,MENTAL HEALTH SUPPORT,Third Party Payments,Revenue
Walsall Council,http://opendatacommunities.org/id/metropolitan-district-council/walsall,WC99-474,31/12/2018,Adult Social Care,ASH GRANGE CARE HOME,07/12/2018,"2,039.68",73502-NURSING,PHYSICAL SUPPORT,Third Party Payments,Revenue
Walsall Council,http://opendatacommunities.org/id/metropolitan-district-council/walsall,WC99-475,31/12/2018,Adult Social Care,ASH GRANGE CARE HOME,07/12/2018,"2,039.68",73502-NURSING,PHYSICAL SUPPORT,Third Party Payments,Revenue
Walsall Council,http://opendatacommunities.org/id/metropolitan-district-council/walsall,WC99-476,31/12/2018,Adult Social Care,ASH GRANGE CARE HOME,07/12/2018,"2,243.64",73503-NURSING EMI,PHYSICAL SUPPORT,Third Party Payments,Revenue
Walsall Council,http://opendatacommunities.org/id/metropolitan-district-council/walsall,WC99-477,31/12/2018,Adult Social Care,ASH GRANGE CARE HOME,07/12/2018,"2,243.64",73503-NURSING EMI,PHYSICAL SUPPORT,Third Party Payments,Revenue
Walsall Council,http://opendatacommunities.org/id/metropolitan-district-council/walsall,WC99-478,31/12/2018,Adult Social Care,ASH GRANGE CARE HOME,07/12/2018,"2,319.68",73502-NURSING,PHYSICAL SUPPORT,Third Party Payments,Revenue
Walsall Council,http://opendatacommunities.org/id/metropolitan-district-council/walsall,WC99-479,31/12/2018,Adult Social Care,ASH GRANGE CARE HOME,07/12/2018,"2,480.00",73503-NURSING EMI,PHYSICAL SUPPORT,Third Party Payments,Revenue
Walsall Council,http://opendatacommunities.org/id/metropolitan-district-council/walsall,WC99-480,31/12/2018,Adult Social Care,ASH GRANGE CARE HOME,07/12/2018,"2,495.72",73502-NURSING,LEARNING DISABILITY SUPPORT,Third Party Payments,Revenue
Walsall Council,http://opendatacommunities.org/id/metropolitan-district-council/walsall,WC99-481,31/12/2018,Adult Social Care,ASH GRANGE CARE HOME,07/12/2018,"3,423.75",73502-NURSING,PHYSICAL SUPPORT,Third Party Payments,Revenue
Walsall Council,http://opendatacommunities.org/id/metropolitan-district-council/walsall,WC99-482,31/12/2018,Adult Social Care,ASH GRANGE CARE HOME,07/12/2018,"4,727.67",73503-NURSING EMI,PHYSICAL SUPPORT,Third Party Payments,Revenue
Walsall Council,http://opendatacommunities.org/id/metropolitan-district-council/walsall,WC99-483,31/12/2018,Adult Social Care,ASH GRANGE CARE HOME,07/12/2018,"17,523.23",73502-NURSING,MENTAL HEALTH SUPPORT,Third Party Payments,Revenue
Walsall Council,http://opendatacommunities.org/id/metropolitan-district-council/walsall,WC99-484,31/12/2018,Adult Social Care,ASHBOURNE LODGE,07/12/2018,"1,963.60",73500-RESIDENTIAL,PHYSICAL SUPPORT,Third Party Payments,Revenue
Walsall Council,http://opendatacommunities.org/id/metropolitan-district-council/walsall,WC99-485,31/12/2018,Adult Social Care,REDACTED,07/12/2018,"-1,055.00",73506-DIRECT PAYMENT,LEARNING DISABILITY SUPPORT,Third Party Payments,Revenue
Walsall Council,http://opendatacommunities.org/id/metropolitan-district-council/walsall,WC99-486,31/12/2018,Adult Social Care,REDACTED,07/12/2018,"4,564.20",73506-DIRECT PAYMENT,LEARNING DISABILITY SUPPORT,Third Party Payments,Revenue
Walsall Council,http://opendatacommunities.org/id/metropolitan-district-council/walsall,WC99-487,31/12/2018,Adult Social Care,REDACTED,07/12/2018,"1,365.00",73506-DIRECT PAYMENT,LEARNING DISABILITY SUPPORT,Third Party Payments,Revenue
Walsall Council,http://opendatacommunities.org/id/metropolitan-district-council/walsall,WC99-488,31/12/2018,Adult Social Care,REDACTED,07/12/2018,-642.60,73506-DIRECT PAYMENT,PHYSICAL SUPPORT,Third Party Payments,Revenue
Walsall Council,http://opendatacommunities.org/id/metropolitan-district-council/walsall,WC99-489,31/12/2018,Adult Social Care,REDACTED,07/12/2018,"1,550.40",73506-DIRECT PAYMENT,PHYSICAL SUPPORT,Third Party Payments,Revenue
Walsall Council,http://opendatacommunities.org/id/metropolitan-district-council/walsall,WC99-490,31/12/2018,Adult Social Care,ASSURED HEALTHCARE SOLUTIONS (PARK FARM LODGE),07/12/2018,"1,948.32",73500-RESIDENTIAL,PHYSICAL SUPPORT,Third Party Payments,Revenue
Walsall Council,http://opendatacommunities.org/id/metropolitan-district-council/walsall,WC99-491,31/12/2018,Economy & Environment,ATHWAL NEWS LTD,07/12/2018,287.00,60501-LIBRARY BOOKS,LIBRARY OPERATIONS CENTRAL,Supplies & Services,Revenue
Walsall Council,http://opendatacommunities.org/id/metropolitan-district-council/walsall,WC99-492,31/12/2018,Economy & Environment,ATKINS HIGHWAYS & TRANSPORTATION,05/12/2018,"5,995.69",01003-ENGINEERS ASSISTANTS TIME - DESIGN,CFR 819 LTP-YORKS BRIDGE,Capital,Capital
Walsall Council,http://opendatacommunities.org/id/metropolitan-district-council/walsall,WC99-493,31/12/2018,Economy & Environment,ATKINS HIGHWAYS & TRANSPORTATION,05/12/2018,"12,979.76",01003-ENGINEERS ASSISTANTS TIME - DESIGN,CFR 819 LTP-YORKS BRIDGE,Capital,Capital
Walsall Council,http://opendatacommunities.org/id/metropolitan-district-council/walsall,WC99-494,31/12/2018,Resources and Transformation,AURORA GRAPHICS & DISPLAYS LTD,05/12/2018,432.00,62008-OUTWORK-PRINT ROOM,PRINTING SERVICES,Supplies & Services,Revenue
Walsall Council,http://opendatacommunities.org/id/metropolitan-district-council/walsall,WC99-495,31/12/2018,Adult Social Care,AUTISM WEST MIDLANDS,04/12/2018,814.47,73373-RESIDENTIAL & NURSING CARE PLACEMENTS,LD PACKAGE/PLACEMENT COSTS,Third Party Payments,Revenue
Walsall Council,http://opendatacommunities.org/id/metropolitan-district-council/walsall,WC99-496,31/12/2018,Adult Social Care,AUTISM WEST MIDLANDS,04/12/2018,"2,787.56",73373-RESIDENTIAL & NURSING CARE PLACEMENTS,LD PACKAGE/PLACEMENT COSTS,Third Party Payments,Revenue
Walsall Council,http://opendatacommunities.org/id/metropolitan-district-council/walsall,WC99-497,31/12/2018,Adult Social Care,AUTISM WEST MIDLANDS,07/12/2018,"7,101.48",73500-RESIDENTIAL,LEARNING DISABILITY SUPPORT,Third Party Payments,Revenue
Walsall Council,http://opendatacommunities.org/id/metropolitan-district-council/walsall,WC99-498,31/12/2018,Adult Social Care,AUTISM WEST MIDLANDS,04/12/2018,"7,862.35",73373-RESIDENTIAL & NURSING CARE PLACEMENTS,LD PACKAGE/PLACEMENT COSTS,Third Party Payments,Revenue
Walsall Council,http://opendatacommunities.org/id/metropolitan-district-council/walsall,WC99-499,31/12/2018,Adult Social Care,AUTISM WEST MIDLANDS 001,04/12/2018,544.37,73373-RESIDENTIAL & NURSING CARE PLACEMENTS,LD PACKAGE/PLACEMENT COSTS,Third Party Payments,Revenue
Walsall Council,http://opendatacommunities.org/id/metropolitan-district-council/walsall,WC99-500,31/12/2018,Adult Social Care,AUTISM WEST MIDLANDS 001,04/12/2018,"1,863.06",73373-RESIDENTIAL & NURSING CARE PLACEMENTS,LD PACKAGE/PLACEMENT COSTS,Third Party Payments,Revenue
Walsall Council,http://opendatacommunities.org/id/metropolitan-district-council/walsall,WC99-501,31/12/2018,Adult Social Care,AUTISM WEST MIDLANDS 001,07/12/2018,"4,746.96",73500-RESIDENTIAL,LEARNING DISABILITY SUPPORT,Third Party Payments,Revenue
Walsall Council,http://opendatacommunities.org/id/metropolitan-district-council/walsall,WC99-502,31/12/2018,Adult Social Care,AUTISM WEST MIDLANDS 001,04/12/2018,"5,255.57",73373-RESIDENTIAL & NURSING CARE PLACEMENTS,LD PACKAGE/PLACEMENT COSTS,Third Party Payments,Revenue
Walsall Council,http://opendatacommunities.org/id/metropolitan-district-council/walsall,WC99-503,31/12/2018,Adult Social Care,REDACTED,07/12/2018,"1,236.30",73506-DIRECT PAYMENT,SUPPORT WITH MEMORY & COGNITION,Third Party Payments,Revenue
Walsall Council,http://opendatacommunities.org/id/metropolitan-district-council/walsall,WC99-504,31/12/2018,Adult Social Care,REDACTED,07/12/2018,"3,978.00",73506-DIRECT PAYMENT,LEARNING DISABILITY SUPPORT,Third Party Payments,Revenue
Walsall Council,http://opendatacommunities.org/id/metropolitan-district-council/walsall,WC99-505,31/12/2018,Childrens,REDACTED,17/12/2018,464.00,76000-TRANSFER PAYMENTS - SOCIAL SERVICES CLIENTS,TRANSITION AND LEAVING CARE PLACEMENTS,Transfer Payments,Revenue
Walsall Council,http://opendatacommunities.org/id/metropolitan-district-council/walsall,WC99-506,31/12/2018,Childrens,REDACTED,17/12/2018,464.00,76000-TRANSFER PAYMENTS - SOCIAL SERVICES CLIENTS,TRANSITION AND LEAVING CARE PLACEMENTS,Transfer Payments,Revenue
Walsall Council,http://opendatacommunities.org/id/metropolitan-district-council/walsall,WC99-507,31/12/2018,Childrens,REDACTED,05/12/2018,928.00,76000-TRANSFER PAYMENTS - SOCIAL SERVICES CLIENTS,TRANSITION AND LEAVING CARE PLACEMENTS,Transfer Payments,Revenue
Walsall Council,http://opendatacommunities.org/id/metropolitan-district-council/walsall,WC99-508,31/12/2018,Childrens,BAILY GARNER LLP,12/12/2018,432.00,01001-OTHER CONSULTANTS FEES,CFR 783 BASIC NEED,Capital,Capital
Walsall Council,http://opendatacommunities.org/id/metropolitan-district-council/walsall,WC99-509,31/12/2018,Childrens,BAILY GARNER LLP,12/12/2018,"1,470.00",01001-OTHER CONSULTANTS FEES,CFR 783 BASIC NEED,Capital,Capital
Walsall Council,http://opendatacommunities.org/id/metropolitan-district-council/walsall,WC99-510,31/12/2018,Childrens,BAILY GARNER LLP,12/12/2018,"4,425.00",01001-OTHER CONSULTANTS FEES,CFR 783 BASIC NEED,Capital,Capital
Walsall Council,http://opendatacommunities.org/id/metropolitan-district-council/walsall,WC99-511,31/12/2018,Economy & Environment,BAKER HALL PARTNERSHIP,14/12/2018,668.25,63000-PROFESSIONAL FEES AND SERVICES,BUILDING CONTROL REVENUE FUNDED,Supplies & Services,Revenue
Walsall Council,http://opendatacommunities.org/id/metropolitan-district-council/walsall,WC99-512,31/12/2018,Adult Social Care,REDACTED,07/12/2018,"4,161.00",73506-DIRECT PAYMENT,LEARNING DISABILITY SUPPORT,Third Party Payments,Revenue
Walsall Council,http://opendatacommunities.org/id/metropolitan-district-council/walsall,WC99-513,31/12/2018,Adult Social Care,REDACTED,07/12/2018,"1,978.60",73506-DIRECT PAYMENT,PHYSICAL SUPPORT,Third Party Payments,Revenue
Walsall Council,http://opendatacommunities.org/id/metropolitan-district-council/walsall,WC99-514,31/12/2018,Childrens,REDACTED,13/12/2018,340.00,74508-INTERNAL FOSTER CARERS-CARER FEES,FAMILY & FRIENDS FOSTER CARE PROVISION,Transfer Payments,Revenue
Walsall Council,http://opendatacommunities.org/id/metropolitan-district-council/walsall,WC99-515,31/12/2018,Childrens,REDACTED,13/12/2018,540.00,74501-MAINTENANCE ALLOWANCE-FOSTER CARERS,FAMILY & FRIENDS FOSTER CARE PROVISION,Transfer Payments,Revenue
Walsall Council,http://opendatacommunities.org/id/metropolitan-district-council/walsall,WC99-516,31/12/2018,Adult Social Care,REDACTED,07/12/2018,"1,018.65",73506-DIRECT PAYMENT,SUPPORT WITH MEMORY & COGNITION,Third Party Payments,Revenue
Walsall Council,http://opendatacommunities.org/id/metropolitan-district-council/walsall,WC99-517,31/12/2018,Economy & Environment,BARCHAM TREES PLC,01/01/2019,268.00,41001-GROUNDS MAINTENANCE,ARBORETUM,Premises,Revenue
Walsall Council,http://opendatacommunities.org/id/metropolitan-district-council/walsall,WC99-518,31/12/2018,Economy & Environment,BARCHAM TREES PLC,12/12/2018,"2,058.00",60500-GENERAL MATERIALS,TREE TEAM,Supplies & Services,Revenue
Walsall Council,http://opendatacommunities.org/id/metropolitan-district-council/walsall,WC99-519,31/12/2018,Economy & Environment,BARHALE PLC,01/12/2018,-225.00,30030-EXTERNAL TRAINING,ENGINEERING MANAGEMENT,Employees,Revenue
Walsall Council,http://opendatacommunities.org/id/metropolitan-district-council/walsall,WC99-520,31/12/2018,Economy & Environment,BARHALE PLC,04/12/2018,225.00,30030-EXTERNAL TRAINING,ENGINEERING MANAGEMENT,Employees,Revenue
Walsall Council,http://opendatacommunities.org/id/metropolitan-district-council/walsall,WC99-521,31/12/2018,Economy & Environment,BARHALE PLC,04/12/2018,450.00,30030-EXTERNAL TRAINING,ENGINEERING MANAGEMENT,Employees,Revenue
Walsall Council,http://opendatacommunities.org/id/metropolitan-district-council/walsall,WC99-522,31/12/2018,Childrens,BARNARDOS SERVICES LTD,28/12/2018,"3,116.40",74037-INDEPENDENT FOSTER CARE-OTH AGENCY PROVISION,EXTERNAL FOSTER CARE PROVISION,Third Party Payments,Revenue
Walsall Council,http://opendatacommunities.org/id/metropolitan-district-council/walsall,WC99-523,31/12/2018,Resources and Transformation,BARNBOROUGH LTD,01/12/2018,319.75,60006-NEW-FURNITURE & EQUIPMENT,INTEGRATED FACILITIES MANAGEMENT,Supplies & Services,Revenue
Walsall Council,http://opendatacommunities.org/id/metropolitan-district-council/walsall,WC99-524,31/12/2018,Childrens,BARR BEACON SCHOOL TRUST,05/12/2018,374.99,77300-ISB-FORMULA ALLOCATION,BARR BEACON SCHOOL TRUST (ACADEMY),Transfer Payments,Revenue
Walsall Council,http://opendatacommunities.org/id/metropolitan-district-council/walsall,WC99-525,31/12/2018,Adult Social Care,BARTHOLAMEW LODGE CARE HOME,07/12/2018,"2,823.44",73503-NURSING EMI,PHYSICAL SUPPORT,Third Party Payments,Revenue
Walsall Council,http://opendatacommunities.org/id/metropolitan-district-council/walsall,WC99-526,31/12/2018,Economy & Environment,BASEMAP LTD,14/12/2018,780.00,63809-LICENCES-COMPUTER,PUBLIC HEALTH BUSINESS SUPPORT,Supplies & Services,Revenue
Walsall Council,http://opendatacommunities.org/id/metropolitan-district-council/walsall,WC99-527,31/12/2018,Economy & Environment,BAT FABRICATIONS LTD,14/12/2018,250.00,60006-NEW-FURNITURE & EQUIPMENT,INFRASTRUCTURE MAINTENANCE,Supplies & Services,Revenue
Walsall Council,http://opendatacommunities.org/id/metropolitan-district-council/walsall,WC99-528,31/12/2018,Economy & Environment,BAT FABRICATIONS LTD,17/12/2018,300.00,60008-MAINTENANCE-FURNITURE & EQUIPMENT,COMMUNITY LIAISON,Supplies & Services,Revenue
Walsall Council,http://opendatacommunities.org/id/metropolitan-district-council/walsall,WC99-529,31/12/2018,Economy & Environment,BAT FABRICATIONS LTD,14/12/2018,620.00,73025-PROFESSIONAL SERVICES-PRIV CONTRACTOR & OTHER AGENCIES,DEPOT,Third Party Payments,Revenue
Walsall Council,http://opendatacommunities.org/id/metropolitan-district-council/walsall,WC99-530,31/12/2018,Childrens,BAT FABRICATIONS LTD,14/12/2018,"3,100.00",01006-SITE WORKS MAIN CONTRACTORS,CFR 1297 OLD HALL SPECIAL SCHOOL EXPANSION,Capital,Capital
Walsall Council,http://opendatacommunities.org/id/metropolitan-district-council/walsall,WC99-531,31/12/2018,Resources and Transformation,BATLEYS,05/12/2018,433.34,61016-FOOD AND BEVERAGES-PROVISIONS,WALSALL TOWN HALL,Supplies & Services,Revenue
Walsall Council,http://opendatacommunities.org/id/metropolitan-district-council/walsall,WC99-532,31/12/2018,Resources and Transformation,BATLEYS,17/12/2018,894.32,61016-FOOD AND BEVERAGES-PROVISIONS,WALSALL TOWN HALL,Supplies & Services,Revenue
Walsall Council,http://opendatacommunities.org/id/metropolitan-district-council/walsall,WC99-533,31/12/2018,Economy & Environment,BATLEYS,18/12/2018,"1,951.89",61009-BEVERAGES-PROVISIONS,FOREST ARTS CENTRE,Supplies & Services,Revenue
Walsall Council,http://opendatacommunities.org/id/metropolitan-district-council/walsall,WC99-534,31/12/2018,Economy & Environment,BAUER CORPORATE SERVICES - BAUER RADIO LTD,19/12/2018,"1,723.92",62523-EVENTS,ARBORETUM,Supplies & Services,Revenue
Walsall Council,http://opendatacommunities.org/id/metropolitan-district-council/walsall,WC99-535,31/12/2018,Economy & Environment,BAUER CORPORATE SERVICES - BAUER RADIO LTD,13/12/2018,"9,926.08",62523-EVENTS,ARBORETUM,Supplies & Services,Revenue
Walsall Council,http://opendatacommunities.org/id/metropolitan-district-council/walsall,WC99-536,31/12/2018,Resources and Transformation,BCB PROMOTIONS,19/12/2018,70.00,62515-MISCELLANEOUS SUPPLIES,LEISURE INTERNET BOOKINGS - HOLDING AC,Supplies & Services,Revenue
Walsall Council,http://opendatacommunities.org/id/metropolitan-district-council/walsall,WC99-537,31/12/2018,Resources and Transformation,BCB PROMOTIONS,19/12/2018,400.00,62515-MISCELLANEOUS SUPPLIES,WALSALL TOWN HALL,Supplies & Services,Revenue
Walsall Council,http://opendatacommunities.org/id/metropolitan-district-council/walsall,WC99-538,31/12/2018,Adult Social Care,REDACTED,07/12/2018,-383.45,73506-DIRECT PAYMENT,PHYSICAL SUPPORT,Third Party Payments,Revenue
Walsall Council,http://opendatacommunities.org/id/metropolitan-district-council/walsall,WC99-539,31/12/2018,Adult Social Care,REDACTED,07/12/2018,"1,522.49",73506-DIRECT PAYMENT,PHYSICAL SUPPORT,Third Party Payments,Revenue
Walsall Council,http://opendatacommunities.org/id/metropolitan-district-council/walsall,WC99-540,31/12/2018,Economy & Environment,BEAVER 84 LTD,17/12/2018,210.00,62523-EVENTS,COUNTRYSIDE MANAGEMENT-OTHER,Supplies & Services,Revenue
Walsall Council,http://opendatacommunities.org/id/metropolitan-district-council/walsall,WC99-541,31/12/2018,Economy & Environment,BEAVER 84 LTD,10/12/2018,531.25,62523-EVENTS,ARBORETUM,Supplies & Services,Revenue
Walsall Council,http://opendatacommunities.org/id/metropolitan-district-council/walsall,WC99-542,31/12/2018,Adult Social Care,BELVIDERE COURT,07/12/2018,"2,000.00",73502-NURSING,MENTAL HEALTH SUPPORT,Third Party Payments,Revenue
Walsall Council,http://opendatacommunities.org/id/metropolitan-district-council/walsall,WC99-543,31/12/2018,Adult Social Care,BELVIDERE COURT,07/12/2018,"2,017.76",73502-NURSING,MENTAL HEALTH SUPPORT,Third Party Payments,Revenue
Walsall Council,http://opendatacommunities.org/id/metropolitan-district-council/walsall,WC99-544,31/12/2018,Adult Social Care,BELVIDERE COURT,07/12/2018,"2,200.00",73503-NURSING EMI,PHYSICAL SUPPORT,Third Party Payments,Revenue
Walsall Council,http://opendatacommunities.org/id/metropolitan-district-council/walsall,WC99-545,31/12/2018,Adult Social Care,BELVIDERE COURT,07/12/2018,"2,200.00",73503-NURSING EMI,PHYSICAL SUPPORT,Third Party Payments,Revenue
Walsall Council,http://opendatacommunities.org/id/metropolitan-district-council/walsall,WC99-546,31/12/2018,Economy & Environment,BEMROSEBOOTH LTD,17/12/2018,-500.00,73025-PROFESSIONAL SERVICES-PRIV CONTRACTOR & OTHER AGENCIES,PARKING SERVICES OFF-STREET,Third Party Payments,Revenue
Walsall Council,http://opendatacommunities.org/id/metropolitan-district-council/walsall,WC99-547,31/12/2018,Economy & Environment,BEMROSEBOOTH LTD,17/12/2018,500.00,73025-PROFESSIONAL SERVICES-PRIV CONTRACTOR & OTHER AGENCIES,PARKING SERVICES OFF-STREET,Third Party Payments,Revenue
Walsall Council,http://opendatacommunities.org/id/metropolitan-district-council/walsall,WC99-548,31/12/2018,Adult Social Care,REDACTED,07/12/2018,"3,212.05",73506-DIRECT PAYMENT,LEARNING DISABILITY SUPPORT,Third Party Payments,Revenue
Walsall Council,http://opendatacommunities.org/id/metropolitan-district-council/walsall,WC99-549,31/12/2018,Adult Social Care,BENTLEY COURT PRIORY,07/12/2018,"1,688.84",73500-RESIDENTIAL,MENTAL HEALTH SUPPORT,Third Party Payments,Revenue
Walsall Council,http://opendatacommunities.org/id/metropolitan-district-council/walsall,WC99-550,31/12/2018,Adult Social Care,BENTLEY COURT PRIORY,07/12/2018,"1,905.12",73503-NURSING EMI,MENTAL HEALTH SUPPORT,Third Party Payments,Revenue
Walsall Council,http://opendatacommunities.org/id/metropolitan-district-council/walsall,WC99-551,31/12/2018,Adult Social Care,BENTLEY COURT PRIORY,07/12/2018,"2,039.68",73502-NURSING,PHYSICAL SUPPORT,Third Party Payments,Revenue
Walsall Council,http://opendatacommunities.org/id/metropolitan-district-council/walsall,WC99-552,31/12/2018,Adult Social Care,BENTLEY COURT PRIORY,07/12/2018,"2,243.64",73503-NURSING EMI,PHYSICAL SUPPORT,Third Party Payments,Revenue
Walsall Council,http://opendatacommunities.org/id/metropolitan-district-council/walsall,WC99-553,31/12/2018,Adult Social Care,BENTLEY COURT PRIORY,07/12/2018,"2,243.64",73503-NURSING EMI,SUPPORT WITH MEMORY & COGNITION,Third Party Payments,Revenue
Walsall Council,http://opendatacommunities.org/id/metropolitan-district-council/walsall,WC99-554,31/12/2018,Adult Social Care,BENTLEY COURT PRIORY,07/12/2018,"2,243.64",73503-NURSING EMI,PHYSICAL SUPPORT,Third Party Payments,Revenue
Walsall Council,http://opendatacommunities.org/id/metropolitan-district-council/walsall,WC99-555,31/12/2018,Adult Social Care,BENTLEY COURT PRIORY,07/12/2018,"2,243.64",73503-NURSING EMI,PHYSICAL SUPPORT,Third Party Payments,Revenue
Walsall Council,http://opendatacommunities.org/id/metropolitan-district-council/walsall,WC99-556,31/12/2018,Adult Social Care,BENTLEY COURT PRIORY,07/12/2018,"2,243.64",73503-NURSING EMI,PHYSICAL SUPPORT,Third Party Payments,Revenue
Walsall Council,http://opendatacommunities.org/id/metropolitan-district-council/walsall,WC99-557,31/12/2018,Adult Social Care,BENTLEY COURT PRIORY,07/12/2018,"2,258.22",73502-NURSING,PHYSICAL SUPPORT,Third Party Payments,Revenue
Walsall Council,http://opendatacommunities.org/id/metropolitan-district-council/walsall,WC99-558,31/12/2018,Adult Social Care,BENTLEY COURT PRIORY,07/12/2018,"8,742.52",73502-NURSING,PHYSICAL SUPPORT,Third Party Payments,Revenue
Walsall Council,http://opendatacommunities.org/id/metropolitan-district-council/walsall,WC99-559,31/12/2018,Adult Social Care,BENTLEY COURT PRIORY,07/12/2018,"9,695.73",73503-NURSING EMI,SOCIAL SUPPORT,Third Party Payments,Revenue
Walsall Council,http://opendatacommunities.org/id/metropolitan-district-council/walsall,WC99-560,31/12/2018,Adult Social Care,BENTLEY COURT PRIORY,07/12/2018,"18,175.48",73503-NURSING EMI,SUPPORT WITH MEMORY & COGNITION,Third Party Payments,Revenue
Walsall Council,http://opendatacommunities.org/id/metropolitan-district-council/walsall,WC99-561,31/12/2018,Holding Accounts,BERRYMANS LACE MAWER LLP,18/12/2018,"1,874.50",67001-MISC INSURANCES - PAYMENT OF CLAIMS,PUBLIC LIABILITY,Supplies & Services,Revenue
Walsall Council,http://opendatacommunities.org/id/metropolitan-district-council/walsall,WC99-562,31/12/2018,Adult Social Care,REDACTED,07/12/2018,"1,353.10",73506-DIRECT PAYMENT,PHYSICAL SUPPORT,Third Party Payments,Revenue
Walsall Council,http://opendatacommunities.org/id/metropolitan-district-council/walsall,WC99-563,31/12/2018,Adult Social Care,REDACTED,07/12/2018,"2,179.00",73506-DIRECT PAYMENT,PHYSICAL SUPPORT,Third Party Payments,Revenue
Walsall Council,http://opendatacommunities.org/id/metropolitan-district-council/walsall,WC99-564,31/12/2018,Childrens,REDACTED,01/01/2019,150.00,74504-HOLIDAY/CHRISTMAS ALLOWANCE-FOSTER CARERS,INTERNAL FOSTER CARE PROVISION,Transfer Payments,Revenue
Walsall Council,http://opendatacommunities.org/id/metropolitan-district-council/walsall,WC99-565,31/12/2018,Childrens,REDACTED,01/01/2019,488.57,74501-MAINTENANCE ALLOWANCE-FOSTER CARERS,INTERNAL FOSTER CARE PROVISION,Transfer Payments,Revenue
Walsall Council,http://opendatacommunities.org/id/metropolitan-district-council/walsall,WC99-566,31/12/2018,Childrens,REDACTED,01/01/2019,738.57,74508-INTERNAL FOSTER CARERS-CARER FEES,INTERNAL FOSTER CARE PROVISION,Transfer Payments,Revenue
Walsall Council,http://opendatacommunities.org/id/metropolitan-district-council/walsall,WC99-567,31/12/2018,Economy & Environment,BESCOT STADIUM SUNDAY MARKET LTD,21/12/2018,"2,600.00",73025-PROFESSIONAL SERVICES-PRIV CONTRACTOR & OTHER AGENCIES,WILLENHALL MARKET,Third Party Payments,Revenue
Walsall Council,http://opendatacommunities.org/id/metropolitan-district-council/walsall,WC99-568,31/12/2018,Childrens,BESTUITION,11/12/2018,"9,075.00",63000-PROFESSIONAL FEES AND SERVICES,VIRTUAL SCHOOL CENTRAL PUPIL PREMIUM,Supplies & Services,Revenue
Walsall Council,http://opendatacommunities.org/id/metropolitan-district-council/walsall,WC99-569,31/12/2018,Adult Social Care,REDACTED,07/12/2018,"1,186.90",73506-DIRECT PAYMENT,PHYSICAL SUPPORT,Third Party Payments,Revenue
Walsall Council,http://opendatacommunities.org/id/metropolitan-district-council/walsall,WC99-570,31/12/2018,Adult Social Care,REDACTED,07/12/2018,"3,459.80",73506-DIRECT PAYMENT,PHYSICAL SUPPORT,Third Party Payments,Revenue
Walsall Council,http://opendatacommunities.org/id/metropolitan-district-council/walsall,WC99-571,31/12/2018,Resources and Transformation,BFA SAFETY TRAINING,21/12/2018,315.00,30030-EXTERNAL TRAINING,HEALTH & SAFETY,Employees,Revenue
Walsall Council,http://opendatacommunities.org/id/metropolitan-district-council/walsall,WC99-572,31/12/2018,Resources and Transformation,BFA SAFETY TRAINING,05/12/2018,525.00,30030-EXTERNAL TRAINING,HEALTH & SAFETY,Employees,Revenue
Walsall Council,http://opendatacommunities.org/id/metropolitan-district-council/walsall,WC99-573,31/12/2018,Resources and Transformation,BFA SAFETY TRAINING,21/12/2018,625.00,30030-EXTERNAL TRAINING,HEALTH & SAFETY,Employees,Revenue
Walsall Council,http://opendatacommunities.org/id/metropolitan-district-council/walsall,WC99-574,31/12/2018,Economy & Environment,BIFFA WASTE SERVICES LTD,14/12/2018,199.00,73029-HAZARDOUS WASTE REMOVAL/DISPOSAL-PRIV CONTRACTOR FEES,WASTE DISPOSAL - RESIDUAL,Third Party Payments,Revenue
Walsall Council,http://opendatacommunities.org/id/metropolitan-district-council/walsall,WC99-575,31/12/2018,Economy & Environment,BIFFA WASTE SERVICES LTD,14/12/2018,309.55,73039-LANDFILL TAX-PRIV CONTRACTOR FEES,WASTE DISPOSAL - RESIDUAL,Third Party Payments,Revenue
Walsall Council,http://opendatacommunities.org/id/metropolitan-district-council/walsall,WC99-576,31/12/2018,Childrens,REDACTED,11/12/2018,647.40,73506-DIRECT PAYMENT,FAMILY SUPPORT - DIRECT PAYMENTS,Third Party Payments,Revenue
Walsall Council,http://opendatacommunities.org/id/metropolitan-district-council/walsall,WC99-577,31/12/2018,Economy & Environment,BIOGAS TECHNOLOGY LIMITED,21/12/2018,375.85,"40000-REPAIRS,ALTERATIONS & MAINTENANCE-PREM",POLLUTION DIVISION,Premises,Revenue
Walsall Council,http://opendatacommunities.org/id/metropolitan-district-council/walsall,WC99-578,31/12/2018,Childrens,BIRCHILLS C OF E COMMUNITY ACADEMY,07/12/2018,667.80,77300-ISB-FORMULA ALLOCATION,EARLY YEARS - PUPIL PREMIUM,Transfer Payments,Revenue
Walsall Council,http://opendatacommunities.org/id/metropolitan-district-council/walsall,WC99-579,31/12/2018,Childrens,BIRMINGHAM CITY COUNCIL,28/12/2018,799.00,52000-WITH DRIVER-HIRE OF VEHICLES,HOME TO SCHOOL TRANSPORT,Transport,Revenue
Walsall Council,http://opendatacommunities.org/id/metropolitan-district-council/walsall,WC99-580,31/12/2018,Childrens,BIRMINGHAM CITY COUNCIL,28/12/2018,"1,136.40",52000-WITH DRIVER-HIRE OF VEHICLES,HOME TO SCHOOL TRANSPORT,Transport,Revenue
Walsall Council,http://opendatacommunities.org/id/metropolitan-district-council/walsall,WC99-581,31/12/2018,Childrens,BIRMINGHAM CITY COUNCIL,28/12/2018,"1,956.16",74037-INDEPENDENT FOSTER CARE-OTH AGENCY PROVISION,EXTERNAL FOSTER CARE PROVISION,Third Party Payments,Revenue
Walsall Council,http://opendatacommunities.org/id/metropolitan-district-council/walsall,WC99-582,31/12/2018,Economy & Environment,BLACK COUNTRY CONSORTIUM LIMITED,21/12/2018,"52,228.24",01045-PRIVATE GRANTS,CFR 1072 CAPITALISATION OF PROJECT OFFICER COSTS,Capital,Capital
Walsall Council,http://opendatacommunities.org/id/metropolitan-district-council/walsall,WC99-583,31/12/2018,Economy & Environment,BLACK COUNTRY CONSORTIUM LIMITED,07/12/2018,"105,730.58",66500-GRANTS TO OTHER ORGS,GROWTH HUB,Third Party Payments,Revenue
Walsall Council,http://opendatacommunities.org/id/metropolitan-district-council/walsall,WC99-584,31/12/2018,Economy & Environment,BLACK COUNTRY CONSORTIUM LIMITED,21/12/2018,"124,339.92",65500-GRANTS TO ASSOCIATIONS,LEP CORE FUNDING,Third Party Payments,Revenue
Walsall Council,http://opendatacommunities.org/id/metropolitan-district-council/walsall,WC99-585,31/12/2018,Resources and Transformation,BLACK COUNTRY INNOVATE CIC,18/12/2018,"1,000.00",63102-CONSULTANTS FEES - CORPORATE,COHESION,Supplies & Services,Revenue
Walsall Council,http://opendatacommunities.org/id/metropolitan-district-council/walsall,WC99-586,31/12/2018,Childrens,BLACKWOOD SCHOOL,19/12/2018,"1,050.00",63000-PROFESSIONAL FEES AND SERVICES,SCHOOL IMPROVEMENT-ASSESSMENT,Supplies & Services,Revenue
Walsall Council,http://opendatacommunities.org/id/metropolitan-district-council/walsall,WC99-587,31/12/2018,Childrens,BLAKENALL HEATH JMI SCHOOL,12/12/2018,"3,887.00",77200-TRANSFER PAYMENTS-OTHER SCHOOLCHILDREN/STUDENT RELATED ITEMS,BLAKENALL HEATH JUNIOR SCHOOL,Transfer Payments,Revenue
Walsall Council,http://opendatacommunities.org/id/metropolitan-district-council/walsall,WC99-588,31/12/2018,Resources and Transformation,BLOXWICH COMMUNITY PARTNERSHIP.,20/12/2018,"12,000.00",66500-GRANTS TO OTHER ORGS,BLOXWICH COMMUNITY PARTNERSHIP,Third Party Payments,Revenue
Walsall Council,http://opendatacommunities.org/id/metropolitan-district-council/walsall,WC99-589,31/12/2018,Childrens,BLUE GIRAFFE CHILDCARE,07/12/2018,333.90,77300-ISB-FORMULA ALLOCATION,EARLY YEARS - PUPIL PREMIUM,Transfer Payments,Revenue
Walsall Council,http://opendatacommunities.org/id/metropolitan-district-council/walsall,WC99-590,31/12/2018,Childrens,BLUE GIRAFFE CHILDCARE,20/12/2018,"1,100.40",66505-OTHER-GRANTS TO OTHER ORGS,EARLY YEARS - 2 YR OLDS,Third Party Payments,Revenue
Walsall Council,http://opendatacommunities.org/id/metropolitan-district-council/walsall,WC99-591,31/12/2018,Resources and Transformation,BLUETOWNONLINE LTD,19/12/2018,"1,914.00",34000-RECRUITMENT EXPENSES (ALL TYPES INCL RELOCATION),SCHOOLS HR TRANSACTIONAL TEAM,Employees,Revenue
Walsall Council,http://opendatacommunities.org/id/metropolitan-district-council/walsall,WC99-592,31/12/2018,Economy & Environment,BME UNITED LTD,07/12/2018,"1,650.00",63253-PAYMENT TO CONTRACTOR,SMOKING CESSATION,Third Party Payments,Revenue
Walsall Council,http://opendatacommunities.org/id/metropolitan-district-council/walsall,WC99-593,31/12/2018,Economy & Environment,BME UNITED LTD,13/12/2018,"4,557.00",63253-PAYMENT TO CONTRACTOR,SMOKING CESSATION,Third Party Payments,Revenue
Walsall Council,http://opendatacommunities.org/id/metropolitan-district-council/walsall,WC99-594,31/12/2018,Childrens,REDACTED,11/12/2018,"4,217.14",73506-DIRECT PAYMENT,FAMILY SUPPORT - DIRECT PAYMENTS,Third Party Payments,Revenue
Walsall Council,http://opendatacommunities.org/id/metropolitan-district-council/walsall,WC99-595,31/12/2018,Economy & Environment,BOC LTD,05/12/2018,354.95,73025-PROFESSIONAL SERVICES-PRIV CONTRACTOR & OTHER AGENCIES,FLEET,Third Party Payments,Revenue
Walsall Council,http://opendatacommunities.org/id/metropolitan-district-council/walsall,WC99-596,31/12/2018,Childrens,BOOKTRUST,17/12/2018,"17,439.19",63000-PROFESSIONAL FEES AND SERVICES,VIRTUAL SCHOOL CENTRAL PUPIL PREMIUM,Supplies & Services,Revenue
Walsall Council,http://opendatacommunities.org/id/metropolitan-district-council/walsall,WC99-597,31/12/2018,Resources and Transformation,BORSHCH LTD,10/12/2018,237.49,60000-FURNITURE & EQUIPMENT,WALSALL CRISIS SUPPORT SCHEME,Supplies & Services,Revenue
Walsall Council,http://opendatacommunities.org/id/metropolitan-district-council/walsall,WC99-598,31/12/2018,Resources and Transformation,BORSHCH LTD,01/01/2019,237.49,60000-FURNITURE & EQUIPMENT,WALSALL CRISIS SUPPORT SCHEME,Supplies & Services,Revenue
Walsall Council,http://opendatacommunities.org/id/metropolitan-district-council/walsall,WC99-599,31/12/2018,Resources and Transformation,BORSHCH LTD,01/01/2019,266.66,60000-FURNITURE & EQUIPMENT,WALSALL CRISIS SUPPORT SCHEME,Supplies & Services,Revenue
Walsall Council,http://opendatacommunities.org/id/metropolitan-district-council/walsall,WC99-600,31/12/2018,Resources and Transformation,BORSHCH LTD,06/12/2018,291.66,60000-FURNITURE & EQUIPMENT,WALSALL CRISIS SUPPORT SCHEME,Supplies & Services,Revenue
Walsall Council,http://opendatacommunities.org/id/metropolitan-district-council/walsall,WC99-601,31/12/2018,Resources and Transformation,BORSHCH LTD,01/01/2019,291.66,60000-FURNITURE & EQUIPMENT,WALSALL CRISIS SUPPORT SCHEME,Supplies & Services,Revenue
Walsall Council,http://opendatacommunities.org/id/metropolitan-district-council/walsall,WC99-602,31/12/2018,Resources and Transformation,BORSHCH LTD,01/01/2019,291.66,60000-FURNITURE & EQUIPMENT,WALSALL CRISIS SUPPORT SCHEME,Supplies & Services,Revenue
Walsall Council,http://opendatacommunities.org/id/metropolitan-district-council/walsall,WC99-603,31/12/2018,Resources and Transformation,BORSHCH LTD,10/12/2018,291.67,60000-FURNITURE & EQUIPMENT,WALSALL CRISIS SUPPORT SCHEME,Supplies & Services,Revenue
Walsall Council,http://opendatacommunities.org/id/metropolitan-district-council/walsall,WC99-604,31/12/2018,Resources and Transformation,BORSHCH LTD,10/12/2018,329.16,60000-FURNITURE & EQUIPMENT,WALSALL CRISIS SUPPORT SCHEME,Supplies & Services,Revenue
Walsall Council,http://opendatacommunities.org/id/metropolitan-district-council/walsall,WC99-605,31/12/2018,Resources and Transformation,BORSHCH LTD,10/12/2018,379.16,60000-FURNITURE & EQUIPMENT,WALSALL CRISIS SUPPORT SCHEME,Supplies & Services,Revenue
Walsall Council,http://opendatacommunities.org/id/metropolitan-district-council/walsall,WC99-606,31/12/2018,Resources and Transformation,BORSHCH LTD,05/12/2018,416.67,60000-FURNITURE & EQUIPMENT,WALSALL CRISIS SUPPORT SCHEME,Supplies & Services,Revenue
Walsall Council,http://opendatacommunities.org/id/metropolitan-district-council/walsall,WC99-607,31/12/2018,Resources and Transformation,BORSHCH LTD,01/01/2019,425.00,60000-FURNITURE & EQUIPMENT,WALSALL CRISIS SUPPORT SCHEME,Supplies & Services,Revenue
Walsall Council,http://opendatacommunities.org/id/metropolitan-district-council/walsall,WC99-608,31/12/2018,Resources and Transformation,BORSHCH LTD,01/01/2019,425.00,60000-FURNITURE & EQUIPMENT,WALSALL CRISIS SUPPORT SCHEME,Supplies & Services,Revenue
Walsall Council,http://opendatacommunities.org/id/metropolitan-district-council/walsall,WC99-609,31/12/2018,Resources and Transformation,BORSHCH LTD,05/12/2018,433.33,60000-FURNITURE & EQUIPMENT,WALSALL CRISIS SUPPORT SCHEME,Supplies & Services,Revenue
Walsall Council,http://opendatacommunities.org/id/metropolitan-district-council/walsall,WC99-610,31/12/2018,Resources and Transformation,BORSHCH LTD,05/12/2018,433.33,60000-FURNITURE & EQUIPMENT,WALSALL CRISIS SUPPORT SCHEME,Supplies & Services,Revenue
Walsall Council,http://opendatacommunities.org/id/metropolitan-district-council/walsall,WC99-611,31/12/2018,Resources and Transformation,BORSHCH LTD,10/12/2018,433.33,60000-FURNITURE & EQUIPMENT,WALSALL CRISIS SUPPORT SCHEME,Supplies & Services,Revenue
Walsall Council,http://opendatacommunities.org/id/metropolitan-district-council/walsall,WC99-612,31/12/2018,Resources and Transformation,BORSHCH LTD,10/12/2018,433.33,60000-FURNITURE & EQUIPMENT,WALSALL CRISIS SUPPORT SCHEME,Supplies & Services,Revenue
Walsall Council,http://opendatacommunities.org/id/metropolitan-district-council/walsall,WC99-613,31/12/2018,Resources and Transformation,BORSHCH LTD,01/01/2019,433.33,60000-FURNITURE & EQUIPMENT,WALSALL CRISIS SUPPORT SCHEME,Supplies & Services,Revenue
Walsall Council,http://opendatacommunities.org/id/metropolitan-district-council/walsall,WC99-614,31/12/2018,Resources and Transformation,BORSHCH LTD,01/01/2019,433.33,60000-FURNITURE & EQUIPMENT,WALSALL CRISIS SUPPORT SCHEME,Supplies & Services,Revenue
Walsall Council,http://opendatacommunities.org/id/metropolitan-district-council/walsall,WC99-615,31/12/2018,Resources and Transformation,BOURNEMOUTH CONVENTION BUREAU LTD,21/12/2018,546.88,34329-HOTEL ACCOMMODATION-EMPLOYEES,CORPORATE MANAGEMENT TEAM,Employees,Revenue
Walsall Council,http://opendatacommunities.org/id/metropolitan-district-council/walsall,WC99-616,31/12/2018,Adult Social Care,BOWDEN DERRA PARK,07/12/2018,"11,041.12",73500-RESIDENTIAL,LEARNING DISABILITY SUPPORT,Third Party Payments,Revenue
Walsall Council,http://opendatacommunities.org/id/metropolitan-district-council/walsall,WC99-617,31/12/2018,Economy & Environment,BRADVALE LTD T/A INSPIRE HEALTHCARE SERVICES,01/01/2019,622.31,73025-PROFESSIONAL SERVICES-PRIV CONTRACTOR & OTHER AGENCIES,DEPOT,Third Party Payments,Revenue
Walsall Council,http://opendatacommunities.org/id/metropolitan-district-council/walsall,WC99-618,31/12/2018,Economy & Environment,BREAKTHRU CIC,06/12/2018,"5,607.93",66500-GRANTS TO OTHER ORGS,ESF COMMUNITY GRANTS,Third Party Payments,Revenue
Walsall Council,http://opendatacommunities.org/id/metropolitan-district-council/walsall,WC99-619,31/12/2018,Resources and Transformation,BRELMAYNE LTD,01/12/2018,-340.75,60007-REPAIR OF EQUIPMENT-EQUIPMENT,CA ST GILES C.E. PRIMARY SCHOOL,Supplies & Services,Revenue
Walsall Council,http://opendatacommunities.org/id/metropolitan-district-council/walsall,WC99-620,31/12/2018,Resources and Transformation,BRELMAYNE LTD,10/12/2018,340.75,60006-NEW-FURNITURE & EQUIPMENT,CA ST GILES C.E. PRIMARY SCHOOL,Supplies & Services,Revenue
Walsall Council,http://opendatacommunities.org/id/metropolitan-district-council/walsall,WC99-621,31/12/2018,Resources and Transformation,BRELMAYNE LTD,19/12/2018,"1,200.00",01044-PURCHASE OF FURNITURE & EQUIPMENT,CFR 1190 SCHOOLS PROJECT,Capital,Capital
Walsall Council,http://opendatacommunities.org/id/metropolitan-district-council/walsall,WC99-622,31/12/2018,Resources and Transformation,BRELMAYNE LTD,19/12/2018,"3,024.00",01044-PURCHASE OF FURNITURE & EQUIPMENT,CFR 1190 SCHOOLS PROJECT,Capital,Capital
Walsall Council,http://opendatacommunities.org/id/metropolitan-district-council/walsall,WC99-623,31/12/2018,Adult Social Care,REDACTED,07/12/2018,550.00,73506-DIRECT PAYMENT,LEARNING DISABILITY SUPPORT,Third Party Payments,Revenue
Walsall Council,http://opendatacommunities.org/id/metropolitan-district-council/walsall,WC99-624,31/12/2018,Childrens,REDACTED,01/12/2018,150.00,74504-HOLIDAY/CHRISTMAS ALLOWANCE-FOSTER CARERS,INTERNAL FOSTER CARE PROVISION,Transfer Payments,Revenue
Walsall Council,http://opendatacommunities.org/id/metropolitan-district-council/walsall,WC99-625,31/12/2018,Childrens,REDACTED,01/12/2018,150.00,74504-HOLIDAY/CHRISTMAS ALLOWANCE-FOSTER CARERS,INTERNAL FOSTER CARE PROVISION,Transfer Payments,Revenue
Walsall Council,http://opendatacommunities.org/id/metropolitan-district-council/walsall,WC99-626,31/12/2018,Childrens,REDACTED,01/01/2019,499.26,74506-TRAVEL-FOSTER CARERS,INTERNAL FOSTER CARE PROVISION,Transfer Payments,Revenue
Walsall Council,http://opendatacommunities.org/id/metropolitan-district-council/walsall,WC99-627,31/12/2018,Childrens,REDACTED,01/12/2018,530.99,74506-TRAVEL-FOSTER CARERS,INTERNAL FOSTER CARE PROVISION,Transfer Payments,Revenue
Walsall Council,http://opendatacommunities.org/id/metropolitan-district-council/walsall,WC99-628,31/12/2018,Childrens,REDACTED,01/12/2018,720.00,74501-MAINTENANCE ALLOWANCE-FOSTER CARERS,INTERNAL FOSTER CARE PROVISION,Transfer Payments,Revenue
Walsall Council,http://opendatacommunities.org/id/metropolitan-district-council/walsall,WC99-629,31/12/2018,Childrens,REDACTED,01/12/2018,720.00,74501-MAINTENANCE ALLOWANCE-FOSTER CARERS,INTERNAL FOSTER CARE PROVISION,Transfer Payments,Revenue
Walsall Council,http://opendatacommunities.org/id/metropolitan-district-council/walsall,WC99-630,31/12/2018,Childrens,REDACTED,01/01/2019,720.00,74501-MAINTENANCE ALLOWANCE-FOSTER CARERS,INTERNAL FOSTER CARE PROVISION,Transfer Payments,Revenue
Walsall Council,http://opendatacommunities.org/id/metropolitan-district-council/walsall,WC99-631,31/12/2018,Childrens,REDACTED,01/01/2019,720.00,74501-MAINTENANCE ALLOWANCE-FOSTER CARERS,INTERNAL FOSTER CARE PROVISION,Transfer Payments,Revenue
Walsall Council,http://opendatacommunities.org/id/metropolitan-district-council/walsall,WC99-632,31/12/2018,Childrens,REDACTED,01/12/2018,"1,600.00",74508-INTERNAL FOSTER CARERS-CARER FEES,INTERNAL FOSTER CARE PROVISION,Transfer Payments,Revenue
Walsall Council,http://opendatacommunities.org/id/metropolitan-district-council/walsall,WC99-633,31/12/2018,Childrens,REDACTED,01/01/2019,"1,600.00",74508-INTERNAL FOSTER CARERS-CARER FEES,INTERNAL FOSTER CARE PROVISION,Transfer Payments,Revenue
Walsall Council,http://opendatacommunities.org/id/metropolitan-district-council/walsall,WC99-634,31/12/2018,Economy & Environment,BRENNTAG UK LIMITED,17/12/2018,654.84,50301-FUEL-TRANSPORT RUN COSTS,FUEL STOCK ACCOUNT,Transport,Revenue
Walsall Council,http://opendatacommunities.org/id/metropolitan-district-council/walsall,WC99-635,31/12/2018,Adult Social Care,REDACTED,12/12/2018,756.56,73372-DOMICILIARY CARE,LD PACKAGE/PLACEMENT COSTS,Third Party Payments,Revenue
Walsall Council,http://opendatacommunities.org/id/metropolitan-district-council/walsall,WC99-636,31/12/2018,Adult Social Care,REDACTED,12/12/2018,"1,597.60",73372-DOMICILIARY CARE,LD PACKAGE/PLACEMENT COSTS,Third Party Payments,Revenue
Walsall Council,http://opendatacommunities.org/id/metropolitan-district-council/walsall,WC99-637,31/12/2018,Adult Social Care,REDACTED,07/12/2018,"2,214.10",73506-DIRECT PAYMENT,PHYSICAL SUPPORT,Third Party Payments,Revenue
Walsall Council,http://opendatacommunities.org/id/metropolitan-district-council/walsall,WC99-638,31/12/2018,Adult Social Care,REDACTED,07/12/2018,"1,045.50",73506-DIRECT PAYMENT,PHYSICAL SUPPORT,Third Party Payments,Revenue
Walsall Council,http://opendatacommunities.org/id/metropolitan-district-council/walsall,WC99-639,31/12/2018,Economy & Environment,BRIAR ASSOCIATES,18/12/2018,450.00,63000-PROFESSIONAL FEES AND SERVICES,ASSET MANAGEMENT,Supplies & Services,Revenue
Walsall Council,http://opendatacommunities.org/id/metropolitan-district-council/walsall,WC99-640,31/12/2018,Economy & Environment,BRIAR ASSOCIATES,18/12/2018,450.00,63000-PROFESSIONAL FEES AND SERVICES,ASSET MANAGEMENT,Supplies & Services,Revenue
Walsall Council,http://opendatacommunities.org/id/metropolitan-district-council/walsall,WC99-641,31/12/2018,Resources and Transformation,BRIAR ASSOCIATES,18/12/2018,"3,000.00","40000-REPAIRS,ALTERATIONS & MAINTENANCE-PREM",RECHARGEABLE - NON SCHOOLS MAINTENANCE,Premises,Revenue
Walsall Council,http://opendatacommunities.org/id/metropolitan-district-council/walsall,WC99-642,31/12/2018,Adult Social Care,BRIDGEWOOD HEALTH CARE LTD,07/12/2018,"5,796.32",73502-NURSING,SENSORY SUPPORT,Third Party Payments,Revenue
Walsall Council,http://opendatacommunities.org/id/metropolitan-district-council/walsall,WC99-643,31/12/2018,Resources and Transformation,BRISTOW & SUTOR,21/12/2018,709.46,73014-LEGAL FEES-PRIV CONTRACTOR FEES,REVENUES,Third Party Payments,Revenue
Walsall Council,http://opendatacommunities.org/id/metropolitan-district-council/walsall,WC99-644,31/12/2018,Resources and Transformation,BRITANNIA HOTELS LTD T/A BRITANNIA HOTEL WOLVERHAMPTON,19/12/2018,220.02,75501-BED & BREAKFAST PAYMENTS,BED & BREAKFAST PAYMENTS,Third Party Payments,Revenue
Walsall Council,http://opendatacommunities.org/id/metropolitan-district-council/walsall,WC99-645,31/12/2018,Resources and Transformation,BRITANNIA HOTELS LTD T/A BRITANNIA HOTEL WOLVERHAMPTON,01/12/2018,224.56,75501-BED & BREAKFAST PAYMENTS,BED & BREAKFAST PAYMENTS,Third Party Payments,Revenue
Walsall Council,http://opendatacommunities.org/id/metropolitan-district-council/walsall,WC99-646,31/12/2018,Resources and Transformation,BRITANNIA HOTELS LTD T/A BRITANNIA HOTEL WOLVERHAMPTON,14/12/2018,225.01,75501-BED & BREAKFAST PAYMENTS,BED & BREAKFAST PAYMENTS,Third Party Payments,Revenue
Walsall Council,http://opendatacommunities.org/id/metropolitan-district-council/walsall,WC99-647,31/12/2018,Resources and Transformation,BRITANNIA HOTELS LTD T/A BRITANNIA HOTEL WOLVERHAMPTON,14/12/2018,225.01,75501-BED & BREAKFAST PAYMENTS,BED & BREAKFAST PAYMENTS,Third Party Payments,Revenue
Walsall Council,http://opendatacommunities.org/id/metropolitan-district-council/walsall,WC99-648,31/12/2018,Resources and Transformation,BRITANNIA HOTELS LTD T/A BRITANNIA HOTEL WOLVERHAMPTON,13/12/2018,227.51,75501-BED & BREAKFAST PAYMENTS,BED & BREAKFAST PAYMENTS,Third Party Payments,Revenue
Walsall Council,http://opendatacommunities.org/id/metropolitan-district-council/walsall,WC99-649,31/12/2018,Resources and Transformation,BRITANNIA HOTELS LTD T/A BRITANNIA HOTEL WOLVERHAMPTON,13/12/2018,227.51,75501-BED & BREAKFAST PAYMENTS,BED & BREAKFAST PAYMENTS,Third Party Payments,Revenue
Walsall Council,http://opendatacommunities.org/id/metropolitan-district-council/walsall,WC99-650,31/12/2018,Resources and Transformation,BRITANNIA HOTELS LTD T/A BRITANNIA HOTEL WOLVERHAMPTON,10/12/2018,247.51,75501-BED & BREAKFAST PAYMENTS,BED & BREAKFAST PAYMENTS,Third Party Payments,Revenue
Walsall Council,http://opendatacommunities.org/id/metropolitan-district-council/walsall,WC99-651,31/12/2018,Resources and Transformation,BRITANNIA HOTELS LTD T/A BRITANNIA HOTEL WOLVERHAMPTON,13/12/2018,259.17,75501-BED & BREAKFAST PAYMENTS,BED & BREAKFAST PAYMENTS,Third Party Payments,Revenue
Walsall Council,http://opendatacommunities.org/id/metropolitan-district-council/walsall,WC99-652,31/12/2018,Resources and Transformation,BRITANNIA HOTELS LTD T/A BRITANNIA HOTEL WOLVERHAMPTON,13/12/2018,280.01,75501-BED & BREAKFAST PAYMENTS,BED & BREAKFAST PAYMENTS,Third Party Payments,Revenue
Walsall Council,http://opendatacommunities.org/id/metropolitan-district-council/walsall,WC99-653,31/12/2018,Resources and Transformation,BRITANNIA HOTELS LTD T/A BRITANNIA HOTEL WOLVERHAMPTON,01/12/2018,297.50,75501-BED & BREAKFAST PAYMENTS,BED & BREAKFAST PAYMENTS,Third Party Payments,Revenue
Walsall Council,http://opendatacommunities.org/id/metropolitan-district-council/walsall,WC99-654,31/12/2018,Resources and Transformation,BRITANNIA HOTELS LTD T/A BRITANNIA HOTEL WOLVERHAMPTON,13/12/2018,297.50,75501-BED & BREAKFAST PAYMENTS,BED & BREAKFAST PAYMENTS,Third Party Payments,Revenue
Walsall Council,http://opendatacommunities.org/id/metropolitan-district-council/walsall,WC99-655,31/12/2018,Resources and Transformation,BRITANNIA HOTELS LTD T/A BRITANNIA HOTEL WOLVERHAMPTON,04/12/2018,330.00,75501-BED & BREAKFAST PAYMENTS,BED & BREAKFAST PAYMENTS,Third Party Payments,Revenue
Walsall Council,http://opendatacommunities.org/id/metropolitan-district-council/walsall,WC99-656,31/12/2018,Resources and Transformation,BRITISH MUSLIM YOUTH GROUP,01/12/2018,"8,000.00",70004-GRANTS TO VOLUNTARY BODIES,PCC GRANT UNALLOCATED,Third Party Payments,Revenue
Walsall Council,http://opendatacommunities.org/id/metropolitan-district-council/walsall,WC99-657,31/12/2018,Economy & Environment,BRITTONS FORK LIFT LIMITED,04/12/2018,970.00,62523-EVENTS,BONFIRES,Supplies & Services,Revenue
Walsall Council,http://opendatacommunities.org/id/metropolitan-district-council/walsall,WC99-658,31/12/2018,Economy & Environment,BRITTONS FORK LIFT LIMITED,04/12/2018,"1,522.00",62523-EVENTS,BONFIRES,Supplies & Services,Revenue
Walsall Council,http://opendatacommunities.org/id/metropolitan-district-council/walsall,WC99-659,31/12/2018,Economy & Environment,BRITTONS FORK LIFT LIMITED,01/12/2018,"2,162.00",62523-EVENTS,BONFIRES,Supplies & Services,Revenue
Walsall Council,http://opendatacommunities.org/id/metropolitan-district-council/walsall,WC99-660,31/12/2018,Adult Social Care,BROADWAY HALLS CARE HOME,07/12/2018,"1,876.52",73501-RESIDENTIAL EMI,MENTAL HEALTH SUPPORT,Third Party Payments,Revenue
Walsall Council,http://opendatacommunities.org/id/metropolitan-district-council/walsall,WC99-661,31/12/2018,Childrens,BROWNHILLS ASPHALT & TARMAC LIMITED,21/12/2018,"1,500.00",01006-SITE WORKS MAIN CONTRACTORS,CFR 1297 LEIGHSWOOD PRIMARY SCHOOL EXPANSION,Capital,Capital
Walsall Council,http://opendatacommunities.org/id/metropolitan-district-council/walsall,WC99-662,31/12/2018,Economy & Environment,BROWNHILLS ASPHALT & TARMAC LIMITED,12/12/2018,"3,220.00",66500-GRANTS TO OTHER ORGS,CENTRAL SERVICES ALLOTMENTS,Third Party Payments,Revenue
Walsall Council,http://opendatacommunities.org/id/metropolitan-district-council/walsall,WC99-663,31/12/2018,Childrens,BROWNHILLS COMMUNITY TECHNICAL COLLEGE,17/12/2018,297.00,52000-WITH DRIVER-HIRE OF VEHICLES,HOME TO SCHOOL TRANSPORT,Transport,Revenue
Walsall Council,http://opendatacommunities.org/id/metropolitan-district-council/walsall,WC99-664,31/12/2018,Childrens,BROWNHILLS COMMUNITY TECHNICAL COLLEGE,17/12/2018,"1,287.00",52000-WITH DRIVER-HIRE OF VEHICLES,HOME TO SCHOOL TRANSPORT,Transport,Revenue
Walsall Council,http://opendatacommunities.org/id/metropolitan-district-council/walsall,WC99-665,31/12/2018,Childrens,BROWNHILLS COMMUNITY TECHNICAL COLLEGE,17/12/2018,"1,287.00",52000-WITH DRIVER-HIRE OF VEHICLES,HOME TO SCHOOL TRANSPORT,Transport,Revenue
Walsall Council,http://opendatacommunities.org/id/metropolitan-district-council/walsall,WC99-666,31/12/2018,Childrens,BROWNHILLS COMMUNITY TECHNICAL COLLEGE,17/12/2018,"2,277.00",52000-WITH DRIVER-HIRE OF VEHICLES,HOME TO SCHOOL TRANSPORT,Transport,Revenue
Walsall Council,http://opendatacommunities.org/id/metropolitan-district-council/walsall,WC99-667,31/12/2018,Adult Social Care,REDACTED,07/12/2018,-428.40,73506-DIRECT PAYMENT,LEARNING DISABILITY SUPPORT,Third Party Payments,Revenue
Walsall Council,http://opendatacommunities.org/id/metropolitan-district-council/walsall,WC99-668,31/12/2018,Adult Social Care,REDACTED,07/12/2018,"2,080.80",73506-DIRECT PAYMENT,LEARNING DISABILITY SUPPORT,Third Party Payments,Revenue
Walsall Council,http://opendatacommunities.org/id/metropolitan-district-council/walsall,WC99-669,31/12/2018,Resources and Transformation,BT,10/12/2018,596.55,63603-COST OF CALLS-TELEPHONES,PROCESSING,Supplies & Services,Revenue
Walsall Council,http://opendatacommunities.org/id/metropolitan-district-council/walsall,WC99-670,31/12/2018,Resources and Transformation,BT,13/12/2018,"5,185.74",63601-COSTS (NOT INTERNAL RECHARGES)-TELEPHONES,CENTRAL COMMUNICATIONS RECHARGES,Supplies & Services,Revenue
Walsall Council,http://opendatacommunities.org/id/metropolitan-district-council/walsall,WC99-671,31/12/2018,Resources and Transformation,BT,13/12/2018,"14,033.25",63601-COSTS (NOT INTERNAL RECHARGES)-TELEPHONES,CENTRAL COMMUNICATIONS RECHARGES,Supplies & Services,Revenue
Walsall Council,http://opendatacommunities.org/id/metropolitan-district-council/walsall,WC99-672,31/12/2018,Childrens,BT PLC,14/12/2018,527.82,63601-COSTS (NOT INTERNAL RECHARGES)-TELEPHONES,BIRCHILLS CHILDCARE SERVICE,Supplies & Services,Revenue
Walsall Council,http://opendatacommunities.org/id/metropolitan-district-council/walsall,WC99-673,31/12/2018,Resources and Transformation,BT PLC,14/12/2018,"1,268.35",63807-COMMS LINKS-COMPUTER,NETWORKS,Supplies & Services,Revenue
Walsall Council,http://opendatacommunities.org/id/metropolitan-district-council/walsall,WC99-674,31/12/2018,Resources and Transformation,BT PLC,01/01/2019,"1,268.35",63807-COMMS LINKS-COMPUTER,NETWORKS,Supplies & Services,Revenue
Walsall Council,http://opendatacommunities.org/id/metropolitan-district-council/walsall,WC99-675,31/12/2018,Economy & Environment,BT PLC,21/12/2018,"4,119.50",01009-SITE WORKS - OTHER CONTRACTORS,CFR 1248 M6 JUNCTION 10,Capital,Capital
Walsall Council,http://opendatacommunities.org/id/metropolitan-district-council/walsall,WC99-676,31/12/2018,Economy & Environment,BUFFET EXPRESS LTD,18/12/2018,439.10,61009-BEVERAGES-PROVISIONS,FOREST ARTS CENTRE,Supplies & Services,Revenue
Walsall Council,http://opendatacommunities.org/id/metropolitan-district-council/walsall,WC99-677,31/12/2018,Economy & Environment,BUFFET EXPRESS LTD,13/12/2018,764.30,61009-BEVERAGES-PROVISIONS,FOREST ARTS CENTRE,Supplies & Services,Revenue
Walsall Council,http://opendatacommunities.org/id/metropolitan-district-council/walsall,WC99-678,31/12/2018,Adult Social Care,BUPA NURSING HOMES ASTON COURT,07/12/2018,"6,720.01",73503-NURSING EMI,SUPPORT WITH MEMORY & COGNITION,Third Party Payments,Revenue
Walsall Council,http://opendatacommunities.org/id/metropolitan-district-council/walsall,WC99-679,31/12/2018,Adult Social Care,BUSH HOME LTD,07/12/2018,"-1,809.50",73501-RESIDENTIAL EMI,MENTAL HEALTH SUPPORT,Third Party Payments,Revenue
Walsall Council,http://opendatacommunities.org/id/metropolitan-district-council/walsall,WC99-680,31/12/2018,Adult Social Care,BUSH HOME LTD,07/12/2018,737.20,73501-RESIDENTIAL EMI,PHYSICAL SUPPORT,Third Party Payments,Revenue
Walsall Council,http://opendatacommunities.org/id/metropolitan-district-council/walsall,WC99-681,31/12/2018,Adult Social Care,BUSH HOME LTD,07/12/2018,"1,688.84",73500-RESIDENTIAL,MENTAL HEALTH SUPPORT,Third Party Payments,Revenue
Walsall Council,http://opendatacommunities.org/id/metropolitan-district-council/walsall,WC99-682,31/12/2018,Adult Social Care,BUSH HOME LTD,07/12/2018,"1,688.84",73500-RESIDENTIAL,PHYSICAL SUPPORT,Third Party Payments,Revenue
Walsall Council,http://opendatacommunities.org/id/metropolitan-district-council/walsall,WC99-683,31/12/2018,Adult Social Care,BUSH HOME LTD,07/12/2018,"1,688.84",73500-RESIDENTIAL,MENTAL HEALTH SUPPORT,Third Party Payments,Revenue
Walsall Council,http://opendatacommunities.org/id/metropolitan-district-council/walsall,WC99-684,31/12/2018,Adult Social Care,BUSH HOME LTD,07/12/2018,"1,688.84",73500-RESIDENTIAL,MENTAL HEALTH SUPPORT,Third Party Payments,Revenue
Walsall Council,http://opendatacommunities.org/id/metropolitan-district-council/walsall,WC99-685,31/12/2018,Adult Social Care,BUSH HOME LTD,07/12/2018,"1,688.84",73500-RESIDENTIAL,PHYSICAL SUPPORT,Third Party Payments,Revenue
Walsall Council,http://opendatacommunities.org/id/metropolitan-district-council/walsall,WC99-686,31/12/2018,Adult Social Care,BUSH HOME LTD,07/12/2018,"1,688.84",73500-RESIDENTIAL,PHYSICAL SUPPORT,Third Party Payments,Revenue
Walsall Council,http://opendatacommunities.org/id/metropolitan-district-council/walsall,WC99-687,31/12/2018,Adult Social Care,BUSH HOME LTD,07/12/2018,"1,876.52",73501-RESIDENTIAL EMI,PHYSICAL SUPPORT,Third Party Payments,Revenue
Walsall Council,http://opendatacommunities.org/id/metropolitan-district-council/walsall,WC99-688,31/12/2018,Adult Social Care,BUSH HOME LTD,07/12/2018,"1,876.52",73501-RESIDENTIAL EMI,PHYSICAL SUPPORT,Third Party Payments,Revenue
Walsall Council,http://opendatacommunities.org/id/metropolitan-district-council/walsall,WC99-689,31/12/2018,Adult Social Care,BUSH HOME LTD,07/12/2018,"1,876.52",73501-RESIDENTIAL EMI,PHYSICAL SUPPORT,Third Party Payments,Revenue
Walsall Council,http://opendatacommunities.org/id/metropolitan-district-council/walsall,WC99-690,31/12/2018,Adult Social Care,BUSH HOME LTD,07/12/2018,"1,876.52",73501-RESIDENTIAL EMI,MENTAL HEALTH SUPPORT,Third Party Payments,Revenue
Walsall Council,http://opendatacommunities.org/id/metropolitan-district-council/walsall,WC99-691,31/12/2018,Adult Social Care,BUSH HOME LTD,07/12/2018,"1,876.52",73501-RESIDENTIAL EMI,PHYSICAL SUPPORT,Third Party Payments,Revenue
Walsall Council,http://opendatacommunities.org/id/metropolitan-district-council/walsall,WC99-692,31/12/2018,Adult Social Care,BUSH HOME LTD,07/12/2018,"1,876.52",73501-RESIDENTIAL EMI,PHYSICAL SUPPORT,Third Party Payments,Revenue
Walsall Council,http://opendatacommunities.org/id/metropolitan-district-council/walsall,WC99-693,31/12/2018,Childrens,BY THE BRIDGE,28/12/2018,"3,996.00",74037-INDEPENDENT FOSTER CARE-OTH AGENCY PROVISION,EXTERNAL FOSTER CARE PROVISION,Third Party Payments,Revenue
Walsall Council,http://opendatacommunities.org/id/metropolitan-district-council/walsall,WC99-694,31/12/2018,Childrens,BY THE BRIDGE,28/12/2018,"3,996.00",74037-INDEPENDENT FOSTER CARE-OTH AGENCY PROVISION,EXTERNAL FOSTER CARE PROVISION,Third Party Payments,Revenue
Walsall Council,http://opendatacommunities.org/id/metropolitan-district-council/walsall,WC99-695,31/12/2018,Adult Social Care,C A A R S,06/12/2018,352.50,73025-PROFESSIONAL SERVICES-PRIV CONTRACTOR & OTHER AGENCIES,SENIOR MANAGEMENT TEAM,Third Party Payments,Revenue
Walsall Council,http://opendatacommunities.org/id/metropolitan-district-council/walsall,WC99-696,31/12/2018,Adult Social Care,C A A R S,12/12/2018,"3,395.00",76423-DIRECT PAYMENTS SUPPORT,EAST LOCALITY TEAM,Transfer Payments,Revenue
Walsall Council,http://opendatacommunities.org/id/metropolitan-district-council/walsall,WC99-697,31/12/2018,Economy & Environment,C ART ART TRANSPORT LTD,17/12/2018,450.00,73032-TRANSPORTATION-PRIV CONTRACTOR FEES,NAG - TEMPORARY EXHIBITIONS,Third Party Payments,Revenue
Walsall Council,http://opendatacommunities.org/id/metropolitan-district-council/walsall,WC99-698,31/12/2018,Economy & Environment,C ART ART TRANSPORT LTD,19/12/2018,498.00,73032-TRANSPORTATION-PRIV CONTRACTOR FEES,EXHIBITIONS - SPECIAL PROJECTS/PARTNERSHIPS,Third Party Payments,Revenue
Walsall Council,http://opendatacommunities.org/id/metropolitan-district-council/walsall,WC99-699,31/12/2018,Economy & Environment,C ART ART TRANSPORT LTD,19/12/2018,513.00,73032-TRANSPORTATION-PRIV CONTRACTOR FEES,NAG - TEMPORARY EXHIBITIONS,Third Party Payments,Revenue
Walsall Council,http://opendatacommunities.org/id/metropolitan-district-council/walsall,WC99-700,31/12/2018,Economy & Environment,C ART ART TRANSPORT LTD,10/12/2018,"1,500.00",73032-TRANSPORTATION-PRIV CONTRACTOR FEES,NAG - TEMPORARY EXHIBITIONS,Third Party Payments,Revenue
Walsall Council,http://opendatacommunities.org/id/metropolitan-district-council/walsall,WC99-701,31/12/2018,Childrens,REDACTED,01/12/2018,150.00,74504-HOLIDAY/CHRISTMAS ALLOWANCE-FOSTER CARERS,INTERNAL FOSTER CARE PROVISION,Transfer Payments,Revenue
Walsall Council,http://opendatacommunities.org/id/metropolitan-district-council/walsall,WC99-702,31/12/2018,Childrens,REDACTED,01/12/2018,150.00,74503-BIRTHDAY ALLOWANCE-FOSTER CARERS,INTERNAL FOSTER CARE PROVISION,Transfer Payments,Revenue
Walsall Council,http://opendatacommunities.org/id/metropolitan-district-council/walsall,WC99-703,31/12/2018,Childrens,REDACTED,01/12/2018,150.00,74504-HOLIDAY/CHRISTMAS ALLOWANCE-FOSTER CARERS,INTERNAL FOSTER CARE PROVISION,Transfer Payments,Revenue
Walsall Council,http://opendatacommunities.org/id/metropolitan-district-council/walsall,WC99-704,31/12/2018,Childrens,REDACTED,01/01/2019,150.00,74503-BIRTHDAY ALLOWANCE-FOSTER CARERS,INTERNAL FOSTER CARE PROVISION,Transfer Payments,Revenue
Walsall Council,http://opendatacommunities.org/id/metropolitan-district-council/walsall,WC99-705,31/12/2018,Childrens,REDACTED,01/12/2018,180.00,74504-HOLIDAY/CHRISTMAS ALLOWANCE-FOSTER CARERS,INTERNAL FOSTER CARE PROVISION,Transfer Payments,Revenue
Walsall Council,http://opendatacommunities.org/id/metropolitan-district-council/walsall,WC99-706,31/12/2018,Childrens,REDACTED,01/12/2018,720.00,74501-MAINTENANCE ALLOWANCE-FOSTER CARERS,INTERNAL FOSTER CARE PROVISION,Transfer Payments,Revenue
Walsall Council,http://opendatacommunities.org/id/metropolitan-district-council/walsall,WC99-707,31/12/2018,Childrens,REDACTED,01/12/2018,720.00,74501-MAINTENANCE ALLOWANCE-FOSTER CARERS,INTERNAL FOSTER CARE PROVISION,Transfer Payments,Revenue
Walsall Council,http://opendatacommunities.org/id/metropolitan-district-council/walsall,WC99-708,31/12/2018,Childrens,REDACTED,01/01/2019,720.00,74501-MAINTENANCE ALLOWANCE-FOSTER CARERS,INTERNAL FOSTER CARE PROVISION,Transfer Payments,Revenue
Walsall Council,http://opendatacommunities.org/id/metropolitan-district-council/walsall,WC99-709,31/12/2018,Childrens,REDACTED,01/01/2019,720.00,74501-MAINTENANCE ALLOWANCE-FOSTER CARERS,INTERNAL FOSTER CARE PROVISION,Transfer Payments,Revenue
Walsall Council,http://opendatacommunities.org/id/metropolitan-district-council/walsall,WC99-710,31/12/2018,Childrens,REDACTED,01/12/2018,860.00,74501-MAINTENANCE ALLOWANCE-FOSTER CARERS,INTERNAL FOSTER CARE PROVISION,Transfer Payments,Revenue
Walsall Council,http://opendatacommunities.org/id/metropolitan-district-council/walsall,WC99-711,31/12/2018,Childrens,REDACTED,01/01/2019,860.00,74501-MAINTENANCE ALLOWANCE-FOSTER CARERS,INTERNAL FOSTER CARE PROVISION,Transfer Payments,Revenue
Walsall Council,http://opendatacommunities.org/id/metropolitan-district-council/walsall,WC99-712,31/12/2018,Childrens,REDACTED,01/01/2019,"2,400.00",74508-INTERNAL FOSTER CARERS-CARER FEES,INTERNAL FOSTER CARE PROVISION,Transfer Payments,Revenue
Walsall Council,http://opendatacommunities.org/id/metropolitan-district-council/walsall,WC99-713,31/12/2018,Childrens,REDACTED,01/12/2018,"2,642.86",74508-INTERNAL FOSTER CARERS-CARER FEES,INTERNAL FOSTER CARE PROVISION,Transfer Payments,Revenue
Walsall Council,http://opendatacommunities.org/id/metropolitan-district-council/walsall,WC99-714,31/12/2018,Childrens,REDACTED,01/12/2018,150.00,74504-HOLIDAY/CHRISTMAS ALLOWANCE-FOSTER CARERS,INTERNAL FOSTER CARE PROVISION,Transfer Payments,Revenue
Walsall Council,http://opendatacommunities.org/id/metropolitan-district-council/walsall,WC99-715,31/12/2018,Childrens,REDACTED,01/12/2018,180.00,74504-HOLIDAY/CHRISTMAS ALLOWANCE-FOSTER CARERS,INTERNAL FOSTER CARE PROVISION,Transfer Payments,Revenue
Walsall Council,http://opendatacommunities.org/id/metropolitan-district-council/walsall,WC99-716,31/12/2018,Childrens,REDACTED,01/12/2018,720.00,74501-MAINTENANCE ALLOWANCE-FOSTER CARERS,INTERNAL FOSTER CARE PROVISION,Transfer Payments,Revenue
Walsall Council,http://opendatacommunities.org/id/metropolitan-district-council/walsall,WC99-717,31/12/2018,Childrens,REDACTED,01/01/2019,720.00,74501-MAINTENANCE ALLOWANCE-FOSTER CARERS,INTERNAL FOSTER CARE PROVISION,Transfer Payments,Revenue
Walsall Council,http://opendatacommunities.org/id/metropolitan-district-council/walsall,WC99-718,31/12/2018,Childrens,REDACTED,01/12/2018,860.00,74501-MAINTENANCE ALLOWANCE-FOSTER CARERS,INTERNAL FOSTER CARE PROVISION,Transfer Payments,Revenue
Walsall Council,http://opendatacommunities.org/id/metropolitan-district-council/walsall,WC99-719,31/12/2018,Childrens,REDACTED,01/01/2019,860.00,74501-MAINTENANCE ALLOWANCE-FOSTER CARERS,INTERNAL FOSTER CARE PROVISION,Transfer Payments,Revenue
Walsall Council,http://opendatacommunities.org/id/metropolitan-district-council/walsall,WC99-720,31/12/2018,Childrens,REDACTED,01/12/2018,"1,600.00",74508-INTERNAL FOSTER CARERS-CARER FEES,INTERNAL FOSTER CARE PROVISION,Transfer Payments,Revenue
Walsall Council,http://opendatacommunities.org/id/metropolitan-district-council/walsall,WC99-721,31/12/2018,Childrens,REDACTED,01/01/2019,"1,600.00",74508-INTERNAL FOSTER CARERS-CARER FEES,INTERNAL FOSTER CARE PROVISION,Transfer Payments,Revenue
Walsall Council,http://opendatacommunities.org/id/metropolitan-district-council/walsall,WC99-722,31/12/2018,Childrens,C M H T SOLICITORS LLP,17/12/2018,0.20,63500-POSTAGES AND COURIER SERVICES,GENERAL MANAGEMENT SUPPORT (INC LEGAL),Supplies & Services,Revenue
Walsall Council,http://opendatacommunities.org/id/metropolitan-district-council/walsall,WC99-723,31/12/2018,Childrens,C M H T SOLICITORS LLP,17/12/2018,663.36,73014-LEGAL FEES-PRIV CONTRACTOR FEES,GENERAL MANAGEMENT SUPPORT (INC LEGAL),Third Party Payments,Revenue
Walsall Council,http://opendatacommunities.org/id/metropolitan-district-council/walsall,WC99-724,31/12/2018,Economy & Environment,C P DAVIDSON & SONS LTD,04/12/2018,647.85,60500-GENERAL MATERIALS,FLEET,Supplies & Services,Revenue
Walsall Council,http://opendatacommunities.org/id/metropolitan-district-council/walsall,WC99-725,31/12/2018,Economy & Environment,C P DAVIDSON & SONS LTD,04/12/2018,"6,964.25",60500-GENERAL MATERIALS,FLEET,Supplies & Services,Revenue
Walsall Council,http://opendatacommunities.org/id/metropolitan-district-council/walsall,WC99-726,31/12/2018,Childrens,REDACTED,13/12/2018,408.00,74508-INTERNAL FOSTER CARERS-CARER FEES,FAMILY & FRIENDS FOSTER CARE PROVISION,Transfer Payments,Revenue
Walsall Council,http://opendatacommunities.org/id/metropolitan-district-council/walsall,WC99-727,31/12/2018,Childrens,REDACTED,13/12/2018,600.00,74501-MAINTENANCE ALLOWANCE-FOSTER CARERS,FAMILY & FRIENDS FOSTER CARE PROVISION,Transfer Payments,Revenue
Walsall Council,http://opendatacommunities.org/id/metropolitan-district-council/walsall,WC99-728,31/12/2018,Childrens,REDACTED,13/12/2018,600.00,74501-MAINTENANCE ALLOWANCE-FOSTER CARERS,FAMILY & FRIENDS FOSTER CARE PROVISION,Transfer Payments,Revenue
Walsall Council,http://opendatacommunities.org/id/metropolitan-district-council/walsall,WC99-729,31/12/2018,Resources and Transformation,CAE TECHNOLOGY SERVICES LTD,07/12/2018,"7,615.80",63800-COMPUTER EQUIPMENT AND SUPPLIES,RECHARGEABLE EQUIPMENT,Supplies & Services,Revenue
Walsall Council,http://opendatacommunities.org/id/metropolitan-district-council/walsall,WC99-730,31/12/2018,Adult Social Care,CALDMORE AREA HOUSING ASS LTD,21/12/2018,446.74,73373-RESIDENTIAL & NURSING CARE PLACEMENTS,MENTAL HEALTH PACKAGE/PLACEMENT COSTS,Third Party Payments,Revenue
Walsall Council,http://opendatacommunities.org/id/metropolitan-district-council/walsall,WC99-731,31/12/2018,Adult Social Care,CALDMORE AREA HOUSING ASS LTD,21/12/2018,"1,327.14",73373-RESIDENTIAL & NURSING CARE PLACEMENTS,MENTAL HEALTH PACKAGE/PLACEMENT COSTS,Third Party Payments,Revenue
Walsall Council,http://opendatacommunities.org/id/metropolitan-district-council/walsall,WC99-732,31/12/2018,Adult Social Care,CALDMORE AREA HOUSING ASS LTD,07/12/2018,"2,533.04",73500-RESIDENTIAL,MENTAL HEALTH SUPPORT,Third Party Payments,Revenue
Walsall Council,http://opendatacommunities.org/id/metropolitan-district-council/walsall,WC99-733,31/12/2018,Adult Social Care,CALDMORE AREA HOUSING ASS LTD,07/12/2018,"2,613.24",73501-RESIDENTIAL EMI,MENTAL HEALTH SUPPORT,Third Party Payments,Revenue
Walsall Council,http://opendatacommunities.org/id/metropolitan-district-council/walsall,WC99-734,31/12/2018,Adult Social Care,CALDMORE AREA HOUSING ASS LTD,07/12/2018,"2,662.88",73500-RESIDENTIAL,MENTAL HEALTH SUPPORT,Third Party Payments,Revenue
Walsall Council,http://opendatacommunities.org/id/metropolitan-district-council/walsall,WC99-735,31/12/2018,Adult Social Care,CALDMORE AREA HOUSING ASS LTD,07/12/2018,"2,662.88",73500-RESIDENTIAL,MENTAL HEALTH SUPPORT,Third Party Payments,Revenue
Walsall Council,http://opendatacommunities.org/id/metropolitan-district-council/walsall,WC99-736,31/12/2018,Adult Social Care,CALDMORE AREA HOUSING ASS LTD,07/12/2018,"2,662.88",73500-RESIDENTIAL,MENTAL HEALTH SUPPORT,Third Party Payments,Revenue
Walsall Council,http://opendatacommunities.org/id/metropolitan-district-council/walsall,WC99-737,31/12/2018,Adult Social Care,CALDMORE AREA HOUSING ASS LTD,07/12/2018,"2,662.88",73500-RESIDENTIAL,MENTAL HEALTH SUPPORT,Third Party Payments,Revenue
Walsall Council,http://opendatacommunities.org/id/metropolitan-district-council/walsall,WC99-738,31/12/2018,Adult Social Care,CALDMORE AREA HOUSING ASS LTD,07/12/2018,"2,662.88",73500-RESIDENTIAL,MENTAL HEALTH SUPPORT,Third Party Payments,Revenue
Walsall Council,http://opendatacommunities.org/id/metropolitan-district-council/walsall,WC99-739,31/12/2018,Adult Social Care,CALDMORE AREA HOUSING ASS LTD,07/12/2018,"2,662.88",73500-RESIDENTIAL,MENTAL HEALTH SUPPORT,Third Party Payments,Revenue
Walsall Council,http://opendatacommunities.org/id/metropolitan-district-council/walsall,WC99-740,31/12/2018,Adult Social Care,CALDMORE AREA HOUSING ASS LTD,07/12/2018,"2,662.88",73500-RESIDENTIAL,MENTAL HEALTH SUPPORT,Third Party Payments,Revenue
Walsall Council,http://opendatacommunities.org/id/metropolitan-district-council/walsall,WC99-741,31/12/2018,Adult Social Care,CALDMORE AREA HOUSING ASS LTD,21/12/2018,"3,328.60",73373-RESIDENTIAL & NURSING CARE PLACEMENTS,MENTAL HEALTH PACKAGE/PLACEMENT COSTS,Third Party Payments,Revenue
Walsall Council,http://opendatacommunities.org/id/metropolitan-district-council/walsall,WC99-742,31/12/2018,Childrens,CALDMORE PRIMARY ACADEMY,04/12/2018,500.00,77300-ISB-FORMULA ALLOCATION,OUT OF BOROUGH SCHOOLS,Transfer Payments,Revenue
Walsall Council,http://opendatacommunities.org/id/metropolitan-district-council/walsall,WC99-743,31/12/2018,Childrens,CALDMORE PRIMARY ACADEMY,07/12/2018,"1,113.00",77300-ISB-FORMULA ALLOCATION,EARLY YEARS - PUPIL PREMIUM,Transfer Payments,Revenue
Walsall Council,http://opendatacommunities.org/id/metropolitan-district-council/walsall,WC99-744,31/12/2018,Childrens,REDACTED,13/12/2018,375.88,74510-RESIDENTS ORDERS,ADOPTION ALLOWANCES,Third Party Payments,Revenue
Walsall Council,http://opendatacommunities.org/id/metropolitan-district-council/walsall,WC99-745,31/12/2018,Adult Social Care,REDACTED,07/12/2018,"1,667.60",73506-DIRECT PAYMENT,LEARNING DISABILITY SUPPORT,Third Party Payments,Revenue
Walsall Council,http://opendatacommunities.org/id/metropolitan-district-council/walsall,WC99-746,31/12/2018,Childrens,CAMBIAN WHINFELL SCHOOLS LTD,11/12/2018,"26,508.77",66502-TOP UP FUNDING -GRANTS TO SCHOOLS,INDEPENDENT PROVIDERS - SPECIAL & AP,Third Party Payments,Revenue
Walsall Council,http://opendatacommunities.org/id/metropolitan-district-council/walsall,WC99-747,31/12/2018,Childrens,CAMPION SCHOOL,07/12/2018,"1,250.00",66502-TOP UP FUNDING -GRANTS TO SCHOOLS,MAINTAINED PROVIDERS,Third Party Payments,Revenue
Walsall Council,http://opendatacommunities.org/id/metropolitan-district-council/walsall,WC99-748,31/12/2018,Economy & Environment,CANAL & RIVER TRUST,04/12/2018,281.05,43000-RENTS,ENVIRONMENTAL IMPROVEMENT SERVICE,Premises,Revenue
Walsall Council,http://opendatacommunities.org/id/metropolitan-district-council/walsall,WC99-749,31/12/2018,Economy & Environment,CAPITA BUSINESS SERVICES LTD 001,03/12/2018,"1,500.00",01006-SITE WORKS MAIN CONTRACTORS,CFR 1070 SINGLE LIBRARY MANAGEMENT SYSTEM,Capital,Capital
Walsall Council,http://opendatacommunities.org/id/metropolitan-district-council/walsall,WC99-750,31/12/2018,Economy & Environment,CAPITA BUSINESS SERVICES LTD 001,03/12/2018,"10,405.00",01006-SITE WORKS MAIN CONTRACTORS,CFR 1070 SINGLE LIBRARY MANAGEMENT SYSTEM,Capital,Capital
Walsall Council,http://opendatacommunities.org/id/metropolitan-district-council/walsall,WC99-751,31/12/2018,Adult Social Care,CARE 2 U LIMITED,10/12/2018,309.10,73507-DOMICILIARY CARE,LEARNING DISABILITY SUPPORT,Third Party Payments,Revenue
Walsall Council,http://opendatacommunities.org/id/metropolitan-district-council/walsall,WC99-752,31/12/2018,Adult Social Care,CARE 2 U LIMITED,10/12/2018,477.90,73507-DOMICILIARY CARE,PHYSICAL SUPPORT,Third Party Payments,Revenue
Walsall Council,http://opendatacommunities.org/id/metropolitan-district-council/walsall,WC99-753,31/12/2018,Adult Social Care,CARE 2 U LIMITED,10/12/2018,621.72,73507-DOMICILIARY CARE,LEARNING DISABILITY SUPPORT,Third Party Payments,Revenue
Walsall Council,http://opendatacommunities.org/id/metropolitan-district-council/walsall,WC99-754,31/12/2018,Adult Social Care,CARE 2 U LIMITED,10/12/2018,629.07,73507-DOMICILIARY CARE,MENTAL HEALTH SUPPORT,Third Party Payments,Revenue
Walsall Council,http://opendatacommunities.org/id/metropolitan-district-council/walsall,WC99-755,31/12/2018,Adult Social Care,CARE 2 U LIMITED,10/12/2018,814.98,73507-DOMICILIARY CARE,LEARNING DISABILITY SUPPORT,Third Party Payments,Revenue
Walsall Council,http://opendatacommunities.org/id/metropolitan-district-council/walsall,WC99-756,31/12/2018,Adult Social Care,CARE 2 U LIMITED,10/12/2018,821.99,73507-DOMICILIARY CARE,PHYSICAL SUPPORT,Third Party Payments,Revenue
Walsall Council,http://opendatacommunities.org/id/metropolitan-district-council/walsall,WC99-757,31/12/2018,Adult Social Care,CARE 2 U LIMITED,10/12/2018,854.02,73507-DOMICILIARY CARE,PHYSICAL SUPPORT,Third Party Payments,Revenue
Walsall Council,http://opendatacommunities.org/id/metropolitan-district-council/walsall,WC99-758,31/12/2018,Adult Social Care,CARE 2 U LIMITED,10/12/2018,889.12,73507-DOMICILIARY CARE,PHYSICAL SUPPORT,Third Party Payments,Revenue
Walsall Council,http://opendatacommunities.org/id/metropolitan-district-council/walsall,WC99-759,31/12/2018,Adult Social Care,CARE 2 U LIMITED,10/12/2018,994.30,73507-DOMICILIARY CARE,PHYSICAL SUPPORT,Third Party Payments,Revenue
Walsall Council,http://opendatacommunities.org/id/metropolitan-district-council/walsall,WC99-760,31/12/2018,Adult Social Care,CARE 2 U LIMITED,10/12/2018,"1,138.19",73507-DOMICILIARY CARE,PHYSICAL SUPPORT,Third Party Payments,Revenue
Walsall Council,http://opendatacommunities.org/id/metropolitan-district-council/walsall,WC99-761,31/12/2018,Adult Social Care,CARE 2 U LIMITED,10/12/2018,"1,240.80",73507-DOMICILIARY CARE,MENTAL HEALTH SUPPORT,Third Party Payments,Revenue
Walsall Council,http://opendatacommunities.org/id/metropolitan-district-council/walsall,WC99-762,31/12/2018,Adult Social Care,CARE 2 U LIMITED,10/12/2018,"1,398.08",73507-DOMICILIARY CARE,LEARNING DISABILITY SUPPORT,Third Party Payments,Revenue
Walsall Council,http://opendatacommunities.org/id/metropolitan-district-council/walsall,WC99-763,31/12/2018,Adult Social Care,CARE 2 U LIMITED,10/12/2018,"1,602.35",73507-DOMICILIARY CARE,PHYSICAL SUPPORT,Third Party Payments,Revenue
Walsall Council,http://opendatacommunities.org/id/metropolitan-district-council/walsall,WC99-764,31/12/2018,Adult Social Care,CARE 2 U LIMITED,10/12/2018,"1,658.15",73507-DOMICILIARY CARE,PHYSICAL SUPPORT,Third Party Payments,Revenue
Walsall Council,http://opendatacommunities.org/id/metropolitan-district-council/walsall,WC99-765,31/12/2018,Adult Social Care,CARE 2 U LIMITED,10/12/2018,"1,710.94",73507-DOMICILIARY CARE,PHYSICAL SUPPORT,Third Party Payments,Revenue
Walsall Council,http://opendatacommunities.org/id/metropolitan-district-council/walsall,WC99-766,31/12/2018,Adult Social Care,CARE 2 U LIMITED,10/12/2018,"1,718.55",73507-DOMICILIARY CARE,PHYSICAL SUPPORT,Third Party Payments,Revenue
Walsall Council,http://opendatacommunities.org/id/metropolitan-district-council/walsall,WC99-767,31/12/2018,Adult Social Care,CARE 2 U LIMITED,10/12/2018,"1,880.00",73507-DOMICILIARY CARE,PHYSICAL SUPPORT,Third Party Payments,Revenue
Walsall Council,http://opendatacommunities.org/id/metropolitan-district-council/walsall,WC99-768,31/12/2018,Adult Social Care,CARE 2 U LIMITED,10/12/2018,"2,048.98",73507-DOMICILIARY CARE,MENTAL HEALTH SUPPORT,Third Party Payments,Revenue
Walsall Council,http://opendatacommunities.org/id/metropolitan-district-council/walsall,WC99-769,31/12/2018,Adult Social Care,CARE 2 U LIMITED,10/12/2018,"2,133.50",73507-DOMICILIARY CARE,PHYSICAL SUPPORT,Third Party Payments,Revenue
Walsall Council,http://opendatacommunities.org/id/metropolitan-district-council/walsall,WC99-770,31/12/2018,Adult Social Care,CARE 2 U LIMITED,10/12/2018,"2,516.06",73507-DOMICILIARY CARE,CARERS,Third Party Payments,Revenue
Walsall Council,http://opendatacommunities.org/id/metropolitan-district-council/walsall,WC99-771,31/12/2018,Adult Social Care,CARE 2 U LIMITED,10/12/2018,"3,305.27",73507-DOMICILIARY CARE,PHYSICAL SUPPORT,Third Party Payments,Revenue
Walsall Council,http://opendatacommunities.org/id/metropolitan-district-council/walsall,WC99-772,31/12/2018,Adult Social Care,CARE AVENUES LTD,17/12/2018,"-21,289.26",73372-DOMICILIARY CARE,OP PACKAGE/PLACEMENT COSTS,Third Party Payments,Revenue
Walsall Council,http://opendatacommunities.org/id/metropolitan-district-council/walsall,WC99-773,31/12/2018,Adult Social Care,CARE AVENUES LTD,10/12/2018,343.17,73507-DOMICILIARY CARE,PHYSICAL SUPPORT,Third Party Payments,Revenue
Walsall Council,http://opendatacommunities.org/id/metropolitan-district-council/walsall,WC99-774,31/12/2018,Adult Social Care,CARE AVENUES LTD,10/12/2018,343.23,73507-DOMICILIARY CARE,PHYSICAL SUPPORT,Third Party Payments,Revenue
Walsall Council,http://opendatacommunities.org/id/metropolitan-district-council/walsall,WC99-775,31/12/2018,Adult Social Care,CARE AVENUES LTD,10/12/2018,401.50,73507-DOMICILIARY CARE,PHYSICAL SUPPORT,Third Party Payments,Revenue
Walsall Council,http://opendatacommunities.org/id/metropolitan-district-council/walsall,WC99-776,31/12/2018,Adult Social Care,CARE AVENUES LTD,10/12/2018,457.91,73507-DOMICILIARY CARE,PHYSICAL SUPPORT,Third Party Payments,Revenue
Walsall Council,http://opendatacommunities.org/id/metropolitan-district-council/walsall,WC99-777,31/12/2018,Adult Social Care,CARE AVENUES LTD,10/12/2018,674.76,73507-DOMICILIARY CARE,PHYSICAL SUPPORT,Third Party Payments,Revenue
Walsall Council,http://opendatacommunities.org/id/metropolitan-district-council/walsall,WC99-778,31/12/2018,Adult Social Care,CARE AVENUES LTD,10/12/2018,766.00,73507-DOMICILIARY CARE,PHYSICAL SUPPORT,Third Party Payments,Revenue
Walsall Council,http://opendatacommunities.org/id/metropolitan-district-council/walsall,WC99-779,31/12/2018,Adult Social Care,CARE AVENUES LTD,10/12/2018,853.87,73507-DOMICILIARY CARE,PHYSICAL SUPPORT,Third Party Payments,Revenue
Walsall Council,http://opendatacommunities.org/id/metropolitan-district-council/walsall,WC99-780,31/12/2018,Adult Social Care,CARE AVENUES LTD,10/12/2018,853.94,73507-DOMICILIARY CARE,PHYSICAL SUPPORT,Third Party Payments,Revenue
Walsall Council,http://opendatacommunities.org/id/metropolitan-district-council/walsall,WC99-781,31/12/2018,Adult Social Care,CARE AVENUES LTD,10/12/2018,882.13,73507-DOMICILIARY CARE,PHYSICAL SUPPORT,Third Party Payments,Revenue
Walsall Council,http://opendatacommunities.org/id/metropolitan-district-council/walsall,WC99-782,31/12/2018,Adult Social Care,CARE AVENUES LTD,10/12/2018,945.45,73507-DOMICILIARY CARE,PHYSICAL SUPPORT,Third Party Payments,Revenue
Walsall Council,http://opendatacommunities.org/id/metropolitan-district-council/walsall,WC99-783,31/12/2018,Adult Social Care,CARE AVENUES LTD,10/12/2018,"1,332.32",73507-DOMICILIARY CARE,PHYSICAL SUPPORT,Third Party Payments,Revenue
Walsall Council,http://opendatacommunities.org/id/metropolitan-district-council/walsall,WC99-784,31/12/2018,Adult Social Care,CARE AVENUES LTD,10/12/2018,"1,468.82",73507-DOMICILIARY CARE,PHYSICAL SUPPORT,Third Party Payments,Revenue
Walsall Council,http://opendatacommunities.org/id/metropolitan-district-council/walsall,WC99-785,31/12/2018,Adult Social Care,CARE AVENUES LTD,10/12/2018,"1,644.76",73507-DOMICILIARY CARE,PHYSICAL SUPPORT,Third Party Payments,Revenue
Walsall Council,http://opendatacommunities.org/id/metropolitan-district-council/walsall,WC99-786,31/12/2018,Adult Social Care,CARE AVENUES LTD,10/12/2018,"1,722.06",73507-DOMICILIARY CARE,PHYSICAL SUPPORT,Third Party Payments,Revenue
Walsall Council,http://opendatacommunities.org/id/metropolitan-district-council/walsall,WC99-787,31/12/2018,Adult Social Care,CARE AVENUES LTD,10/12/2018,"2,603.33",73507-DOMICILIARY CARE,PHYSICAL SUPPORT,Third Party Payments,Revenue
Walsall Council,http://opendatacommunities.org/id/metropolitan-district-council/walsall,WC99-788,31/12/2018,Adult Social Care,CARE AVENUES LTD,01/12/2018,"21,289.26",73372-DOMICILIARY CARE,OP PACKAGE/PLACEMENT COSTS,Third Party Payments,Revenue
Walsall Council,http://opendatacommunities.org/id/metropolitan-district-council/walsall,WC99-789,31/12/2018,Childrens,CARE LEAVERS,21/12/2018,204.75,63114-OTHER FEES & LICENCES-SERVICES-FEES,TRANSITION AND LEAVING CARE PLACEMENTS,Supplies & Services,Revenue
Walsall Council,http://opendatacommunities.org/id/metropolitan-district-council/walsall,WC99-790,31/12/2018,Childrens,CARE LEAVERS,21/12/2018,567.52,76010-ACCOMMODATION AND RELATED COSTS-ASSISTANCE TO S/S CLIENTS,TRANSITION AND LEAVING CARE PLACEMENTS,Transfer Payments,Revenue
Walsall Council,http://opendatacommunities.org/id/metropolitan-district-council/walsall,WC99-791,31/12/2018,Childrens,CARE LEAVERS,21/12/2018,"2,713.30",76400-RESIDENTS PERSONAL EXPENSES-ALLOWANCES TO S/S CLIENTS,TRANSITION AND LEAVING CARE PLACEMENTS,Transfer Payments,Revenue
Walsall Council,http://opendatacommunities.org/id/metropolitan-district-council/walsall,WC99-792,31/12/2018,Childrens,CARE LEAVERS,21/12/2018,"2,974.72",74500-CARE LEAVERS MTCE PAYMENTS,TRANSITION AND LEAVING CARE PLACEMENTS,Third Party Payments,Revenue
Walsall Council,http://opendatacommunities.org/id/metropolitan-district-council/walsall,WC99-793,31/12/2018,Childrens,CARE LEAVERS,21/12/2018,"7,690.32",64002-OTHER EXPENSES-EXPENSES,TRANSITION AND LEAVING CARE PLACEMENTS,Supplies & Services,Revenue
Walsall Council,http://opendatacommunities.org/id/metropolitan-district-council/walsall,WC99-794,31/12/2018,Childrens,CARE PERSPECTIVES LTD,28/12/2018,"21,300.00",74036-EXTERNAL RESIDENTIAL CARE-OTH AGENCY PROVISION,INDEPENDENT RESIDENTIAL HOMES,Third Party Payments,Revenue
Walsall Council,http://opendatacommunities.org/id/metropolitan-district-council/walsall,WC99-795,31/12/2018,Childrens,CARE TODAY CHILDRENS SERVICES,28/12/2018,"10,380.00",74036-EXTERNAL RESIDENTIAL CARE-OTH AGENCY PROVISION,INDEPENDENT RESIDENTIAL HOMES,Third Party Payments,Revenue
Walsall Council,http://opendatacommunities.org/id/metropolitan-district-council/walsall,WC99-796,31/12/2018,Childrens,CARE XY LIMITED,03/12/2018,620.00,63000-PROFESSIONAL FEES AND SERVICES,DIRECTLY COMMISSIONED NURSING SERVICES,Supplies & Services,Revenue
Walsall Council,http://opendatacommunities.org/id/metropolitan-district-council/walsall,WC99-797,31/12/2018,Childrens,CARE XY LIMITED,03/12/2018,"7,502.00",63000-PROFESSIONAL FEES AND SERVICES,DIRECTLY COMMISSIONED NURSING SERVICES,Supplies & Services,Revenue
